Department Family,Entity,Date of Payment,Expense Type,Expense Area,Supplier,Voluntary & Community Sector,SME Class,Sole Trader,D-U-N-S Number,Transaction number,PSPES Level 2,Narrative,Postal Code,Amount in Sterling,Grant?
"Housing, Communities & Local Government",MHCLG,01/11/2018,Conferences and Meeting Facilities,Decentralisation and Local Growth,UK SBS,,,,,5106240756,Promotion,Contribution to UK Stand at MIPM,NP10 8QQ,"50,000.00",
"Housing, Communities & Local Government",MHCLG,01/11/2018,Current Grants to Non Profit Bodies,Local Government & Public Services,FAITH MATTERS,Yes,Small,,218968621,2100287256,,Tell MAMA Outreach Project,SW7 1EE,"208,831.50",Yes
"Housing, Communities & Local Government",MHCLG,01/11/2018,ERDF Work in Progress � Capital,Decentralisation and Local Growth,BISHOP GROSSETESTE UNIVERSITY,,,,215867520,7700003255,,ERDF grant payment,LN1 3DY,"352,688.20",Yes
"Housing, Communities & Local Government",MHCLG,01/11/2018,ERDF Work in Progress � Resource,Decentralisation and Local Growth,ALLIA LIMITED,,Small,,,7700003257,,ERDF grant payment,CB4 2HY,"53,154.60",Yes
"Housing, Communities & Local Government",MHCLG,01/11/2018,ERDF Work in Progress � Resource,Decentralisation and Local Growth,BISHOP GROSSETESTE UNIVERSITY,,,,215867520,7700003255,,ERDF grant payment,LN1 3DY,"18,243.82",Yes
"Housing, Communities & Local Government",MHCLG,01/11/2018,ERDF Work in Progress � Resource,Decentralisation and Local Growth,DERBY CITY COUNCIL,,Large,,,7700003258,,ERDF grant payment,DE1 2FS,"14,997.17",Yes
"Housing, Communities & Local Government",MHCLG,01/11/2018,ERDF Work in Progress � Resource,Decentralisation and Local Growth,KENT COUNTY COUNCIL,,Large,,,7700003256,,ERDF grant payment,ME14 1XQ,"145,291.56",Yes
"Housing, Communities & Local Government",MHCLG,01/11/2018,EXP � PURCHASE OF GOODS /SERVICES R & D,Housing & BSP,BUILDING RESEARCH ESTABLISHMENT,,Large,,896495033,5106240722,Research,investigation of real fires,WD25 9XX,"26,026.80",
"Housing, Communities & Local Government",MHCLG,01/11/2018,"IT - PC, Network & Hardware",Chief Finance Office,X M A LTD,,Large,,298484148,5106240780,ICT Hardware,Surface Laptop,NG11 7EP,"245,867.16",
"Housing, Communities & Local Government",MHCLG,01/11/2018,"IT - PC, Network & Hardware",Chief Finance Office,X M A LTD,,Large,,298484148,5106240781,ICT Hardware,Surface Laptop,NG11 7EP,"345,429.12",
"Housing, Communities & Local Government",MHCLG,01/11/2018,"IT - PC, Network & Hardware",Chief Finance Office,X M A LTD,,Large,,298484148,5106240782,ICT Hardware,Keyboard,NG11 7EP,125.28,
"Housing, Communities & Local Government",MHCLG,01/11/2018,"IT - PC, Network & Hardware",Chief Finance Office,X M A LTD,,Large,,298484148,5106240782,ICT Hardware,Mice,NG11 7EP,125.28,
"Housing, Communities & Local Government",MHCLG,01/11/2018,"IT - PC, Network & Hardware",Chief Finance Office,X M A LTD,,Large,,298484148,5106240782,ICT Hardware,Surface Adapter,NG11 7EP,"1,233.84",
"Housing, Communities & Local Government",MHCLG,01/11/2018,IT - Service Contracts,Chief Finance Office,ARCUS GLOBAL LIMITED,,Medium,,,5106240774,IT Managed / Outsourced Services,Datamart infrastructure and T&M,CB4 2HY,"59,010.00",
"Housing, Communities & Local Government",MHCLG,01/11/2018,IT - Service Contracts,Chief Finance Office,ARCUS GLOBAL LIMITED,,Medium,,,5106240775,IT Managed / Outsourced Services,MCIS/TESA hosting support 18/19,CB4 2HY,"10,226.99",
"Housing, Communities & Local Government",MHCLG,01/11/2018,IT - Service Contracts,Chief Finance Office,ARCUS GLOBAL LIMITED,,Medium,,,5106240777,IT Managed / Outsourced Services,Datamart T&M 2018-19,CB4 2HY,"4,875.00",
"Housing, Communities & Local Government",MHCLG,01/11/2018,IT - Service Contracts,Chief Finance Office,STATIONERY OFFICE LTD,,Large,,779375633,5106240784,IT Managed / Outsourced Services,Delta Project,NR3 1PD,"27,485.00",
"Housing, Communities & Local Government",MHCLG,01/11/2018,IT - Service Contracts,Chief Finance Office,STATIONERY OFFICE LTD,,Large,,779375633,5106240785,IT Managed / Outsourced Services,Delta Project,NR3 1PD,"29,495.00",
"Housing, Communities & Local Government",MHCLG,01/11/2018,IT - Service Contracts,Chief Finance Office,TECHMODE COMPUTERS LTD,,Micro,,,5106240179,IT Managed / Outsourced Services,Delta Risk Review days,W11 1JN,"4,500.00",
"Housing, Communities & Local Government",MHCLG,01/11/2018,IT - Software Maintenance,Chief Finance Office,LEIDOS,,Large,,399909910,5106240618,IT Managed / Outsourced Services,MCIS/TESA Application Support Extension,G3 8EP,"49,020.00",
"Housing, Communities & Local Government",MHCLG,01/11/2018,IT - Software Maintenance,Chief Finance Office,PTFS EUROPE LTD,,Micro,,,5106240779,IT Managed / Outsourced Services,Library catalogue and digital library service,W1S 1DX,"15,420.00",
"Housing, Communities & Local Government",MHCLG,01/11/2018,Online Database Information Retrieval,Chief Finance Office,EBSCO INFORMATION SERVICES,,Large,,769928193,5106240760,ICT Services,Electronic library discovery service costs,EN5 1NZ,"8,100.00",
"Housing, Communities & Local Government",MHCLG,01/11/2018,Online Database Information Retrieval,Chief Finance Office,EBSCO INFORMATION SERVICES,,Large,,769928193,5106240760,ICT Services,Electronic library discovery service costs,EN5 1NZ,"6,567.60",
"Housing, Communities & Local Government",MHCLG,01/11/2018,Online Database Information Retrieval,Chief Finance Office,EBSCO INFORMATION SERVICES,,Large,,769928193,5106240760,ICT Services,Electronic library discovery service costs,EN5 1NZ,"11,340.00",
"Housing, Communities & Local Government",MHCLG,01/11/2018,Online Database Information Retrieval,Chief Finance Office,EBSCO INFORMATION SERVICES,,Large,,769928193,5106240760,ICT Services,Electronic library discovery service costs,EN5 1NZ,"3,757.20",
"Housing, Communities & Local Government",MHCLG,01/11/2018,Online Database Information Retrieval,Chief Finance Office,EBSCO INFORMATION SERVICES,,Large,,769928193,5106240760,ICT Services,Electronic library discovery service costs,EN5 1NZ,"6,397.20",
"Housing, Communities & Local Government",MHCLG,01/11/2018,Printing,Decentralisation and Local Growth,APS GROUP,,Micro,,212228001,5106240765,Printing Services,Corporate Publishing,SK3 02P,412.82,
"Housing, Communities & Local Government",MHCLG,01/11/2018,Printing,Decentralisation and Local Growth,APS GROUP,,Micro,,212228001,5106240783,Printing Services,Corporate Publishing,SK3 02P,419.32,
"Housing, Communities & Local Government",MHCLG,01/11/2018,Professional services,Decentralisation and Local Growth,VALUATION OFFICE AGENCY,,Public Bodies,,215253886,5106240770,Financial,Planning changes to support infrastructure of local area,W1D 5BU,"1,657.36",
"Housing, Communities & Local Government",MHCLG,01/11/2018,Professional services,Decentralisation and Local Growth,VALUATION OFFICE AGENCY,,Public Bodies,,215253886,5106240772,Financial,Planning changes to support infrastructure of local area,W1D 5BU,"1,472.04",
"Housing, Communities & Local Government",MHCLG,01/11/2018,Professional services,Decentralisation and Local Growth,VALUATION OFFICE AGENCY,,Public Bodies,,215253886,5106240773,Financial,Planning changes to support infrastructure of local area,W1D 5BU,"2,600.56",
"Housing, Communities & Local Government",MHCLG,01/11/2018,Training,Chief Finance Office,EML LEARNING,,Micro,,218614350,5106240677,Development and Training,Civil Service Training,LS1 9PX,745,
"Housing, Communities & Local Government",MHCLG,01/11/2018,Training,Chief Finance Office,KORN FERRY HAY GROUP LTD,,Large,,,5106240758,Development and Training,Civil Service Training,SW1Y 6QB,"7,310.71",
"Housing, Communities & Local Government",MHCLG,01/11/2018,Training,Chief Finance Office,ST JOHN AMBULANCE (SAC),,Large,,213271005,5106240761,Development and Training,Civil Service Training,S8 0XN,215,
"Housing, Communities & Local Government",MHCLG,02/11/2018,Agency Staff,Chief Finance Office,ALEXANDER MANN SOLUTIONS LTD,,Large,,,5106240747,Contingent Labour,Interim Manager,EC2N 3AG,"6,457.10",
"Housing, Communities & Local Government",MHCLG,02/11/2018,Agency Staff,Housing & BSP,ALEXANDER MANN SOLUTIONS LTD,,Large,,,5106240743,Contingent Labour,project manager,EC2N 3AG,"22,481.70",
"Housing, Communities & Local Government",MHCLG,02/11/2018,ERDF Work in Progress � Capital,Decentralisation and Local Growth,NEWANGLIA LOC ENTER PARTNER LTD,,Medium,,,7700003262,,ERDF grant payment,NR4 7UG,"799,231.63",Yes
"Housing, Communities & Local Government",MHCLG,02/11/2018,ERDF Work in Progress � Capital,Decentralisation and Local Growth,NEWANGLIA LOC ENTER PARTNER LTD,,Medium,,,7700003265,,ERDF grant offset,NR4 7UG,"-21,349.97",Yes
"Housing, Communities & Local Government",MHCLG,02/11/2018,ERDF Work in Progress � Capital,Decentralisation and Local Growth,SOMERSET COUNTY COUNCIL,,Micro,,,7700003263,,ERDF grant payment,TA1 4DY,"682,319.43",Yes
"Housing, Communities & Local Government",MHCLG,02/11/2018,ERDF Work in Progress � Capital,Decentralisation and Local Growth,WEST SUSSEX SUSTAIN BUS PARTNERSHIP,,,,,7700003266,,ERDF grant payment,BN1 1YD,"73,087.11",Yes
"Housing, Communities & Local Government",MHCLG,02/11/2018,ERDF Work in Progress � Resource,Decentralisation and Local Growth,BUSINESS SUPPORT SOLUTIONS,,Small,,,7700003261,,ERDF grant payment,M1 5JW,"201,082.47",Yes
"Housing, Communities & Local Government",MHCLG,02/11/2018,ERDF Work in Progress � Resource,Decentralisation and Local Growth,CORNWALL COUNCIL,,Large,,,7700003267,,ERDF grant payment,TR1 3AY,"13,376.42",Yes
"Housing, Communities & Local Government",MHCLG,02/11/2018,ERDF Work in Progress � Resource,Decentralisation and Local Growth,EAST LANCASHIRE CHAMBER&COMMERCE,,,,,7700003268,,ERDF grant payment,BB5 5JR,"135,370.16",Yes
"Housing, Communities & Local Government",MHCLG,02/11/2018,ERDF Work in Progress � Resource,Decentralisation and Local Growth,NEWANGLIA LOC ENTER PARTNER LTD,,Medium,,,7700003262,,ERDF grant payment,NR4 7UG,"224,999.37",Yes
"Housing, Communities & Local Government",MHCLG,02/11/2018,ERDF Work in Progress � Resource,Decentralisation and Local Growth,NEWANGLIA LOC ENTER PARTNER LTD,,Medium,,,7700003265,,ERDF grant offset,NR4 7UG,-71.01,Yes
"Housing, Communities & Local Government",MHCLG,02/11/2018,ERDF Work in Progress � Resource,Decentralisation and Local Growth,WAKEFIELD COUNCIL,,,,,7700003259,,ERDF grant payment,WF1 2EB,"10,403.08",Yes
"Housing, Communities & Local Government",MHCLG,02/11/2018,ERDF Work in Progress � Resource,Decentralisation and Local Growth,WARWICK UNIVERSITY,,Large,,,2300002991,,ERDF CLAWBACK,CV4 8UW,"-140,000.00",Yes
"Housing, Communities & Local Government",MHCLG,02/11/2018,ERDF Work in Progress � Resource,Decentralisation and Local Growth,WEST SUSSEX SUSTAIN BUS PARTNERSHIP,,,,,7700003266,,ERDF grant payment,BN1 1YD,"23,350.66",Yes
"Housing, Communities & Local Government",MHCLG,02/11/2018,EXP � PURCHASE OF GOODS /SERVICES R & D,Chief Finance Office,GLENIGAN,,Large,,218633327,5106240461,Research,Research - Planning pipeline data,BH8 8AQ,"15,700.00",
"Housing, Communities & Local Government",MHCLG,02/11/2018,EXP � PURCHASE OF GOODS /SERVICES R & D,Housing & BSP,ADROIT ECONOMICS LTD,,Micro,,347660925,5106240788,Research,Evaluation & Analytical Services,WA15 9RE,"151,150.00",
"Housing, Communities & Local Government",MHCLG,02/11/2018,"IT - PC, Network & Hardware",Chief Finance Office,X M A LTD,,Large,,298484148,5106240826,ICT Hardware,Keyboard,NG11 7EP,463.54,
"Housing, Communities & Local Government",MHCLG,02/11/2018,"IT - PC, Network & Hardware",Chief Finance Office,X M A LTD,,Large,,298484148,5106240826,ICT Hardware,Mice,NG11 7EP,463.54,
"Housing, Communities & Local Government",MHCLG,02/11/2018,"IT - PC, Network & Hardware",Chief Finance Office,X M A LTD,,Large,,298484148,5106240826,ICT Hardware,Surface Adapter,NG11 7EP,"4,565.20",
"Housing, Communities & Local Government",MHCLG,02/11/2018,IT - Service Contracts,Chief Finance Office,ARCUS GLOBAL LIMITED,,Medium,,,5106240815,IT Managed / Outsourced Services,Datamart infrastructure and T&M,CB4 2HY,"3,294.24",
"Housing, Communities & Local Government",MHCLG,02/11/2018,IT - Service Contracts,Chief Finance Office,ARCUS GLOBAL LIMITED,,Medium,,,5106240817,IT Managed / Outsourced Services,Datamart infrastructure and T&M,CB4 2HY,"31,106.25",
"Housing, Communities & Local Government",MHCLG,02/11/2018,IT - Service Contracts,Chief Finance Office,DAISY COMMUNICATIONS LIMITED,,Large,,221263291,5106240786,IT Managed / Outsourced Services,MHCLG ISDN 15.5.18 7991565,BB9 5SR,"31,689.52",
"Housing, Communities & Local Government",MHCLG,02/11/2018,IT - Service Contracts,Chief Finance Office,FUJITSU SERVICES LTD,,Large,,423375062,5106240796,IT Managed / Outsourced Services,FY18/19 PINS Horizon charges,WA3 6GD,"7,787.81",
"Housing, Communities & Local Government",MHCLG,02/11/2018,IT - Service Contracts,Chief Finance Office,FUJITSU SERVICES LTD,,Large,,423375062,5106240816,IT Managed / Outsourced Services,FY18/19 LOBA table charges,WA3 6GD,"18,388.87",
"Housing, Communities & Local Government",MHCLG,02/11/2018,IT - Service Contracts,Chief Finance Office,FUJITSU SERVICES LTD,,Large,,423375062,5106240818,IT Managed / Outsourced Services,"18/19 Desktop(""D""Table Charges)",WA3 6GD,"1,549.08",
"Housing, Communities & Local Government",MHCLG,02/11/2018,IT - Service Contracts,Chief Finance Office,FUJITSU SERVICES LTD,,Large,,423375062,5106240828,IT Managed / Outsourced Services,"18/19 Desktop(""D""Table Charges)",WA3 6GD,"12,985.92",
"Housing, Communities & Local Government",MHCLG,02/11/2018,IT - Service Contracts,Chief Finance Office,FUJITSU SERVICES LTD,,Large,,423375062,5106240829,IT Managed / Outsourced Services,"18/19 Desktop(""D""Table Charges)",WA3 6GD,"4,595.80",
"Housing, Communities & Local Government",MHCLG,02/11/2018,IT - Service Contracts,Chief Finance Office,FUJITSU SERVICES LTD,,Large,,423375062,5106240830,IT Managed / Outsourced Services,"18/19 Desktop(""D""Table Charges)",WA3 6GD,312.32,
"Housing, Communities & Local Government",MHCLG,02/11/2018,IT - Service Contracts,Chief Finance Office,FUJITSU SERVICES LTD,,Large,,423375062,5106240831,IT Managed / Outsourced Services,"18/19 Desktop(""D""Table Charges)",WA3 6GD,"1,865.73",
"Housing, Communities & Local Government",MHCLG,02/11/2018,IT - Service Contracts,Chief Finance Office,FUJITSU SERVICES LTD,,Large,,423375062,5106240832,IT Managed / Outsourced Services,"18/19 Desktop(""D""Table Charges)",WA3 6GD,"183,708.25",
"Housing, Communities & Local Government",MHCLG,02/11/2018,IT - Service Contracts,Chief Finance Office,FUJITSU SERVICES LTD,,Large,,423375062,5106240834,IT Managed / Outsourced Services,"18/19 Desktop(""D""Table Charges)",WA3 6GD,"13,462.62",
"Housing, Communities & Local Government",MHCLG,02/11/2018,IT - Service Contracts,Chief Finance Office,FUJITSU SERVICES LTD,,Large,,423375062,5106240836,IT Managed / Outsourced Services,WAN Management Charges 18/19,WA3 6GD,"2,645.18",
"Housing, Communities & Local Government",MHCLG,02/11/2018,IT - Service Contracts,Chief Finance Office,FUJITSU SERVICES LTD,,Large,,423375062,5106240837,IT Managed / Outsourced Services,FY 18-19 DRP1 Table charges,WA3 6GD,"8,441.57",
"Housing, Communities & Local Government",MHCLG,02/11/2018,IT - Service Contracts,Chief Finance Office,RISUAL LIMITED,,Medium,,,5106240723,IT Managed / Outsourced Services,Open Data Communities Development work,ST18 0WP,"9,180.00",
"Housing, Communities & Local Government",MHCLG,02/11/2018,Office Supplies,Decentralisation and Local Growth,APS GROUP,,Micro,,212228001,5106240797,Printing Services,Stationery,SK3 02P,582.4,
"Housing, Communities & Local Government",MHCLG,02/11/2018,Printers,Chief Finance Office,INSIGHT DIRECT (UK) LTD,,Large,,,5106240181,Office machines,M5H23A B19 HP Printer - Quote 35278,UB8 1PH,"1,154.50",
"Housing, Communities & Local Government",MHCLG,02/11/2018,Printers,Chief Finance Office,INSIGHT DIRECT (UK) LTD,,Large,,,5106240819,Office machines,M5H23A B19 HP Printer - Quote 35278,UB8 1PH,"-1,154.50",
"Housing, Communities & Local Government",MHCLG,02/11/2018,Printing,Housing & BSP,APS GROUP,,Micro,,212228001,5106238906,Printing Services,Hackitt Review final report,SK3 02P,"2,896.40",
"Housing, Communities & Local Government",MHCLG,02/11/2018,Publications,Chief Finance Office,JONES YARRELL LEADENHALL LTD,,Large,,505670265,5106240822,Learning and Development Materials,Library journal subs 2018-19,E3 3JH,286.23,
"Housing, Communities & Local Government",MHCLG,02/11/2018,Publications,Decentralisation and Local Growth,JONES YARRELL LEADENHALL LTD,,Large,,505670265,5106240809,Learning and Development Materials,Newspaper & Magazine Subscription,E3 3JH,262.88,
"Housing, Communities & Local Government",MHCLG,02/11/2018,Publications,Decentralisation and Local Growth,JONES YARRELL LEADENHALL LTD,,Large,,505670265,5106240824,Learning and Development Materials,Press Office Subscriptions 18-19,E3 3JH,420.71,
"Housing, Communities & Local Government",MHCLG,02/11/2018,Training,Chief Finance Office,KNOWLEDGE ACADEMY LTD,,Small,,217078555,5106240720,Development and Training,Civil Service Training,RG12 1HL,"1,649.00",
"Housing, Communities & Local Government",MHCLG,02/11/2018,Training,Chief Finance Office,KNOWLEDGE ACADEMY LTD,,Small,,217078555,5106240720,Development and Training,Civil Service Training,RG12 1HL,"1,649.00",
"Housing, Communities & Local Government",MHCLG,02/11/2018,Training,Chief Finance Office,PAN NATION STEEL ORCHESTRA,,,,,5106240540,Development and Training,Civil Service Training,N15 4RW,430,
"Housing, Communities & Local Government",MHCLG,02/11/2018,Training,Local Government & Public Services,GOVNET COMMUNICATIONS,,Medium,,737114855,5106240835,Development and Training,Civil Service Training,M1 6PP,398,
"Housing, Communities & Local Government",MHCLG,05/11/2018,Agency Staff,Chief Finance Office,ALEXANDER MANN SOLUTIONS LTD,,Large,,,5106240865,Contingent Labour,Interim Manager,EC2N 3AG,"2,532.19",
"Housing, Communities & Local Government",MHCLG,05/11/2018,Agency Staff,Chief Finance Office,ALEXANDER MANN SOLUTIONS LTD,,Large,,,5106240869,Contingent Labour,Interim Manager,EC2N 3AG,"4,114.80",
"Housing, Communities & Local Government",MHCLG,05/11/2018,Agency Staff,Chief Finance Office,ALEXANDER MANN SOLUTIONS LTD,,Large,,,5106240870,Contingent Labour,Interim Manager,EC2N 3AG,"4,927.44",
"Housing, Communities & Local Government",MHCLG,05/11/2018,Agency Staff,Chief Finance Office,ALEXANDER MANN SOLUTIONS LTD,,Large,,,5106240871,Contingent Labour,Interim Manager,EC2N 3AG,"6,303.12",
"Housing, Communities & Local Government",MHCLG,05/11/2018,Agency Staff,Chief Finance Office,ALEXANDER MANN SOLUTIONS LTD,,Large,,,5106240872,Contingent Labour,Interim Manager,EC2N 3AG,"5,985.60",
"Housing, Communities & Local Government",MHCLG,05/11/2018,Agency Staff,Chief Finance Office,ALEXANDER MANN SOLUTIONS LTD,,Large,,,5106240873,Contingent Labour,Interim Manager,EC2N 3AG,"4,157.52",
"Housing, Communities & Local Government",MHCLG,05/11/2018,Agency Staff,Chief Finance Office,ALEXANDER MANN SOLUTIONS LTD,,Large,,,5106240876,Contingent Labour,Interim Manager,EC2N 3AG,"2,520.24",
"Housing, Communities & Local Government",MHCLG,05/11/2018,Agency Staff,Chief Finance Office,ALEXANDER MANN SOLUTIONS LTD,,Large,,,5106240877,Contingent Labour,Interim Manager,EC2N 3AG,"3,150.30",
"Housing, Communities & Local Government",MHCLG,05/11/2018,Agency Staff,Chief Finance Office,ALEXANDER MANN SOLUTIONS LTD,,Large,,,5106240878,Contingent Labour,Interim Manager,EC2N 3AG,"2,454.30",
"Housing, Communities & Local Government",MHCLG,05/11/2018,Agency Staff,Chief Finance Office,ALEXANDER MANN SOLUTIONS LTD,,Large,,,5106240879,Contingent Labour,Interim Manager,EC2N 3AG,690.42,
"Housing, Communities & Local Government",MHCLG,05/11/2018,Agency Staff,Chief Finance Office,ALEXANDER MANN SOLUTIONS LTD,,Large,,,5106240880,Contingent Labour,Interim Manager,EC2N 3AG,"4,114.80",
"Housing, Communities & Local Government",MHCLG,05/11/2018,Agency Staff,Chief Finance Office,ALEXANDER MANN SOLUTIONS LTD,,Large,,,5106240881,Contingent Labour,Interim Manager,EC2N 3AG,"2,278.99",
"Housing, Communities & Local Government",MHCLG,05/11/2018,Agency Staff,Chief Finance Office,ALEXANDER MANN SOLUTIONS LTD,,Large,,,5106240883,Contingent Labour,Interim Manager,EC2N 3AG,"6,236.76",
"Housing, Communities & Local Government",MHCLG,05/11/2018,Agency Staff,Chief Finance Office,ALEXANDER MANN SOLUTIONS LTD,,Large,,,5106240885,Contingent Labour,Interim Manager,EC2N 3AG,"6,476.52",
"Housing, Communities & Local Government",MHCLG,05/11/2018,Agency Staff,Housing & BSP,ALEXANDER MANN SOLUTIONS LTD,,Large,,,5106240867,Contingent Labour,Interim Manager,EC2N 3AG,"1,323.90",
"Housing, Communities & Local Government",MHCLG,05/11/2018,Agency Staff,Housing & BSP,ALEXANDER MANN SOLUTIONS LTD,,Large,,,5106240875,Contingent Labour,project manager,EC2N 3AG,"2,697.80",
"Housing, Communities & Local Government",MHCLG,05/11/2018,Agency Staff,Local Government & Public Services,ALEXANDER MANN SOLUTIONS LTD,,Large,,,5106240886,Contingent Labour,Interim Manager,EC2N 3AG,453.08,
"Housing, Communities & Local Government",MHCLG,05/11/2018,Cap Grants to Local Authorities (DEL),Decentralisation and Local Growth,BLACKPOOL BC,,,,,5000412196,,Land Release Fund,FY1 1NA,"890,000.00",Yes
"Housing, Communities & Local Government",MHCLG,05/11/2018,Cap Grants to Local Authorities (DEL),Decentralisation and Local Growth,BRIGHTON & HOVE CITY COUNCIL,,Large,,228455218,5000412202,,Land Release Fund,BN1 3JE,"589,000.00",Yes
"Housing, Communities & Local Government",MHCLG,05/11/2018,Cap Grants to Local Authorities (DEL),Decentralisation and Local Growth,PLYMOUTH CITY CNCL,,Public Bodies,,236416095,5000412264,,Land Release Fund,PL1 2AA,"500,000.00",Yes
"Housing, Communities & Local Government",MHCLG,05/11/2018,Cap Grants to Local Authorities (DEL),Decentralisation and Local Growth,SHROPSHIRE UNITARY AUTHORITY,,,,217036490,5000412319,,Land Release Fund,SY2 6ND,"524,507.00",Yes
"Housing, Communities & Local Government",MHCLG,05/11/2018,Cap Grants to Local Authorities (DEL),Decentralisation and Local Growth,SOUTH GLOUCESTERSHIRE DC (HSG),,,,,5000412184,,Land Release Fund,BS15 2TR,"160,000.00",Yes
"Housing, Communities & Local Government",MHCLG,05/11/2018,Cap Grants to Local Authorities (DEL),Decentralisation and Local Growth,SOUTH RIBBLE BC,,Public Bodies,,,5000412281,,Land Release Fund,PR5 1DH,"236,000.00",Yes
"Housing, Communities & Local Government",MHCLG,05/11/2018,Cap Grants to Local Authorities (DEL),Decentralisation and Local Growth,WILTSHIRE COUNCIL,,,,211341656,5000412313,,Land Release Fund,BA14 4DS,"620,000.00",Yes
"Housing, Communities & Local Government",MHCLG,05/11/2018,Current (non AEF) Grants to Local Authorities,Housing & BSP,GREATER LONDON AUTHORITY,,Large,,,2100287195,,Support for new community-led housing developments,SE1 2AA,"2,000,000.00",Yes
"Housing, Communities & Local Government",MHCLG,05/11/2018,Current Grants to Non Profit Bodies,Local Government & Public Services,DUKE PLAYHOUSE LTD,,Small,,,2100287349,,Improving outcomes for GRT communities,LA1 1QE,"12,392.75",Yes
"Housing, Communities & Local Government",MHCLG,05/11/2018,Current Grants to Non Profit Bodies,Local Government & Public Services,FRIENDS FAMILIES & TRAVELLERS,,,,,2100287346,,Improving outcomes for GRT communities,BN1 3XG,"15,000.00",Yes
"Housing, Communities & Local Government",MHCLG,05/11/2018,Current Grants to Non Profit Bodies,Local Government & Public Services,GRANBY TOXTETH DEV TRUST,,,,,2100287347,,Improving outcomes for GRT communities,L8 0QF,"14,875.00",Yes
"Housing, Communities & Local Government",MHCLG,05/11/2018,Current Grants to Non Profit Bodies,Local Government & Public Services,LUTON ROMA TRUST,,Micro,,,2100287348,,Improving outcomes for GRT communities,LU2 7JP,"12,946.00",Yes
"Housing, Communities & Local Government",MHCLG,05/11/2018,Current Grants to Non Profit Bodies,Local Government & Public Services,PRISON RADIO ASSOCIATION,,,,,2100287351,,Improving outcomes for GRT communities,SW2 5XF,"15,000.00",Yes
"Housing, Communities & Local Government",MHCLG,05/11/2018,Current Grants to Non Profit Bodies,Local Government & Public Services,THE LINKING NETWORK,,Micro,,,2100287352,,Schools Linking project,BD1 1NN,"197,400.83",Yes
"Housing, Communities & Local Government",MHCLG,05/11/2018,Current Grants to Non Profit Bodies,Local Government & Public Services,THORNBURY CENTRE,Yes,,,,2100287350,,Improving outcomes for GRT communities,BD3 8JX,"14,745.75",Yes
"Housing, Communities & Local Government",MHCLG,05/11/2018,ERDF Work in Progress � Capital,Decentralisation and Local Growth,LOUGHBOROUGH UNIVERSITY,,,,,7700003269,,ERDF grant payment,LE11 3TU,"11,680.82",Yes
"Housing, Communities & Local Government",MHCLG,05/11/2018,ERDF Work in Progress � Resource,Decentralisation and Local Growth,LOUGHBOROUGH UNIVERSITY,,,,,7700003269,,ERDF grant payment,LE11 3TU,"38,073.16",Yes
"Housing, Communities & Local Government",MHCLG,05/11/2018,ERDF Work in Progress � Resource,Decentralisation and Local Growth,WAKEFIELD COUNCIL,,,,,7700003270,,ERDF grant payment,WF1 2EB,"9,958.05",Yes
"Housing, Communities & Local Government",MHCLG,05/11/2018,EXP � PURCHASE OF GOODS /SERVICES R & D,Chief Finance Office,BURNS & COMPANY,,Small,,,5106240841,Research,Research - Housing Courts,N8 8ED,"22,464.00",
"Housing, Communities & Local Government",MHCLG,05/11/2018,Grant in Aid to NDPBs (non budget),Housing & BSP,LEASEHOLD ADVISORY SERVICE,,Small,,378000152,2100287343,,GiA to LEASE,WT1 7BN,"107,100.00",Yes
"Housing, Communities & Local Government",MHCLG,05/11/2018,IT - Service Contracts,Chief Finance Office,ALEXANDER MANN SOLUTIONS LTD,,Large,,,5106240858,Contingent Labour,Interim Manager,EC2N 3AG,"2,373.95",
"Housing, Communities & Local Government",MHCLG,05/11/2018,IT - Service Contracts,Chief Finance Office,ALEXANDER MANN SOLUTIONS LTD,,Large,,,5106240868,Contingent Labour,Interim Manager,EC2N 3AG,"3,165.25",
"Housing, Communities & Local Government",MHCLG,05/11/2018,IT - Service Contracts,Chief Finance Office,ALEXANDER MANN SOLUTIONS LTD,,Large,,,5106240882,Contingent Labour,Interim Manager,EC2N 3AG,"2,053.10",
"Housing, Communities & Local Government",MHCLG,05/11/2018,IT - Service Contracts,Chief Finance Office,FUJITSU SERVICES LTD,,Large,,423375062,5106240792,IT Managed / Outsourced Services,Personal Drive file extension report,WA3 6GD,"2,181.00",
"Housing, Communities & Local Government",MHCLG,05/11/2018,IT - Service Contracts,Chief Finance Office,ICASEWORK LTD,,Large,,,5106240856,IT Managed / Outsourced Services,Despatch Box provision,NW6 7SG,"4,216.67",
"Housing, Communities & Local Government",MHCLG,05/11/2018,IT - Service Contracts,Chief Finance Office,INTERQUEST GROUP UK LIMITED,,Large,,423935241,5106240861,IT Managed / Outsourced Services,SAP specialist,EC4R 0AN,"11,000.00",
"Housing, Communities & Local Government",MHCLG,05/11/2018,IT - Software Maintenance,Chief Finance Office,INTERQUEST GROUP UK LIMITED,,Large,,423935241,5106240851,IT Managed / Outsourced Services,SAP Basis Support Services,EC4R 0AN,"11,047.06",
"Housing, Communities & Local Government",MHCLG,06/11/2018,Conferences and Meeting Facilities,Housing & BSP,NATIONAL COUNCIL FOR VOL ORGS,,Medium,,290082338,5106240896,Business Travel Accommodation,Homelessness Away Day,N1 9RL,601,
"Housing, Communities & Local Government",MHCLG,06/11/2018,Conferences and Meeting Facilities,Local Government & Public Services,HILTON LONDON OLYMPIA,,Large,,,5106240910,Business Travel Accommodation,Meeting Regarding Grenfell 6th Nov,W14 8NL,800,
"Housing, Communities & Local Government",MHCLG,06/11/2018,Current Grants to Non Profit Bodies,Local Government & Public Services,UMMA HELP,,,,,2100287354,,Project about genocide and intolerance,B16 8UA,"86,304.00",Yes
"Housing, Communities & Local Government",MHCLG,06/11/2018,ERDF Work in Progress � Capital,Decentralisation and Local Growth,ANGLIA RUSKIN UNIVERSITY,,,,,7700003277,,ERDF grant payment,CM1 1SQ,"12,231.27",Yes
"Housing, Communities & Local Government",MHCLG,06/11/2018,ERDF Work in Progress � Capital,Decentralisation and Local Growth,LINCOLN BUSINESS IMPROVEMENT GROUP,,Small,,,7700003272,,ERDF grant payment,LN2 1HA,"23,042.77",Yes
"Housing, Communities & Local Government",MHCLG,06/11/2018,ERDF Work in Progress � Capital,Decentralisation and Local Growth,SOUTHEND-ON-SEA BOROUGH COUNCIL,,,,,7700003273,,ERDF grant payment,SS2 6ER,"604,177.78",Yes
"Housing, Communities & Local Government",MHCLG,06/11/2018,ERDF Work in Progress � Resource,Decentralisation and Local Growth,ANGLIA RUSKIN UNIVERSITY,,,,,7700003277,,ERDF grant payment,CM1 1SQ,"87,030.41",Yes
"Housing, Communities & Local Government",MHCLG,06/11/2018,ERDF Work in Progress � Resource,Decentralisation and Local Growth,ANGLIA RUSKIN UNIVERSITY,,,,,7700003278,,ERDF grant payment,CM1 1SQ,"103,337.59",Yes
"Housing, Communities & Local Government",MHCLG,06/11/2018,ERDF Work in Progress � Resource,Decentralisation and Local Growth,HERTFORDSHIRE COUNTY COUNCIL,,Large,,,7700003274,,ERDF grant payment,SG13 8DN,"14,355.38",Yes
"Housing, Communities & Local Government",MHCLG,06/11/2018,ERDF Work in Progress � Resource,Decentralisation and Local Growth,KENT COUNTY COUNCIL,,Large,,,7700003279,,ERDF grant payment,ME14 1XQ,"46,185.00",Yes
"Housing, Communities & Local Government",MHCLG,06/11/2018,ERDF Work in Progress � Resource,Decentralisation and Local Growth,LINCOLN BUSINESS IMPROVEMENT GROUP,,Small,,,7700003272,,ERDF grant payment,LN2 1HA,"65,204.90",Yes
"Housing, Communities & Local Government",MHCLG,06/11/2018,ERDF Work in Progress � Resource,Decentralisation and Local Growth,NEWCASTLE CITY COUNCIL,,,,,7700003280,,ERDF grant payment,NE1 8QH,"5,557.86",Yes
"Housing, Communities & Local Government",MHCLG,06/11/2018,ERDF Work in Progress � Resource,Decentralisation and Local Growth,NORFOLK COUNTY COUNCIL,,,,,7700003275,,ERDF grant payment,NR1 2DH,"35,347.18",Yes
"Housing, Communities & Local Government",MHCLG,06/11/2018,ERDF Work in Progress � Resource,Decentralisation and Local Growth,NORTHUMBERLAND BUSINESS SERVICE LTD,,Small,,,7700003271,,ERDF grant payment,NE63 8AP,"24,575.56",Yes
"Housing, Communities & Local Government",MHCLG,06/11/2018,ERDF Work in Progress � Resource,Decentralisation and Local Growth,SHEPWAY DISTRICT COUNCIL,,,,,7700003281,,ERDF grant payment,CT20 2QY,"12,271.19",Yes
"Housing, Communities & Local Government",MHCLG,06/11/2018,ERDF Work in Progress � Resource,Decentralisation and Local Growth,SOUTHEND-ON-SEA BOROUGH COUNCIL,,,,,7700003273,,ERDF grant payment,SS2 6ER,"173,701.13",Yes
"Housing, Communities & Local Government",MHCLG,06/11/2018,ERDF Work in Progress � Resource,Decentralisation and Local Growth,SOUTHEND-ON-SEA BOROUGH COUNCIL,,,,,7700003276,,ERDF grant offset,SS2 6ER,"-14,890.11",Yes
"Housing, Communities & Local Government",MHCLG,06/11/2018,EXP � PURCHASE OF GOODS /SERVICES R & D,Housing & BSP,BUILDING RESEARCH ESTABLISHMENT,,Large,,896495033,5106240914,Technical Services,Construction Products Regulation - Support Milestone payment,WD25 9XX,"12,291.00",
"Housing, Communities & Local Government",MHCLG,06/11/2018,"Furniture, Fittings and carpets",Chief Finance Office,WAGSTAFF BROS LTD,,,,210307773,5106240844,"Furniture, Fixtures and Fittings",pecialist equipment for reasonable adj,EC1V 4JR,349.96,
"Housing, Communities & Local Government",MHCLG,06/11/2018,"Furniture, Fittings and carpets",Chief Finance Office,WAGSTAFF BROS LTD,,,,210307773,5106240895,"Furniture, Fixtures and Fittings",pecialist equipment for reasonable adj,EC1V 4JR,656.63,
"Housing, Communities & Local Government",MHCLG,06/11/2018,"IT - PC, Network & Hardware",Chief Finance Office,X M A LTD,,Large,,298484148,5106240539,ICT Hardware,Philips Monitor (See Line Text),NG11 7EP,"61,646.64",
"Housing, Communities & Local Government",MHCLG,06/11/2018,"IT - PC, Network & Hardware",Chief Finance Office,X M A LTD,,Large,,298484148,5106240917,ICT Hardware,Keyboard,NG11 7EP,100.22,
"Housing, Communities & Local Government",MHCLG,06/11/2018,"IT - PC, Network & Hardware",Chief Finance Office,X M A LTD,,Large,,298484148,5106240917,ICT Hardware,Mice,NG11 7EP,100.22,
"Housing, Communities & Local Government",MHCLG,06/11/2018,"IT - PC, Network & Hardware",Chief Finance Office,X M A LTD,,Large,,298484148,5106240917,ICT Hardware,Surface Adapter,NG11 7EP,987.08,
"Housing, Communities & Local Government",MHCLG,06/11/2018,"IT - PC, Network & Hardware",Chief Finance Office,X M A LTD,,Large,,298484148,5106240931,ICT Hardware,Keyboard,NG11 7EP,81.43,
"Housing, Communities & Local Government",MHCLG,06/11/2018,"IT - PC, Network & Hardware",Chief Finance Office,X M A LTD,,Large,,298484148,5106240931,ICT Hardware,Mice,NG11 7EP,81.43,
"Housing, Communities & Local Government",MHCLG,06/11/2018,"IT - PC, Network & Hardware",Chief Finance Office,X M A LTD,,Large,,298484148,5106240931,ICT Hardware,Surface Adapter,NG11 7EP,802,
"Housing, Communities & Local Government",MHCLG,06/11/2018,Payroll Services,Chief Finance Office,CGI IT UK LIMITED,,Large,,239881618,5106240857,Business Process Outsourcing Services,Payroll Services & Licences,EC3M 3BY,"10,483.99",
"Housing, Communities & Local Government",MHCLG,06/11/2018,Payroll Services,Chief Finance Office,CGI IT UK LIMITED,,Large,,239881618,5106240919,Business Process Outsourcing Services,Payroll Services & Licences,EC3M 3BY,250.7,
"Housing, Communities & Local Government",MHCLG,06/11/2018,Professional services,Housing & BSP,MICHAEL A FOX ASSOCIATES LTD,,Micro,,,5106240846,Technical Services,critical technical review of HSL report,HG4 2NP,540,
"Housing, Communities & Local Government",MHCLG,06/11/2018,Steady State Service Provision,Housing & BSP,SERCO LTD,,Large,,216308056,5106240902,Business Process Outsourcing Services,Right to buy agent,RG27 9UY,"30,366.74",
"Housing, Communities & Local Government",MHCLG,06/11/2018,Training,Chief Finance Office,ACT NOW TRAINING LTD,,Micro,,732511501,5106240921,Development and Training,Civil Service Training,WF12 9QE,349,
"Housing, Communities & Local Government",MHCLG,06/11/2018,Training,Chief Finance Office,KPMG LLP (CSL),,Large,,,5106240680,Development and Training,Civil Service Training,E14 5GL,"1,607.00",
"Housing, Communities & Local Government",MHCLG,06/11/2018,Training,Chief Finance Office,KPMG LLP (CSL),,Large,,,5106240794,Development and Training,Civil Service Training,E14 5GL,"3,500.00",
"Housing, Communities & Local Government",MHCLG,06/11/2018,Training,Chief Finance Office,LONDON SCHOOL OF ECONOMICS (FEES),,Large,,,5106240923,Development and Training,Civil Service Training,WC2A 2AE,"5,364.00",
"Housing, Communities & Local Government",MHCLG,07/11/2018,Conferences and Meeting Facilities,Housing & BSP,CALDER CONFERENCES  LTD,,Small,,,2100287419,Business Travel Accommodation,Conferences,LS16 6RF,288,
"Housing, Communities & Local Government",MHCLG,07/11/2018,Conferences and Meeting Facilities,Local Government & Public Services,CALDER CONFERENCES  LTD,,Small,,,2100287419,Business Travel Accommodation,Conferences,LS16 6RF,"2,052.00",
"Housing, Communities & Local Government",MHCLG,07/11/2018,Current (non AEF) Grants to Local Authorities,Local Government & Public Services,BARNSLEY MBC,,,,211178595,5000412193,,Expanded Troubled Families Programme Payment by Re,S70 2AQ,"108,800.00",Yes
"Housing, Communities & Local Government",MHCLG,07/11/2018,Current (non AEF) Grants to Local Authorities,Local Government & Public Services,BATH & NE SOMERSET DC (HSG),,,,214502499,5000412168,,Expanded Troubled Families Programme Payment by Re,BA1 5AW,"47,200.00",Yes
"Housing, Communities & Local Government",MHCLG,07/11/2018,Current (non AEF) Grants to Local Authorities,Local Government & Public Services,BEDFORD UNITARY AUTHORITY,,,,225682160,5000412318,,Expanded Troubled Families Programme Payment by Re,MK40 1SJ,"39,200.00",Yes
"Housing, Communities & Local Government",MHCLG,07/11/2018,Current (non AEF) Grants to Local Authorities,Local Government & Public Services,BEXLEY LB (HSG),,,,,5000412169,,Expanded Troubled Families Programme Payment by Re,DA8 1TL,"72,000.00",Yes
"Housing, Communities & Local Government",MHCLG,07/11/2018,Current (non AEF) Grants to Local Authorities,Local Government & Public Services,BIRMINGHAM CITY CNCL,,,,213780559,5000412194,,Expanded Troubled Families Programme Payment by Re,B2 2AJ,"471,200.00",Yes
"Housing, Communities & Local Government",MHCLG,07/11/2018,Current (non AEF) Grants to Local Authorities,Local Government & Public Services,BLACKBURN WITH DARWEN BC,,,,,5000412195,,Expanded Troubled Families Programme Payment by Re,BB1 7DY,"108,800.00",Yes
"Housing, Communities & Local Government",MHCLG,07/11/2018,Current (non AEF) Grants to Local Authorities,Local Government & Public Services,BLACKPOOL BC,,,,,5000412197,,Expanded Troubled Families Programme Payment by Re,FY1 1NA,"62,400.00",Yes
"Housing, Communities & Local Government",MHCLG,07/11/2018,Current (non AEF) Grants to Local Authorities,Local Government & Public Services,BOURNEMOUTH DC,,,,,5000412198,,Expanded Troubled Families Programme Payment by Re,BH2 6EB,"100,800.00",Yes
"Housing, Communities & Local Government",MHCLG,07/11/2018,Current (non AEF) Grants to Local Authorities,Local Government & Public Services,BRACKNELL FOREST DC,,,,236184867,5000412200,,Expanded Troubled Families Programme Payment by Re,RG12 1AQ,"15,200.00",Yes
"Housing, Communities & Local Government",MHCLG,07/11/2018,Current (non AEF) Grants to Local Authorities,Local Government & Public Services,BRADFORD MBC,,,,,5000412201,,Expanded Troubled Families Programme Payment by Re,BD1 1HX,"41,600.00",Yes
"Housing, Communities & Local Government",MHCLG,07/11/2018,Current (non AEF) Grants to Local Authorities,Local Government & Public Services,BRENT LB (HSG),,,,,5000412170,,Expanded Troubled Families Programme Payment by Re,HA9 9HD,"60,000.00",Yes
"Housing, Communities & Local Government",MHCLG,07/11/2018,Current (non AEF) Grants to Local Authorities,Local Government & Public Services,BROMLEY LB,,,,211331954,5000412203,,Expanded Troubled Families Programme Payment by Re,BR1 3UH,"67,200.00",Yes
"Housing, Communities & Local Government",MHCLG,07/11/2018,Current (non AEF) Grants to Local Authorities,Local Government & Public Services,BUCKINGHAMSHIRE CC,,,,293750923,5000412204,,Expanded Troubled Families Programme Payment by Re,HP20 1UD,"116,800.00",Yes
"Housing, Communities & Local Government",MHCLG,07/11/2018,Current (non AEF) Grants to Local Authorities,Local Government & Public Services,CAMBRIDGESHIRE COUNTY CNCL,,,,219047347,5000412205,,Expanded Troubled Families Programme Payment by Re,CB3 0AP,"144,000.00",Yes
"Housing, Communities & Local Government",MHCLG,07/11/2018,Current (non AEF) Grants to Local Authorities,Local Government & Public Services,CENTRAL BEDFORDSHIRE COUNCIL,,,,232624882,5000412316,,Expanded Troubled Families Programme Payment by Re,SG17 5TQ,"15,200.00",Yes
"Housing, Communities & Local Government",MHCLG,07/11/2018,Current (non AEF) Grants to Local Authorities,Local Government & Public Services,CHESHIRE EAST COUNCIL,,Large,,,5000412317,,Expanded Troubled Families Programme Payment by Re,CW11 1HZ,"155,200.00",Yes
"Housing, Communities & Local Government",MHCLG,07/11/2018,Current (non AEF) Grants to Local Authorities,Local Government & Public Services,CITY OF SUNDERLAND (HSG),,,,215599312,5000412171,,Expanded Troubled Families Programme Payment by Re,SR2 7DN,"79,200.00",Yes
"Housing, Communities & Local Government",MHCLG,07/11/2018,Current (non AEF) Grants to Local Authorities,Local Government & Public Services,CITY OF WAKEFIELD MDC,,,,,5000412297,,Expanded Troubled Families Programme Payment by Re,WF1 2QW,"96,000.00",Yes
"Housing, Communities & Local Government",MHCLG,07/11/2018,Current (non AEF) Grants to Local Authorities,Local Government & Public Services,CORNWALL UNITARY AUTHORITY,,,,211334404,5000412321,,Expanded Troubled Families Programme Payment by Re,TR1 3AY,"207,200.00",Yes
"Housing, Communities & Local Government",MHCLG,07/11/2018,Current (non AEF) Grants to Local Authorities,Local Government & Public Services,COVENTRY CITY CNCL,,,,210384802,5000412206,,Expanded Troubled Families Programme Payment by Re,CV1 2QL,"44,000.00",Yes
"Housing, Communities & Local Government",MHCLG,07/11/2018,Current (non AEF) Grants to Local Authorities,Local Government & Public Services,COVENTRY CITY CNCL,,,,210384802,5000412207,,Attachment Fees Phase 2,CV1 2QL,"307,000.00",Yes
"Housing, Communities & Local Government",MHCLG,07/11/2018,Current (non AEF) Grants to Local Authorities,Local Government & Public Services,CROYDON LB,,,,212419973,5000412208,,Expanded Troubled Families Programme Payment by Re,CR0 1EA,"180,000.00",Yes
"Housing, Communities & Local Government",MHCLG,07/11/2018,Current (non AEF) Grants to Local Authorities,Local Government & Public Services,CUMBRIA COUNTY CNCL,,,,211316542,5000412209,,Expanded Troubled Families Programme Payment by Re,CA3 8NA,"196,800.00",Yes
"Housing, Communities & Local Government",MHCLG,07/11/2018,Current (non AEF) Grants to Local Authorities,Local Government & Public Services,DARLINGTON BC,,,,,5000412210,,Expanded Troubled Families Programme Payment by Re,TS19 1JA,"19,200.00",Yes
"Housing, Communities & Local Government",MHCLG,07/11/2018,Current (non AEF) Grants to Local Authorities,Local Government & Public Services,DERBY CITY CNCL,,,,229641378,5000412211,,Expanded Troubled Families Programme Payment by Re,DE1 2FS,"119,200.00",Yes
"Housing, Communities & Local Government",MHCLG,07/11/2018,Current (non AEF) Grants to Local Authorities,Local Government & Public Services,DERBY CITY CNCL,,,,229641378,5000412212,,Attachment Fees Phase 2,DE1 2FS,"245,000.00",Yes
"Housing, Communities & Local Government",MHCLG,07/11/2018,Current (non AEF) Grants to Local Authorities,Local Government & Public Services,DERBYSHIRE COUNTYCOUNCIL,,,,232152967,5000412213,,Expanded Troubled Families Programme Payment by Re,DE4 3AG,"284,800.00",Yes
"Housing, Communities & Local Government",MHCLG,07/11/2018,Current (non AEF) Grants to Local Authorities,Local Government & Public Services,DEVON COUNTY CNCL,,,,213754018,5000412214,,Expanded Troubled Families Programme Payment by Re,EX2 4QJ,"421,600.00",Yes
"Housing, Communities & Local Government",MHCLG,07/11/2018,Current (non AEF) Grants to Local Authorities,Local Government & Public Services,DONCASTER MBC,,,,,5000412216,,Expanded Troubled Families Programme Payment by Re,DN1 3QA,"156,000.00",Yes
"Housing, Communities & Local Government",MHCLG,07/11/2018,Current (non AEF) Grants to Local Authorities,Local Government & Public Services,DORSET COUNTY CNCL,,,,225431279,5000412217,,Expanded Troubled Families Programme Payment by Re,DT1 1XJ,"240,800.00",Yes
"Housing, Communities & Local Government",MHCLG,07/11/2018,Current (non AEF) Grants to Local Authorities,Local Government & Public Services,DORSET COUNTY CNCL,,,,225431279,5000412218,,Attachment Fees Phase 2,DT1 1XJ,"176,000.00",Yes
"Housing, Communities & Local Government",MHCLG,07/11/2018,Current (non AEF) Grants to Local Authorities,Local Government & Public Services,DUDLEY MBC,,,,,5000412219,,Expanded Troubled Families Programme Payment by Re,DY1 1HF,"92,000.00",Yes
"Housing, Communities & Local Government",MHCLG,07/11/2018,Current (non AEF) Grants to Local Authorities,Local Government & Public Services,EAST RIDING OF YORKS (HSG),,,,423159987,5000412172,,Expanded Troubled Families Programme Payment by Re,HU17 9BA,"73,600.00",Yes
"Housing, Communities & Local Government",MHCLG,07/11/2018,Current (non AEF) Grants to Local Authorities,Local Government & Public Services,EAST SUSSEX COUNTY CNCL,,,,,5000412221,,Expanded Troubled Families Programme Payment by Re,BN7 1SF,"213,600.00",Yes
"Housing, Communities & Local Government",MHCLG,07/11/2018,Current (non AEF) Grants to Local Authorities,Local Government & Public Services,ENFIELD LB,,,,,5000412222,,Expanded Troubled Families Programme Payment by Re,EN1 3XF,"160,000.00",Yes
"Housing, Communities & Local Government",MHCLG,07/11/2018,Current (non AEF) Grants to Local Authorities,Local Government & Public Services,ESSEX COUNTY CNCL,,,,233572986,5000412223,,Expanded Troubled Families Programme Payment by Re,CM1 1JZ,"81,600.00",Yes
"Housing, Communities & Local Government",MHCLG,07/11/2018,Current (non AEF) Grants to Local Authorities,Local Government & Public Services,GATESHEAD COUNCIL,,,,216116041,5000412224,,Expanded Troubled Families Programme Payment by Re,NE8 1HH,"44,800.00",Yes
"Housing, Communities & Local Government",MHCLG,07/11/2018,Current (non AEF) Grants to Local Authorities,Local Government & Public Services,GLOUCESTERSHIRE COUNTY CNCL,,,,211272067,5000412225,,Expanded Troubled Families Programme Payment by Re,GL1 2TG,"249,600.00",Yes
"Housing, Communities & Local Government",MHCLG,07/11/2018,Current (non AEF) Grants to Local Authorities,Local Government & Public Services,GREENWICH LB,,,,,5000412226,,Expanded Troubled Families Programme Payment by Re,SE18 6HQ,"140,800.00",Yes
"Housing, Communities & Local Government",MHCLG,07/11/2018,Current (non AEF) Grants to Local Authorities,Local Government & Public Services,HALTON BC (HSG),,,,,5000412173,,Expanded Troubled Families Programme Payment by Re,WA8 7QF,"56,800.00",Yes
"Housing, Communities & Local Government",MHCLG,07/11/2018,Current (non AEF) Grants to Local Authorities,Local Government & Public Services,HAMMERSMITH & FULHAM LB,,,,216929489,5000412228,,Expanded Troubled Families Programme Payment by Re,W6 9JU,"60,000.00",Yes
"Housing, Communities & Local Government",MHCLG,07/11/2018,Current (non AEF) Grants to Local Authorities,Local Government & Public Services,HAMPSHIRE COUNTY COUNCIL,,,,211325832,5000412229,,Expanded Troubled Families Programme Payment by Re,SO23 8UB,"48,000.00",Yes
"Housing, Communities & Local Government",MHCLG,07/11/2018,Current (non AEF) Grants to Local Authorities,Local Government & Public Services,HARINGEY LB,,,,217471767,5000412230,,Expanded Troubled Families Programme Payment by Re,N22 4TR,"216,800.00",Yes
"Housing, Communities & Local Government",MHCLG,07/11/2018,Current (non AEF) Grants to Local Authorities,Local Government & Public Services,HARROW LB,,,,,5000412231,,Expanded Troubled Families Programme Payment by Re,HA1 2UZ,"40,000.00",Yes
"Housing, Communities & Local Government",MHCLG,07/11/2018,Current (non AEF) Grants to Local Authorities,Local Government & Public Services,HARTLEPOOL BOROUGH COUNCIL,,,,424291797,5000412232,,Expanded Troubled Families Programme Payment by Re,TS24 8AY,"68,000.00",Yes
"Housing, Communities & Local Government",MHCLG,07/11/2018,Current (non AEF) Grants to Local Authorities,Local Government & Public Services,HAVERING LB,,,,211209770,5000412233,,Expanded Troubled Families Programme Payment by Re,RM1 3BB,"24,800.00",Yes
"Housing, Communities & Local Government",MHCLG,07/11/2018,Current (non AEF) Grants to Local Authorities,Local Government & Public Services,HEREFORDSHIRE COUNCIL,,,,,5000412174,,Expanded Troubled Families Programme Payment by Re,HR4 0XH,"44,800.00",Yes
"Housing, Communities & Local Government",MHCLG,07/11/2018,Current (non AEF) Grants to Local Authorities,Local Government & Public Services,HERTFORDSHIRE COUNTY CNCL,,,,210659897,5000412234,,Expanded Troubled Families Programme Payment by Re,SG13 8DQ,"308,800.00",Yes
"Housing, Communities & Local Government",MHCLG,07/11/2018,Current (non AEF) Grants to Local Authorities,Local Government & Public Services,HILLINGDON LB,,,,211198585,5000412235,,Expanded Troubled Families Programme Payment by Re,UB8 1UW,"85,600.00",Yes
"Housing, Communities & Local Government",MHCLG,07/11/2018,Current (non AEF) Grants to Local Authorities,Local Government & Public Services,HOUNSLOW LB,,Public Bodies,,210388999,5000412236,,Expanded Troubled Families Programme Payment by Re,TW3 4DN,"43,200.00",Yes
"Housing, Communities & Local Government",MHCLG,07/11/2018,Current (non AEF) Grants to Local Authorities,Local Government & Public Services,HULL CITY COUNCIL,,,,217460984,5000412241,,Expanded Troubled Families Programme Payment by Re,HU1 2AA,"261,600.00",Yes
"Housing, Communities & Local Government",MHCLG,07/11/2018,Current (non AEF) Grants to Local Authorities,Local Government & Public Services,ISLE OF WIGHT CNCL,,,,236431730,5000412237,,Expanded Troubled Families Programme Payment by Re,PO30 1UD,"35,200.00",Yes
"Housing, Communities & Local Government",MHCLG,07/11/2018,Current (non AEF) Grants to Local Authorities,Local Government & Public Services,KINGSTON UPON THAMES  (HSG),,,,211379941,5000412175,,Expanded Troubled Families Programme Payment by Re,KT1 1EU,"25,600.00",Yes
"Housing, Communities & Local Government",MHCLG,07/11/2018,Current (non AEF) Grants to Local Authorities,Local Government & Public Services,KIRKLEES COUNCIL (HSG),,Large,,,5000412176,,Expanded Troubled Families Programme Payment by Re,HD1 2YU,"164,800.00",Yes
"Housing, Communities & Local Government",MHCLG,07/11/2018,Current (non AEF) Grants to Local Authorities,Local Government & Public Services,KNOWSLEY MBC,,,,,5000412242,,Expanded Troubled Families Programme Payment by Re,L36 9YZ,"120,800.00",Yes
"Housing, Communities & Local Government",MHCLG,07/11/2018,Current (non AEF) Grants to Local Authorities,Local Government & Public Services,LANCASHIRE COUNTY CNCL,,,,233136584,5000412244,,Expanded Troubled Families Programme Payment by Re,PR1 8RD,"264,800.00",Yes
"Housing, Communities & Local Government",MHCLG,07/11/2018,Current (non AEF) Grants to Local Authorities,Local Government & Public Services,LEICESTER CITY CNCL,,,,228219960,5000412177,,Attachment Fees Phase 2,LE1 1FZ,"399,000.00",Yes
"Housing, Communities & Local Government",MHCLG,07/11/2018,Current (non AEF) Grants to Local Authorities,Local Government & Public Services,LEICESTER CITY CNCL,,,,228219960,5000412178,,Expanded Troubled Families Programme Payment by Re,LE1 1FZ,"229,600.00",Yes
"Housing, Communities & Local Government",MHCLG,07/11/2018,Current (non AEF) Grants to Local Authorities,Local Government & Public Services,LEICESTERSHIRE COUNTY CNCL,,,,423679836,5000412246,,Expanded Troubled Families Programme Payment by Re,LE3 8RB,"178,400.00",Yes
"Housing, Communities & Local Government",MHCLG,07/11/2018,Current (non AEF) Grants to Local Authorities,Local Government & Public Services,LEWISHAM LB (HSG),,Large,,235653300,5000412179,,Expanded Troubled Families Programme Payment by Re,SE6 4RU,"120,800.00",Yes
"Housing, Communities & Local Government",MHCLG,07/11/2018,Current (non AEF) Grants to Local Authorities,Local Government & Public Services,LINCOLNSHIRE COUNTY COUNCIL,,,,,5000412247,,Expanded Troubled Families Programme Payment by Re,LN2 1DY,"496,800.00",Yes
"Housing, Communities & Local Government",MHCLG,07/11/2018,Current (non AEF) Grants to Local Authorities,Local Government & Public Services,LONDON BOROUGH OF BARNET,,,,211049507,5000412192,,Expanded Troubled Families Programme Payment by Re,NN1 1NP,"85,600.00",Yes
"Housing, Communities & Local Government",MHCLG,07/11/2018,Current (non AEF) Grants to Local Authorities,Local Government & Public Services,LONDON BOROUGH OF HACKNEY,,,,225221597,5000412227,,Expanded Troubled Families Programme Payment by Re,E8 4RU,"280,000.00",Yes
"Housing, Communities & Local Government",MHCLG,07/11/2018,Current (non AEF) Grants to Local Authorities,Local Government & Public Services,LONDON BOROUGH OF LAMBETH,,,,228216479,5000412243,,Expanded Troubled Families Programme Payment by Re,SW2 1RL,"144,000.00",Yes
"Housing, Communities & Local Government",MHCLG,07/11/2018,Current (non AEF) Grants to Local Authorities,Local Government & Public Services,LONDON BOROUGH OF NEWHAM,,,,211381004,5000412253,,Expanded Troubled Families Programme Payment by Re,E16 2QU,"156,000.00",Yes
"Housing, Communities & Local Government",MHCLG,07/11/2018,Current (non AEF) Grants to Local Authorities,Local Government & Public Services,LONDON BOROUGH OF REDBRIDGE,,,,211341417,5000412270,,Expanded Troubled Families Programme Payment by Re,IG1 1NN,"76,000.00",Yes
"Housing, Communities & Local Government",MHCLG,07/11/2018,Current (non AEF) Grants to Local Authorities,Local Government & Public Services,LUTON BC,,,,365112155,5000412248,,Expanded Troubled Families Programme Payment by Re,LU1 2BQ,"97,600.00",Yes
"Housing, Communities & Local Government",MHCLG,07/11/2018,Current (non AEF) Grants to Local Authorities,Local Government & Public Services,MEDWAY TOWNS D C (HSG),,,,,5000412180,,Expanded Troubled Families Programme Payment by Re,ME4 4TR,"40,000.00",Yes
"Housing, Communities & Local Government",MHCLG,07/11/2018,Current (non AEF) Grants to Local Authorities,Local Government & Public Services,MERTON LB,,,,,5000412249,,Expanded Troubled Families Programme Payment by Re,SM4 5DX,"44,000.00",Yes
"Housing, Communities & Local Government",MHCLG,07/11/2018,Current (non AEF) Grants to Local Authorities,Local Government & Public Services,MIDDLESBROUGH BC,,Large,,,5000412250,,Expanded Troubled Families Programme Payment by Re,TS1 9GA,"97,600.00",Yes
"Housing, Communities & Local Government",MHCLG,07/11/2018,Current (non AEF) Grants to Local Authorities,Local Government & Public Services,MILTON KEYNES BC,,,,,5000412251,,Expanded Troubled Families Programme Payment by Re,MK9 3WJ,"84,000.00",Yes
"Housing, Communities & Local Government",MHCLG,07/11/2018,Current (non AEF) Grants to Local Authorities,Local Government & Public Services,NEWCASTLE UPON TYNE DC,,,,239154040,5000412252,,Expanded Troubled Families Programme Payment by Re,NE99 2BN,"168,000.00",Yes
"Housing, Communities & Local Government",MHCLG,07/11/2018,Current (non AEF) Grants to Local Authorities,Local Government & Public Services,NORFOLK COUNTY COUNCIL,,,,232602789,5000412254,,Expanded Troubled Families Programme Payment by Re,NR1 2DW,"160,000.00",Yes
"Housing, Communities & Local Government",MHCLG,07/11/2018,Current (non AEF) Grants to Local Authorities,Local Government & Public Services,NORTH EAST LINCOLN DC (HSG),,,,211242737,5000412181,,Expanded Troubled Families Programme Payment by Re,DN35 8LN,"121,600.00",Yes
"Housing, Communities & Local Government",MHCLG,07/11/2018,Current (non AEF) Grants to Local Authorities,Local Government & Public Services,NORTH LINCOLNSHIRE DC (HSG),,Public Bodies,,424005502,5000412182,,Expanded Troubled Families Programme Payment by Re,DN16 1AB,"28,800.00",Yes
"Housing, Communities & Local Government",MHCLG,07/11/2018,Current (non AEF) Grants to Local Authorities,Local Government & Public Services,NORTH SOMERSET COUNCIL,,Large,,,5000412255,,Expanded Troubled Families Programme Payment by Re,BS23 1UJ,"26,400.00",Yes
"Housing, Communities & Local Government",MHCLG,07/11/2018,Current (non AEF) Grants to Local Authorities,Local Government & Public Services,NORTH TYNESIDE MBC,,,,,5000412257,,Expanded Troubled Families Programme Payment by Re,NE27 0BY,"61,600.00",Yes
"Housing, Communities & Local Government",MHCLG,07/11/2018,Current (non AEF) Grants to Local Authorities,Local Government & Public Services,NORTH YORKSHIRE CC (DL7 8AL),,,,,5000412258,,Expanded Troubled Families Programme Payment by Re,DL7 8AL,"134,400.00",Yes
"Housing, Communities & Local Government",MHCLG,07/11/2018,Current (non AEF) Grants to Local Authorities,Local Government & Public Services,NORTHAMPTONSHIRE COUNTY COUNCIL,,,,,5000412259,,Expanded Troubled Families Programme Payment by Re,CB3 0AP,"14,400.00",Yes
"Housing, Communities & Local Government",MHCLG,07/11/2018,Current (non AEF) Grants to Local Authorities,Local Government & Public Services,NORTHUMBERLAND COUNTY COUNCIL,,,,210308905,5000412315,,Expanded Troubled Families Programme Payment by Re,NE61 2EF,"92,000.00",Yes
"Housing, Communities & Local Government",MHCLG,07/11/2018,Current (non AEF) Grants to Local Authorities,Local Government & Public Services,NOTTINGHAM CITY COUNCIL,,,,214495447,5000412260,,Expanded Troubled Families Programme Payment by Re,NG2 3NG,"222,400.00",Yes
"Housing, Communities & Local Government",MHCLG,07/11/2018,Current (non AEF) Grants to Local Authorities,Local Government & Public Services,NOTTINGHAMSHIRE COUNTY CNCL,,,,,5000412261,,Expanded Troubled Families Programme Payment by Re,NG1 4BU,"168,000.00",Yes
"Housing, Communities & Local Government",MHCLG,07/11/2018,Current (non AEF) Grants to Local Authorities,Local Government & Public Services,OXFORDSHIRE CC,,,,228216438,5000412262,,Expanded Troubled Families Programme Payment by Re,OX1 1TH,"148,000.00",Yes
"Housing, Communities & Local Government",MHCLG,07/11/2018,Current (non AEF) Grants to Local Authorities,Local Government & Public Services,PETERBOROUGH CITY CNCL,,,,,5000412263,,Expanded Troubled Families Programme Payment by Re,PE1 1HG,"187,200.00",Yes
"Housing, Communities & Local Government",MHCLG,07/11/2018,Current (non AEF) Grants to Local Authorities,Local Government & Public Services,PLYMOUTH CITY CNCL,,Public Bodies,,236416095,5000412265,,Expanded Troubled Families Programme Payment by Re,PL1 2AA,"190,400.00",Yes
"Housing, Communities & Local Government",MHCLG,07/11/2018,Current (non AEF) Grants to Local Authorities,Local Government & Public Services,POOLE BC (HSG),,,,,5000412183,,Expanded Troubled Families Programme Payment by Re,BH15 2RU,"52,000.00",Yes
"Housing, Communities & Local Government",MHCLG,07/11/2018,Current (non AEF) Grants to Local Authorities,Local Government & Public Services,PORTSMOUTH CITY COUNCIL,,Large,,211183082,5000412266,,Expanded Troubled Families Programme Payment by Re,PO1 2AR,"104,000.00",Yes
"Housing, Communities & Local Government",MHCLG,07/11/2018,Current (non AEF) Grants to Local Authorities,Local Government & Public Services,READING BC,,,,210220399,5000412267,,Expanded Troubled Families Programme Payment by Re,RG1 7TD,"10,400.00",Yes
"Housing, Communities & Local Government",MHCLG,07/11/2018,Current (non AEF) Grants to Local Authorities,Local Government & Public Services,REDCAR & CLEVELAND BOROUGH COUNCIL,,,,215175196,5000412271,,Expanded Troubled Families Programme Payment by Re,TS10 1RT,"69,600.00",Yes
"Housing, Communities & Local Government",MHCLG,07/11/2018,Current (non AEF) Grants to Local Authorities,Local Government & Public Services,RICHMOND UPON THAMES LB,,,,228868535,5000412272,,Expanded Troubled Families Programme Payment by Re,TW1 3BZ,"26,400.00",Yes
"Housing, Communities & Local Government",MHCLG,07/11/2018,Current (non AEF) Grants to Local Authorities,Local Government & Public Services,ROTHERHAM MBC,,,,211266937,5000412273,,Expanded Troubled Families Programme Payment by Re,S60 1AE,"147,200.00",Yes
"Housing, Communities & Local Government",MHCLG,07/11/2018,Current (non AEF) Grants to Local Authorities,Local Government & Public Services,ROYAL BOROUGH OF KENSINGTON & CHELS,,,,211124466,5000412238,,Expanded Troubled Families Programme Payment by Re,W8 7NX,"36,000.00",Yes
"Housing, Communities & Local Government",MHCLG,07/11/2018,Current (non AEF) Grants to Local Authorities,Local Government & Public Services,RUTLAND CC,,,,,5000412274,,Expanded Troubled Families Programme Payment by Re,LE15 6HP,"8,800.00",Yes
"Housing, Communities & Local Government",MHCLG,07/11/2018,Current (non AEF) Grants to Local Authorities,Local Government & Public Services,SANDWELL MBC,,,,,5000412275,,Expanded Troubled Families Programme Payment by Re,B69 3BS,"239,200.00",Yes
"Housing, Communities & Local Government",MHCLG,07/11/2018,Current (non AEF) Grants to Local Authorities,Local Government & Public Services,SEFTON MBC,,Public Bodies,,232936125,5000412276,,Expanded Troubled Families Programme Payment by Re,L20 3NJ,"211,200.00",Yes
"Housing, Communities & Local Government",MHCLG,07/11/2018,Current (non AEF) Grants to Local Authorities,Local Government & Public Services,SHROPSHIRE UNITARY AUTHORITY,,,,217036490,5000412320,,Expanded Troubled Families Programme Payment by Re,SY2 6ND,"107,200.00",Yes
"Housing, Communities & Local Government",MHCLG,07/11/2018,Current (non AEF) Grants to Local Authorities,Local Government & Public Services,SLOUGH BOROUGH COUNCIL,,,,211027123,5000412277,,Expanded Troubled Families Programme Payment by Re,SL1 3UF,"36,000.00",Yes
"Housing, Communities & Local Government",MHCLG,07/11/2018,Current (non AEF) Grants to Local Authorities,Local Government & Public Services,SOLIHULL MBC,,,,,5000412279,,Expanded Troubled Families Programme Payment by Re,B91 3QR,"44,000.00",Yes
"Housing, Communities & Local Government",MHCLG,07/11/2018,Current (non AEF) Grants to Local Authorities,Local Government & Public Services,SOMERSET COUNTY CNCL,,,,211229406,5000412280,,Expanded Troubled Families Programme Payment by Re,TA1 4DY,"228,800.00",Yes
"Housing, Communities & Local Government",MHCLG,07/11/2018,Current (non AEF) Grants to Local Authorities,Local Government & Public Services,SOUTH GLOUCESTERSHIRE DC (HSG),,,,,5000412185,,Expanded Troubled Families Programme Payment by Re,BS15 2TR,"59,200.00",Yes
"Housing, Communities & Local Government",MHCLG,07/11/2018,Current (non AEF) Grants to Local Authorities,Local Government & Public Services,SOUTH TYNESIDE COUNCIL,,,,345736438,5000412282,,Expanded Troubled Families Programme Payment by Re,NE33 2RL,"46,400.00",Yes
"Housing, Communities & Local Government",MHCLG,07/11/2018,Current (non AEF) Grants to Local Authorities,Local Government & Public Services,SOUTHAMPTON CITY CNCL,,,,216927475,5000412284,,Expanded Troubled Families Programme Payment by Re,SO14 7LY,"69,600.00",Yes
"Housing, Communities & Local Government",MHCLG,07/11/2018,Current (non AEF) Grants to Local Authorities,Local Government & Public Services,SOUTHEND ON SEA BC,,,,217067263,5000412285,,Expanded Troubled Families Programme Payment by Re,SS2 6EP,"45,600.00",Yes
"Housing, Communities & Local Government",MHCLG,07/11/2018,Current (non AEF) Grants to Local Authorities,Local Government & Public Services,SOUTHWARK LB,,,,,5000412286,,Expanded Troubled Families Programme Payment by Re,SE1 2QH,"51,200.00",Yes
"Housing, Communities & Local Government",MHCLG,07/11/2018,Current (non AEF) Grants to Local Authorities,Local Government & Public Services,ST HELENS MBC,,,,,5000412287,,Expanded Troubled Families Programme Payment by Re,WA10 1HP,"58,400.00",Yes
"Housing, Communities & Local Government",MHCLG,07/11/2018,Current (non AEF) Grants to Local Authorities,Local Government & Public Services,STOCKTON-ON-TEES BC (HSG),,,,,5000412186,,Expanded Troubled Families Programme Payment by Re,TS23 2YS,"45,600.00",Yes
"Housing, Communities & Local Government",MHCLG,07/11/2018,Current (non AEF) Grants to Local Authorities,Local Government & Public Services,STOKE ON TRENT CITY COUNCIL,,,,216037890,5000412289,,Expanded Troubled Families Programme Payment by Re,ST4 1HH,"193,600.00",Yes
"Housing, Communities & Local Government",MHCLG,07/11/2018,Current (non AEF) Grants to Local Authorities,Local Government & Public Services,SUFFOLK CC (SOCIAL CARE SERV) (H,,,,385614821,5000412187,,Expanded Troubled Families Programme Payment by Re,IP4 1LH,"255,200.00",Yes
"Housing, Communities & Local Government",MHCLG,07/11/2018,Current (non AEF) Grants to Local Authorities,Local Government & Public Services,SURREY COUNTY COUNCIL,,Public Bodies,,,5000412290,,Expanded Troubled Families Programme Payment by Re,KT1 2DN,"233,600.00",Yes
"Housing, Communities & Local Government",MHCLG,07/11/2018,Current (non AEF) Grants to Local Authorities,Local Government & Public Services,SURREY COUNTY COUNCIL,,Public Bodies,,,5000412291,,Attachment Fees Phase 2,KT1 2DN,"334,500.00",Yes
"Housing, Communities & Local Government",MHCLG,07/11/2018,Current (non AEF) Grants to Local Authorities,Local Government & Public Services,SWINDON BC,,,,458639697,5000412292,,Expanded Troubled Families Programme Payment by Re,SN1 2JH,"85,600.00",Yes
"Housing, Communities & Local Government",MHCLG,07/11/2018,Current (non AEF) Grants to Local Authorities,Local Government & Public Services,TELFORD & WREKIN COUNCIL,,,,230235801,5000412293,,Expanded Troubled Families Programme Payment by Re,TF3 4NT,"65,600.00",Yes
"Housing, Communities & Local Government",MHCLG,07/11/2018,Current (non AEF) Grants to Local Authorities,Local Government & Public Services,THURROCK  BOROUGH COUNCIL,,,,,5000412295,,Expanded Troubled Families Programme Payment by Re,RM17 6SL,"96,000.00",Yes
"Housing, Communities & Local Government",MHCLG,07/11/2018,Current (non AEF) Grants to Local Authorities,Local Government & Public Services,TORBAY BC,,,,,5000412296,,Expanded Troubled Families Programme Payment by Re,TQ1 3DR,"40,800.00",Yes
"Housing, Communities & Local Government",MHCLG,07/11/2018,Current (non AEF) Grants to Local Authorities,Local Government & Public Services,TOWER HAMLETS LB (HSG),,,,231315144,5000412188,,Expanded Troubled Families Programme Payment by Re,E14 2BG,"152,800.00",Yes
"Housing, Communities & Local Government",MHCLG,07/11/2018,Current (non AEF) Grants to Local Authorities,Local Government & Public Services,WALSALL MBC,,,,212515585,5000412298,,Expanded Troubled Families Programme Payment by Re,WS1 1TW,"253,600.00",Yes
"Housing, Communities & Local Government",MHCLG,07/11/2018,Current (non AEF) Grants to Local Authorities,Local Government & Public Services,WALTHAM FOREST LB,,,,,5000412299,,Expanded Troubled Families Programme Payment by Re,E17 4JA,"250,400.00",Yes
"Housing, Communities & Local Government",MHCLG,07/11/2018,Current (non AEF) Grants to Local Authorities,Local Government & Public Services,WARRINGTON BC,,,,,5000412300,,Expanded Troubled Families Programme Payment by Re,WA1 1BN,"50,400.00",Yes
"Housing, Communities & Local Government",MHCLG,07/11/2018,Current (non AEF) Grants to Local Authorities,Local Government & Public Services,WARWICKSHIRE COUNTY CNCL,,,,210396290,5000412301,,Expanded Troubled Families Programme Payment by Re,CV34 4RH,"231,200.00",Yes
"Housing, Communities & Local Government",MHCLG,07/11/2018,Current (non AEF) Grants to Local Authorities,Local Government & Public Services,WEST SUSSEX CC,,Public Bodies,,232198762,5000412304,,Expanded Troubled Families Programme Payment by Re,PO19 1RG,"240,000.00",Yes
"Housing, Communities & Local Government",MHCLG,07/11/2018,Current (non AEF) Grants to Local Authorities,Local Government & Public Services,WILTSHIRE COUNCIL,,,,211341656,5000412314,,Expanded Troubled Families Programme Payment by Re,BA14 4DS,"40,800.00",Yes
"Housing, Communities & Local Government",MHCLG,07/11/2018,Current (non AEF) Grants to Local Authorities,Local Government & Public Services,WINDSOR & MAIDENHEAD (HSG),,,,227411998,5000412191,,Expanded Troubled Families Programme Payment by Re,SL6 1RF,"11,200.00",Yes
"Housing, Communities & Local Government",MHCLG,07/11/2018,Current (non AEF) Grants to Local Authorities,Local Government & Public Services,WIRRAL MBC,,,,211222602,5000412306,,Attachment Fees Phase 2,CH41 6BU,"314,000.00",Yes
"Housing, Communities & Local Government",MHCLG,07/11/2018,Current (non AEF) Grants to Local Authorities,Local Government & Public Services,WIRRAL MBC,,,,211222602,5000412307,,Expanded Troubled Families Programme Payment by Re,CH41 6BU,"48,000.00",Yes
"Housing, Communities & Local Government",MHCLG,07/11/2018,Current (non AEF) Grants to Local Authorities,Local Government & Public Services,WOKINGHAM DC,,,,,5000412308,,Expanded Troubled Families Programme Payment by Re,RG11 1WJ,"5,600.00",Yes
"Housing, Communities & Local Government",MHCLG,07/11/2018,Current (non AEF) Grants to Local Authorities,Local Government & Public Services,WOLVERHAMPTON MBC,,,,229895453,5000412309,,Expanded Troubled Families Programme Payment by Re,WV1 1RL,"240,000.00",Yes
"Housing, Communities & Local Government",MHCLG,07/11/2018,Current (non AEF) Grants to Local Authorities,Local Government & Public Services,WORCESTERSHIRE COUNTY COUNCIL,,,,230359643,5000412311,,Expanded Troubled Families Programme Payment by Re,WR5 2NP,"136,000.00",Yes
"Housing, Communities & Local Government",MHCLG,07/11/2018,Current (non AEF) Grants to Local Authorities,Local Government & Public Services,YORK CITY CNCL,,,,,5000412312,,Expanded Troubled Families Programme Payment by Re,YO1 0EG,"32,000.00",Yes
"Housing, Communities & Local Government",MHCLG,07/11/2018,Current Grants to Non Profit Bodies,Housing & BSP,CEL GROUP,,Medium,,394794614,5106240937,Technical Services,HIA 01.04.18 - 30.09.20,WA2 0YL,"78,609.92",Yes
"Housing, Communities & Local Government",MHCLG,07/11/2018,Current Grants to Non Profit Bodies,Local Government & Public Services,YOUTH UNITED FOUNDATION,,Small,,,2100287420,,Support to Youth United Foundation to embed integr,SE1 7JW,"62,500.00",Yes
"Housing, Communities & Local Government",MHCLG,07/11/2018,ERDF Work in Progress � Capital,Decentralisation and Local Growth,LEICESTER CITY COUNCIL,,,,,7700003289,,ERDF grant payment,LE1 1FZ,"110,676.82",Yes
"Housing, Communities & Local Government",MHCLG,07/11/2018,ERDF Work in Progress � Capital,Decentralisation and Local Growth,LEICESTER CITY COUNCIL,,,,,7700003290,,ERDF grant payment,LE1 1FZ,"95,493.00",Yes
"Housing, Communities & Local Government",MHCLG,07/11/2018,ERDF Work in Progress � Capital,Decentralisation and Local Growth,NORFOLK&WAVENEY ENTERPRISE SERV'S,,,,,7700003284,,ERDF grant payment,NR2 1JH,"186,528.48",Yes
"Housing, Communities & Local Government",MHCLG,07/11/2018,ERDF Work in Progress � Capital,Decentralisation and Local Growth,PETERBOROUGH ENVIRON CITY TRUST,Yes,Small,,,7700003282,,ERDF grant payment,PE1 1NA,"8,878.02",Yes
"Housing, Communities & Local Government",MHCLG,07/11/2018,ERDF Work in Progress � Capital,Decentralisation and Local Growth,PETERBOROUGH ENVIRON CITY TRUST,Yes,Small,,,7700003285,,ERDF grant payment,PE1 1NA,"11,988.12",Yes
"Housing, Communities & Local Government",MHCLG,07/11/2018,ERDF Work in Progress � Capital,Decentralisation and Local Growth,WOLVERHAMPTON CITY COUNCIL,,,,,7700003283,,ERDF grant payment,WV1 1RL,"18,769.98",Yes
"Housing, Communities & Local Government",MHCLG,07/11/2018,ERDF Work in Progress � Resource,Decentralisation and Local Growth,EXEMPLAS LIMITED,,Medium,,,7700003288,,ERDF grant payment,AL7 3AX,"98,309.11",Yes
"Housing, Communities & Local Government",MHCLG,07/11/2018,ERDF Work in Progress � Resource,Decentralisation and Local Growth,EXEMPLAS TRADE SERVICES LTD,,,,,7700003287,,ERDF grant payment,AL7 3AX,"339,503.36",Yes
"Housing, Communities & Local Government",MHCLG,07/11/2018,ERDF Work in Progress � Resource,Decentralisation and Local Growth,EXEMPLAS TRADE SERVICES LTD,,,,,7700003291,,ERDF grant offset,AL7 3AX,-914.43,Yes
"Housing, Communities & Local Government",MHCLG,07/11/2018,ERDF Work in Progress � Resource,Decentralisation and Local Growth,LEICESTER CITY COUNCIL,,,,,7700003289,,ERDF grant payment,LE1 1FZ,"133,151.35",Yes
"Housing, Communities & Local Government",MHCLG,07/11/2018,ERDF Work in Progress � Resource,Decentralisation and Local Growth,LEICESTER CITY COUNCIL,,,,,7700003290,,ERDF grant payment,LE1 1FZ,"135,082.83",Yes
"Housing, Communities & Local Government",MHCLG,07/11/2018,ERDF Work in Progress � Resource,Decentralisation and Local Growth,NORFOLK&WAVENEY ENTERPRISE SERV'S,,,,,7700003284,,ERDF grant payment,NR2 1JH,"52,995.03",Yes
"Housing, Communities & Local Government",MHCLG,07/11/2018,ERDF Work in Progress � Resource,Decentralisation and Local Growth,PETERBOROUGH ENVIRON CITY TRUST,Yes,Small,,,7700003282,,ERDF grant payment,PE1 1NA,"19,625.71",Yes
"Housing, Communities & Local Government",MHCLG,07/11/2018,ERDF Work in Progress � Resource,Decentralisation and Local Growth,PETERBOROUGH ENVIRON CITY TRUST,Yes,Small,,,7700003285,,ERDF grant payment,PE1 1NA,"8,186.53",Yes
"Housing, Communities & Local Government",MHCLG,07/11/2018,ERDF Work in Progress � Resource,Decentralisation and Local Growth,SURREY UNIVERSITY,,Large,,,7700003286,,ERDF grant payment,GU2 7XH,"52,036.82",Yes
"Housing, Communities & Local Government",MHCLG,07/11/2018,ERDF Work in Progress � Resource,Decentralisation and Local Growth,WOLVERHAMPTON CITY COUNCIL,,,,,7700003283,,ERDF grant payment,WV1 1RL,"19,308.87",Yes
"Housing, Communities & Local Government",MHCLG,07/11/2018,EXP � PURCHASE OF GOODS /SERVICES R & D,Housing & BSP,NORTH EAST PANELS LTD,,Medium,,,5106240942,Research,Purchase of fire door-Invoice No:581313,NE38 8QB,671.6,
"Housing, Communities & Local Government",MHCLG,07/11/2018,Grant in Aid to NDPBs (non budget),Local Government & Public Services,COMMISSION LOCAL ADMINISTRATION,,,,215271508,2100287342,,DCLG DEL 17/18 budget contribution for the CLAE,CV1 3BH,"920,000.00",Yes
"Housing, Communities & Local Government",MHCLG,07/11/2018,"IT - PC, Network & Hardware",Chief Finance Office,PROBRAND LTD,,Medium,,,5106240842,ICT Hardware,Delivery charge,B1 3BP,2.4,
"Housing, Communities & Local Government",MHCLG,07/11/2018,"IT - PC, Network & Hardware",Chief Finance Office,PROBRAND LTD,,Medium,,,5106240842,ICT Hardware,VGA Adaptors for FG46,B1 3BP,304.32,
"Housing, Communities & Local Government",MHCLG,07/11/2018,"IT - PC, Network & Hardware",Chief Finance Office,PROBRAND LTD,,Medium,,,5106240913,ICT Hardware,Philips Monitor,B1 3BP,"1,432.50",
"Housing, Communities & Local Government",MHCLG,07/11/2018,IT - Service Contracts,Chief Finance Office,FUJITSU SERVICES LTD,,Large,,423375062,5106240946,IT Managed / Outsourced Services,NRF0506   Un-Vaulting E-mails,WA3 6GD,"5,561.00",
"Housing, Communities & Local Government",MHCLG,07/11/2018,IT - Software Maintenance,Chief Finance Office,INTERQUEST GROUP UK LIMITED,,Large,,423935241,5106240897,IT Managed / Outsourced Services,SAP FICO Specialist Resource,EC4R 0AN,"13,806.00",
"Housing, Communities & Local Government",MHCLG,07/11/2018,IT - Software Maintenance,Chief Finance Office,KAIZEN ASSOCIATES LTD,,Micro,,217482430,5106240949,IT Managed / Outsourced Services,Technical Support costs,SE1 6SW,"25,651.94",
"Housing, Communities & Local Government",MHCLG,07/11/2018,IT - Software Maintenance,Chief Finance Office,KAIZEN ASSOCIATES LTD,,Micro,,217482430,5106240949,IT Managed / Outsourced Services,Technical Support costs,SE1 6SW,"37,157.92",
"Housing, Communities & Local Government",MHCLG,07/11/2018,IT - Software Maintenance,Chief Finance Office,LEIDOS,,Large,,399909910,5106240947,IT Managed / Outsourced Services,MCIS/TESA Application Support Extension,G3 8EP,"14,250.00",
"Housing, Communities & Local Government",MHCLG,07/11/2018,Online Database Information Retrieval,Chief Finance Office,EMAP PUBLISHING LIMITED,,Large,,288409154,5106240953,ICT Services,Renewal of Corporate Subs to LGC,EC2A 4NQ,"18,000.00",
"Housing, Communities & Local Government",MHCLG,07/11/2018,Professional services,Decentralisation and Local Growth,VALUATION OFFICE AGENCY,,Public Bodies,,215253886,5106240948,Financial,Planning changes to support infrastructure of local area,W1D 5BU,"1,799.84",
"Housing, Communities & Local Government",MHCLG,07/11/2018,Professional services,Local Government & Public Services,WSP UK LTD,,Large,,,5106240789,Financial,Design engineer services,WC2A 1AF,"2,400.00",
"Housing, Communities & Local Government",MHCLG,07/11/2018,Professional services,Local Government & Public Services,WSP UK LTD,,Large,,,5106240791,Financial,Design engineer services,WC2A 1AF,"48,149.00",
"Housing, Communities & Local Government",MHCLG,07/11/2018,Professional services,Local Government & Public Services,WSP UK LTD,,Large,,,5106240793,Financial,Design engineer services,WC2A 1AF,"3,600.00",
"Housing, Communities & Local Government",MHCLG,07/11/2018,Repayments of LA Grant (Cap),Decentralisation and Local Growth,PORTSMOUTH CITY COUNCIL,,Public Bodies,,211183082,2300002993,,RGF clawback - 518C_A Portsmouth City Council Nov,PO1 2AR,"-13,149.36",
"Housing, Communities & Local Government",MHCLG,07/11/2018,Steady State Service Provision,Decentralisation and Local Growth,LOCALITY,,Medium,,347998312,5106240888,Business Process Outsourcing Services,18/19 technical support,N1 6DR,"50,409.00",
"Housing, Communities & Local Government",MHCLG,07/11/2018,Training,Chief Finance Office,LSR TRAINING AND DEVELOPMENT LTD,,Micro,,,5106240898,Development and Training,Civil Service Training,YO42 4RE,690,
"Housing, Communities & Local Government",MHCLG,08/11/2018,Current Grants to Non Profit Bodies,Housing & BSP,WOMEN'S AID FEDERATION,Yes,,,,5000412855,,Domestic Abuse (Vol),BS2 2EH,"82,890.00",Yes
"Housing, Communities & Local Government",MHCLG,08/11/2018,ERDF Work in Progress � Capital,Decentralisation and Local Growth,KINGMOOR PARK PROPERTIES LTD,,,,,7700003299,,ERDF grant payment,CA6 4SJ,"336,222.77",Yes
"Housing, Communities & Local Government",MHCLG,08/11/2018,ERDF Work in Progress � Resource,Decentralisation and Local Growth,BISHOP GROSSETESTE UNIVERSITY,,,,215867520,7700003295,,ERDF grant payment,LN1 3DY,"28,701.57",Yes
"Housing, Communities & Local Government",MHCLG,08/11/2018,ERDF Work in Progress � Resource,Decentralisation and Local Growth,CENTRE FOR PROCESS INNOVATION LTD,,Large,,,7700003292,,ERDF grant payment,TS10 4RF,"32,290.00",Yes
"Housing, Communities & Local Government",MHCLG,08/11/2018,ERDF Work in Progress � Resource,Decentralisation and Local Growth,CENTRE FOR PROCESS INNOVATION LTD,,Large,,,7700003294,,ERDF grant payment,TS10 4RF,"61,322.86",Yes
"Housing, Communities & Local Government",MHCLG,08/11/2018,ERDF Work in Progress � Resource,Decentralisation and Local Growth,DURHAM COUNTY COUNCIL,,,,,7700003296,,ERDF grant payment,DH1 5UF,"58,195.20",Yes
"Housing, Communities & Local Government",MHCLG,08/11/2018,ERDF Work in Progress � Resource,Decentralisation and Local Growth,KING'S COLLEGE LONDON,,,,,7700003293,,ERDF grant payment,WC2R 2LS,"199,366.55",Yes
"Housing, Communities & Local Government",MHCLG,08/11/2018,ERDF Work in Progress � Resource,Decentralisation and Local Growth,KING'S COLLEGE LONDON,,,,,7700003298,,ERDF grant offset,WC2R 2LS,"-2,430.79",Yes
"Housing, Communities & Local Government",MHCLG,08/11/2018,ERDF Work in Progress � Resource,Decentralisation and Local Growth,LEEDS CITY COUNCIL,,Large,,,7700003297,,ERDF grant payment,LS2 8HD,"12,084.03",Yes
"Housing, Communities & Local Government",MHCLG,08/11/2018,EXP � PURCHASE OF GOODS /SERVICES R & D,Chief Finance Office,OXFORD CONS SOCIAL INCLUSION LTD,,Micro,,735385184,5106240959,Research,Research - Indices of Deprivation,BN1 4GQ,"12,500.00",
"Housing, Communities & Local Government",MHCLG,08/11/2018,EXP � PURCHASE OF GOODS /SERVICES R & D,Local Government & Public Services,BEHAVIOURAL INSIGHTS LTD,,Large,,,5106240803,Research,Insights re. Holocaust Memorial Centre,SW1H 9NP,"20,273.25",
"Housing, Communities & Local Government",MHCLG,08/11/2018,Facilities Management (ISD use only),Decentralisation and Local Growth,STUDIO VENUE COMPANY LTD,,,,515644651,5106240961,Property Occupation,Room Hire includingrefreshments,B2 5EP,780,
"Housing, Communities & Local Government",MHCLG,08/11/2018,Grant in Aid to NDPBs (non budget),Local Government & Public Services,VALUATION TRIBUNAL SERVICE,,,,211218366,2100287451,,GIA to VTS for NDR appeals,E1 8EU,"260,000.00",Yes
"Housing, Communities & Local Government",MHCLG,08/11/2018,IT - Service Contracts,Chief Finance Office,MARKLOGIC CORPORATION,,Large,,,5106240970,IT Managed / Outsourced Services,Support for licences March19-30/06/2019,CA 94070,"17,634.72",
"Housing, Communities & Local Government",MHCLG,08/11/2018,IT - Service Contracts,Chief Finance Office,MARKLOGIC CORPORATION,,Large,,,5106240972,IT Managed / Outsourced Services,Support for licences 28/10/18   30/06/20,CA 94070,"68,057.75",
"Housing, Communities & Local Government",MHCLG,08/11/2018,Online Database Information Retrieval,Chief Finance Office,PROQUEST INFORMATION & LEARNING,,Large,,219284999,5106240978,ICT Services,European Newsstream 18-19,CB5 8SW,"4,350.00",
"Housing, Communities & Local Government",MHCLG,08/11/2018,Professional services,Local Government & Public Services,FOUR COMMUNICATIONS LIMITED,,Large,,,5106240960,Advertising,Other Costs Around Exhibition Strategy,SE1 9BF,"1,219.57",
"Housing, Communities & Local Government",MHCLG,08/11/2018,Repayments of Private Sect Grant (Cap),Decentralisation and Local Growth,KROMEK LIMITED,,Medium,,,2300002912,,RGF Clawback - KROMEK Ltd - April 2018,TS21 3FD,"-495,935.00",
"Housing, Communities & Local Government",MHCLG,08/11/2018,Web Services,Decentralisation and Local Growth,AGENTO DIGITAL LTD,,Micro,,,5106240968,ICT Services,MHCLG Intranet Hosting Renewal,E11 1JH,"2,520.00",
"Housing, Communities & Local Government",MHCLG,08/11/2018,Web Services,Decentralisation and Local Growth,PULSION TECHNOLOGY LTD,,Small,,,5106240963,ICT Services,Web Hosting & Support,G4 9XA,"7,200.00",
"Housing, Communities & Local Government",MHCLG,09/11/2018,Current (non AEF) Grants to Local Authorities,Local Government & Public Services,BLACKBURN WITH DARWEN BC,,Large,,212925606,2100287337,,Integration Area Programme,BB1 7DY,"343,133.00",Yes
"Housing, Communities & Local Government",MHCLG,09/11/2018,Current (non AEF) Grants to Local Authorities,Local Government & Public Services,BRADFORD MBC,,Public Bodies,,218122162,2100287338,,Integration Area Programme,BD1 1HY,"593,550.00",Yes
"Housing, Communities & Local Government",MHCLG,09/11/2018,Current (non AEF) Grants to Local Authorities,Local Government & Public Services,LB WALTHAM FOREST,,,,213754109,2100287341,,Integration Area Programme,E17 4JA,"574,000.00",Yes
"Housing, Communities & Local Government",MHCLG,09/11/2018,Current (non AEF) Grants to Local Authorities,Local Government & Public Services,PETERBOROUGH CITY COUNCIL(PE1 1HQ),,,,,2100287339,,Integration Area Programme,PE1 1HQ,"366,380.00",Yes
"Housing, Communities & Local Government",MHCLG,09/11/2018,Current (non AEF) Grants to Local Authorities,Local Government & Public Services,WALSALL MBC,,Public Bodies,,212313210,2100287340,,Integration Area Programme,WS1 1TW,"406,600.00",Yes
"Housing, Communities & Local Government",MHCLG,09/11/2018,ERDF Work in Progress � Resource,Decentralisation and Local Growth,BUILDING RESEARCH ESTABLISHMENT LTD,,Medium,,,7700003300,,ERDF grant payment,WD25 9XX,"22,282.38",Yes
"Housing, Communities & Local Government",MHCLG,09/11/2018,ERDF Work in Progress � Resource,Decentralisation and Local Growth,NEWABLE LTD,,Medium,,,7700003301,,ERDF grant payment,SE1 2JN,"88,502.10",Yes
"Housing, Communities & Local Government",MHCLG,09/11/2018,"IT - PC, Network & Hardware",Chief Finance Office,PROBRAND LTD,,Medium,,,5106240535,ICT Hardware,Philips Monitor,B1 3BP,"19,768.50",
"Housing, Communities & Local Government",MHCLG,09/11/2018,"IT - PC, Network & Hardware",Chief Finance Office,X M A LTD,,Large,,298484148,5106240847,ICT Hardware,Keyboard,NG11 7EP,81.43,
"Housing, Communities & Local Government",MHCLG,09/11/2018,"IT - PC, Network & Hardware",Chief Finance Office,X M A LTD,,Large,,298484148,5106240847,ICT Hardware,Mice,NG11 7EP,81.43,
"Housing, Communities & Local Government",MHCLG,09/11/2018,"IT - PC, Network & Hardware",Chief Finance Office,X M A LTD,,Large,,298484148,5106240847,ICT Hardware,Surface Adapter,NG11 7EP,802,
"Housing, Communities & Local Government",MHCLG,09/11/2018,"IT - PC, Network & Hardware",Chief Finance Office,X M A LTD,,Large,,298484148,5106240940,ICT Hardware,Surface Laptop,NG11 7EP,"312,921.84",
"Housing, Communities & Local Government",MHCLG,09/11/2018,"IT - PC, Network & Hardware",Chief Finance Office,X M A LTD,,Large,,298484148,5106240945,ICT Hardware,Surface GO Machines Silver,NG11 7EP,"1,059.74",
"Housing, Communities & Local Government",MHCLG,09/11/2018,"IT - PC, Network & Hardware",Chief Finance Office,X M A LTD,,Large,,298484148,5106240945,ICT Hardware,Surface Go Cover,NG11 7EP,148.47,
"Housing, Communities & Local Government",MHCLG,09/11/2018,"IT - PC, Network & Hardware",Chief Finance Office,X M A LTD,,Large,,298484148,5106240945,ICT Hardware,Surface Go Pen Silver,NG11 7EP,148.46,
"Housing, Communities & Local Government",MHCLG,09/11/2018,"IT - PC, Network & Hardware",Chief Finance Office,X M A LTD,,Large,,298484148,5106241013,ICT Hardware,Surface Laptop,NG11 7EP,"152,397.00",
"Housing, Communities & Local Government",MHCLG,09/11/2018,"IT - PC, Network & Hardware",Chief Finance Office,X M A LTD,,Large,,298484148,5106241021,ICT Hardware,3yr Warranty (Surface Laptop),NG11 7EP,"47,827.68",
"Housing, Communities & Local Government",MHCLG,09/11/2018,"IT - PC, Network & Hardware",Chief Finance Office,X M A LTD,,Large,,298484148,5106241021,ICT Hardware,3yr Warranty (Surface Pro),NG11 7EP,"4,524.24",
"Housing, Communities & Local Government",MHCLG,09/11/2018,IT - Software Maintenance,Chief Finance Office,ARCH CONSULTING LTD,,Small,,543735104,5106240981,IT Managed / Outsourced Services,Capital Admin 18/19,W4 1PF,"8,491.50",
"Housing, Communities & Local Government",MHCLG,09/11/2018,Legal Fees,Decentralisation and Local Growth,LANDMARK CHAMBERS,,Medium,,732521732,5106240989,Legal,Legal Advice,EC4A 2HG,864,
"Housing, Communities & Local Government",MHCLG,09/11/2018,Mobile phone costs,Chief Finance Office,GAMMA TELECOM LTD,,Large,,,5106240848,Telecoms,Running costs Non-VAT,EC4M 7RD,76.25,
"Housing, Communities & Local Government",MHCLG,09/11/2018,Mobile phone costs,Chief Finance Office,GAMMA TELECOM LTD,,Large,,,5106240848,Telecoms,SO12178 - Contract Running Costs 18/19,EC4M 7RD,660.42,
"Housing, Communities & Local Government",MHCLG,09/11/2018,Mobile phone costs,Chief Finance Office,GAMMA TELECOM LTD,,Large,,,5106241022,Telecoms,SO12178 - Contract Running Costs 18/19,EC4M 7RD,"10,461.24",
"Housing, Communities & Local Government",MHCLG,09/11/2018,Services provided by other Govt Orgs,Chief Finance Office,H M TREASURY,,Public Bodies,,233590996,5106241011,IT Managed / Outsourced Services,GIAA ERDF 17-18 Fixed Fee,NR7 0HS,"422,520.50",Yes
"Housing, Communities & Local Government",MHCLG,12/11/2018,Advertising,Decentralisation and Local Growth,GUARDIAN NEWS & MEDIA,,Large,,,5106240939,Advertising,Press Office Job Adverts,N1 9GU,"1,080.00",
"Housing, Communities & Local Government",MHCLG,12/11/2018,Agency Staff,Chief Finance Office,ALEXANDER MANN SOLUTIONS LTD,,Large,,,5106241031,Contingent Labour,Interim Manager,EC2N 3AG,"3,165.24",
"Housing, Communities & Local Government",MHCLG,12/11/2018,Agency Staff,Chief Finance Office,ALEXANDER MANN SOLUTIONS LTD,,Large,,,5106241035,Contingent Labour,Interim Manager,EC2N 3AG,"2,468.88",
"Housing, Communities & Local Government",MHCLG,12/11/2018,Agency Staff,Chief Finance Office,ALEXANDER MANN SOLUTIONS LTD,,Large,,,5106241038,Contingent Labour,Interim Manager,EC2N 3AG,"10,761.84",
"Housing, Communities & Local Government",MHCLG,12/11/2018,Agency Staff,Chief Finance Office,ALEXANDER MANN SOLUTIONS LTD,,Large,,,5106241039,Contingent Labour,Admin - KR,EC2N 3AG,746.81,
"Housing, Communities & Local Government",MHCLG,12/11/2018,Agency Staff,Chief Finance Office,ALEXANDER MANN SOLUTIONS LTD,,Large,,,5106241040,Contingent Labour,Interim Manager,EC2N 3AG,"2,463.72",
"Housing, Communities & Local Government",MHCLG,12/11/2018,Agency Staff,Chief Finance Office,ALEXANDER MANN SOLUTIONS LTD,,Large,,,5106241041,Contingent Labour,Interim Manager,EC2N 3AG,"3,151.56",
"Housing, Communities & Local Government",MHCLG,12/11/2018,Agency Staff,Chief Finance Office,ALEXANDER MANN SOLUTIONS LTD,,Large,,,5106241042,Contingent Labour,Interim Manager,EC2N 3AG,"2,992.80",
"Housing, Communities & Local Government",MHCLG,12/11/2018,Agency Staff,Chief Finance Office,ALEXANDER MANN SOLUTIONS LTD,,Large,,,5106241043,Contingent Labour,Interim Manager,EC2N 3AG,"1,663.01",
"Housing, Communities & Local Government",MHCLG,12/11/2018,Agency Staff,Chief Finance Office,ALEXANDER MANN SOLUTIONS LTD,,Large,,,5106241044,Contingent Labour,Interim Manager,EC2N 3AG,"2,089.04",
"Housing, Communities & Local Government",MHCLG,12/11/2018,Agency Staff,Chief Finance Office,ALEXANDER MANN SOLUTIONS LTD,,Large,,,5106241046,Contingent Labour,Interim Manager,EC2N 3AG,"2,520.24",
"Housing, Communities & Local Government",MHCLG,12/11/2018,Agency Staff,Chief Finance Office,ALEXANDER MANN SOLUTIONS LTD,,Large,,,5106241049,Contingent Labour,Interim Manager,EC2N 3AG,"3,118.38",
"Housing, Communities & Local Government",MHCLG,12/11/2018,Agency Staff,Chief Finance Office,ALEXANDER MANN SOLUTIONS LTD,,Large,,,5106241050,Contingent Labour,Interim Manager,EC2N 3AG,"2,454.30",
"Housing, Communities & Local Government",MHCLG,12/11/2018,Agency Staff,Chief Finance Office,ALEXANDER MANN SOLUTIONS LTD,,Large,,,5106241051,Contingent Labour,Interim Manager,EC2N 3AG,"11,341.08",
"Housing, Communities & Local Government",MHCLG,12/11/2018,Agency Staff,Chief Finance Office,ALEXANDER MANN SOLUTIONS LTD,,Large,,,5106241053,Contingent Labour,Interim Manager,EC2N 3AG,"3,238.26",
"Housing, Communities & Local Government",MHCLG,12/11/2018,Agency Staff,Chief Finance Office,ALEXANDER MANN SOLUTIONS LTD,,Large,,,5106241054,Contingent Labour,Interim Manager,EC2N 3AG,"7,371.62",
"Housing, Communities & Local Government",MHCLG,12/11/2018,Agency Staff,Chief Finance Office,ALEXANDER MANN SOLUTIONS LTD,,Large,,,5106241055,Contingent Labour,Interim Manager,EC2N 3AG,"10,320.41",
"Housing, Communities & Local Government",MHCLG,12/11/2018,Agency Staff,Chief Finance Office,ALEXANDER MANN SOLUTIONS LTD,,Large,,,5106241057,Contingent Labour,Interim Manager,EC2N 3AG,"2,520.24",
"Housing, Communities & Local Government",MHCLG,12/11/2018,Agency Staff,Chief Finance Office,ALEXANDER MANN SOLUTIONS LTD,,Large,,,5106241058,Contingent Labour,Interim Manager,EC2N 3AG,"21,815.76",
"Housing, Communities & Local Government",MHCLG,12/11/2018,Agency Staff,Chief Finance Office,ALEXANDER MANN SOLUTIONS LTD,,Large,,,5106241059,Contingent Labour,Interim Manager,EC2N 3AG,"2,278.99",
"Housing, Communities & Local Government",MHCLG,12/11/2018,Agency Staff,Chief Finance Office,ALEXANDER MANN SOLUTIONS LTD,,Large,,,5106241060,Contingent Labour,Interim Manager,EC2N 3AG,"4,114.80",
"Housing, Communities & Local Government",MHCLG,12/11/2018,Agency Staff,Chief Finance Office,ALEXANDER MANN SOLUTIONS LTD,,Large,,,5106241061,Contingent Labour,Interim Manager,EC2N 3AG,681.1,
"Housing, Communities & Local Government",MHCLG,12/11/2018,Agency Staff,Chief Finance Office,ALEXANDER MANN SOLUTIONS LTD,,Large,,,5106241067,Contingent Labour,Interim Manager,EC2N 3AG,"3,497.58",
"Housing, Communities & Local Government",MHCLG,12/11/2018,Agency Staff,Chief Finance Office,ALEXANDER MANN SOLUTIONS LTD,,Large,,,5106241068,Contingent Labour,Interim Manager,EC2N 3AG,"3,291.84",
"Housing, Communities & Local Government",MHCLG,12/11/2018,Agency Staff,Chief Finance Office,ALEXANDER MANN SOLUTIONS LTD,,Large,,,5106241073,Contingent Labour,Interim Manager,EC2N 3AG,"7,961.76",
"Housing, Communities & Local Government",MHCLG,12/11/2018,Agency Staff,Chief Finance Office,ALEXANDER MANN SOLUTIONS LTD,,Large,,,5106241082,Contingent Labour,Interim Manager,EC2N 3AG,"6,583.68",
"Housing, Communities & Local Government",MHCLG,12/11/2018,Agency Staff,Decentralisation and Local Growth,ALEXANDER MANN SOLUTIONS LTD,,Large,,,5106241032,Contingent Labour,Official Travel & Subsistence,EC2N 3AG,50.4,
"Housing, Communities & Local Government",MHCLG,12/11/2018,Agency Staff,Decentralisation and Local Growth,ALEXANDER MANN SOLUTIONS LTD,,Large,,,5106241032,Contingent Labour,Interim Manager,EC2N 3AG,"2,734.75",
"Housing, Communities & Local Government",MHCLG,12/11/2018,Agency Staff,Housing & BSP,ALEXANDER MANN SOLUTIONS LTD,,Large,,,5106241033,Contingent Labour,Interim Manager,EC2N 3AG,"1,323.90",
"Housing, Communities & Local Government",MHCLG,12/11/2018,Agency Staff,Housing & BSP,ALEXANDER MANN SOLUTIONS LTD,,Large,,,5106241056,Contingent Labour,Interim Manager,EC2N 3AG,"19,371.31",
"Housing, Communities & Local Government",MHCLG,12/11/2018,Agency Staff,Local Government & Public Services,ALEXANDER MANN SOLUTIONS LTD,,Large,,,5106241037,Contingent Labour,Temporary workers,EC2N 3AG,"1,734.35",
"Housing, Communities & Local Government",MHCLG,12/11/2018,Agency Staff,Local Government & Public Services,ALEXANDER MANN SOLUTIONS LTD,,Large,,,5106241052,Contingent Labour,Interim Manager,EC2N 3AG,906.17,
"Housing, Communities & Local Government",MHCLG,12/11/2018,Catering,Chief Finance Office,BOUYGUES E&S FM UK LTD (CATERING),,Large,,,2100287536,Business Support,Consolidated Monthly Catering Oct 2018,SE1 7EU,280.7,
"Housing, Communities & Local Government",MHCLG,12/11/2018,Catering,Chief Finance Office,BOUYGUES E&S FM UK LTD (CATERING),,Large,,,2100287536,Business Support,Consolidated Monthly Catering Oct 2018,SE1 7EU,37.5,
"Housing, Communities & Local Government",MHCLG,12/11/2018,Catering,Decentralisation and Local Growth,BOUYGUES E&S FM UK LTD (CATERING),,Large,,,2100287536,Business Support,Consolidated Monthly Catering Oct 2018,SE1 7EU,278.2,
"Housing, Communities & Local Government",MHCLG,12/11/2018,Catering,Decentralisation and Local Growth,BOUYGUES E&S FM UK LTD (CATERING),,Large,,,2100287536,Business Support,Consolidated Monthly Catering Oct 2018,SE1 7EU,18,
"Housing, Communities & Local Government",MHCLG,12/11/2018,Catering,Decentralisation and Local Growth,BOUYGUES E&S FM UK LTD (CATERING),,Large,,,2100287536,Business Support,Consolidated Monthly Catering Oct 2018,SE1 7EU,9,
"Housing, Communities & Local Government",MHCLG,12/11/2018,Catering,Decentralisation and Local Growth,BOUYGUES E&S FM UK LTD (CATERING),,Large,,,2100287536,Business Support,Consolidated Monthly Catering Oct 2018,SE1 7EU,42.5,
"Housing, Communities & Local Government",MHCLG,12/11/2018,Catering,Decentralisation and Local Growth,BOUYGUES E&S FM UK LTD (CATERING),,Large,,,2100287536,Business Support,Consolidated Monthly Catering Oct 2018,SE1 7EU,23.7,
"Housing, Communities & Local Government",MHCLG,12/11/2018,Catering,Decentralisation and Local Growth,BOUYGUES E&S FM UK LTD (CATERING),,Large,,,2100287536,Business Support,Consolidated Monthly Catering Oct 2018,SE1 7EU,23.7,
"Housing, Communities & Local Government",MHCLG,12/11/2018,Catering,Decentralisation and Local Growth,BOUYGUES E&S FM UK LTD (CATERING),,Large,,,2100287536,Business Support,Consolidated Monthly Catering Oct 2018,SE1 7EU,60,
"Housing, Communities & Local Government",MHCLG,12/11/2018,Catering,Decentralisation and Local Growth,BOUYGUES E&S FM UK LTD (CATERING),,Large,,,2100287536,Business Support,Consolidated Monthly Catering Oct 2018,SE1 7EU,32.6,
"Housing, Communities & Local Government",MHCLG,12/11/2018,Catering,Housing & BSP,BOUYGUES E&S FM UK LTD (CATERING),,Large,,,2100287536,Business Support,Consolidated Monthly Catering Oct 2018,SE1 7EU,37,
"Housing, Communities & Local Government",MHCLG,12/11/2018,Catering,Housing & BSP,BOUYGUES E&S FM UK LTD (CATERING),,Large,,,2100287536,Business Support,Consolidated Monthly Catering Oct 2018,SE1 7EU,93.52,
"Housing, Communities & Local Government",MHCLG,12/11/2018,Catering,Housing & BSP,BOUYGUES E&S FM UK LTD (CATERING),,Large,,,2100287536,Business Support,Consolidated Monthly Catering Oct 2018,SE1 7EU,181.9,
"Housing, Communities & Local Government",MHCLG,12/11/2018,Catering,Housing & BSP,BOUYGUES E&S FM UK LTD (CATERING),,Large,,,2100287536,Business Support,Consolidated Monthly Catering Oct 2018,SE1 7EU,172.95,
"Housing, Communities & Local Government",MHCLG,12/11/2018,Catering,Housing & BSP,BOUYGUES E&S FM UK LTD (CATERING),,Large,,,2100287536,Business Support,Consolidated Monthly Catering Oct 2018,SE1 7EU,151.5,
"Housing, Communities & Local Government",MHCLG,12/11/2018,Catering,Housing & BSP,BOUYGUES E&S FM UK LTD (CATERING),,Large,,,2100287536,Business Support,Consolidated Monthly Catering Oct 2018,SE1 7EU,45,
"Housing, Communities & Local Government",MHCLG,12/11/2018,Catering,Housing & BSP,BOUYGUES E&S FM UK LTD (CATERING),,Large,,,2100287536,Business Support,Consolidated Monthly Catering Oct 2018,SE1 7EU,"1,061.60",
"Housing, Communities & Local Government",MHCLG,12/11/2018,Catering,Housing & BSP,BOUYGUES E&S FM UK LTD (CATERING),,Large,,,2100287536,Business Support,Consolidated Monthly Catering Oct 2018,SE1 7EU,75,
"Housing, Communities & Local Government",MHCLG,12/11/2018,Catering,Housing & BSP,BOUYGUES E&S FM UK LTD (CATERING),,Large,,,2100287536,Business Support,Consolidated Monthly Catering Oct 2018,SE1 7EU,246.5,
"Housing, Communities & Local Government",MHCLG,12/11/2018,Catering,Local Government & Public Services,BOUYGUES E&S FM UK LTD (CATERING),,Large,,,2100287536,Business Support,Consolidated Monthly Catering Oct 2018,SE1 7EU,90,
"Housing, Communities & Local Government",MHCLG,12/11/2018,Catering,Local Government & Public Services,BOUYGUES E&S FM UK LTD (CATERING),,Large,,,2100287536,Business Support,Consolidated Monthly Catering Oct 2018,SE1 7EU,72,
"Housing, Communities & Local Government",MHCLG,12/11/2018,Catering,Local Government & Public Services,BOUYGUES E&S FM UK LTD (CATERING),,Large,,,2100287536,Business Support,Consolidated Monthly Catering Oct 2018,SE1 7EU,95.2,
"Housing, Communities & Local Government",MHCLG,12/11/2018,Catering,Local Government & Public Services,BOUYGUES E&S FM UK LTD (CATERING),,Large,,,2100287536,Business Support,Consolidated Monthly Catering Oct 2018,SE1 7EU,195.4,
"Housing, Communities & Local Government",MHCLG,12/11/2018,Catering,Local Government & Public Services,BOUYGUES E&S FM UK LTD (CATERING),,Large,,,2100287536,Business Support,Consolidated Monthly Catering Oct 2018,SE1 7EU,175.7,
"Housing, Communities & Local Government",MHCLG,12/11/2018,Courier Services,Decentralisation and Local Growth,ROYAL MAIL,,Large,,212543784,5106241074,Office Solutions,Red Box Delivery Service - Oct 18,S49 1HQ,531,
"Housing, Communities & Local Government",MHCLG,12/11/2018,Current Grants to Non Profit Bodies,Local Government & Public Services,GOOD THINGS FOUNDATION,Yes,Medium,,,2100287353,,Community-Based English Language Programme,S1 2ET,"532,537.50",Yes
"Housing, Communities & Local Government",MHCLG,12/11/2018,Electronic Data Storage,Chief Finance Office,RESTORE PLC,,Large,,,5106241081,Warehousing and Storage,Visions digital storage,RH1 3DY,"4,425.90",
"Housing, Communities & Local Government",MHCLG,12/11/2018,ERDF Work in Progress � Capital,Decentralisation and Local Growth,CORNWALL COUNCIL,,Large,,,7700003306,,ERDF grant payment,TR1 3AY,"11,442.42",Yes
"Housing, Communities & Local Government",MHCLG,12/11/2018,ERDF Work in Progress � Capital,Decentralisation and Local Growth,KENT COUNTY COUNCIL,,Large,,,7700003303,,ERDF grant payment,ME14 1XQ,"192,375.60",Yes
"Housing, Communities & Local Government",MHCLG,12/11/2018,ERDF Work in Progress � Capital,Decentralisation and Local Growth,SOUTHEND-ON-SEA BOROUGH COUNCIL,,,,,7700003308,,ERDF grant payment,SS2 6ER,"225,268.53",Yes
"Housing, Communities & Local Government",MHCLG,12/11/2018,ERDF Work in Progress � Resource,Decentralisation and Local Growth,EDGE HILL UNIVERSITY,,Large,,,7700003305,,ERDF grant payment,L39 4QP,"47,416.00",Yes
"Housing, Communities & Local Government",MHCLG,12/11/2018,ERDF Work in Progress � Resource,Decentralisation and Local Growth,EDGE HILL UNIVERSITY,,Large,,,7700003307,,ERDF grant offset,L39 4QP,"-2,203.50",Yes
"Housing, Communities & Local Government",MHCLG,12/11/2018,ERDF Work in Progress � Resource,Decentralisation and Local Growth,KENT COUNTY COUNCIL,,Large,,,7700003302,,ERDF grant payment,ME14 1XQ,"46,185.00",Yes
"Housing, Communities & Local Government",MHCLG,12/11/2018,ERDF Work in Progress � Resource,Decentralisation and Local Growth,KENT COUNTY COUNCIL,,Large,,,7700003303,,ERDF grant payment,ME14 1XQ,"794,428.22",Yes
"Housing, Communities & Local Government",MHCLG,12/11/2018,ERDF Work in Progress � Resource,Decentralisation and Local Growth,NEWABLE LTD,,Medium,,,7700003309,,ERDF grant payment,SE1 2JN,"151,293.75",Yes
"Housing, Communities & Local Government",MHCLG,12/11/2018,ERDF Work in Progress � Resource,Decentralisation and Local Growth,OXFORD INNOVATION SERVICES LTD,,Medium,,,7700003304,,ERDF grant payment,OX1 1BY,"48,126.30",Yes
"Housing, Communities & Local Government",MHCLG,12/11/2018,ERDF Work in Progress � Resource,Decentralisation and Local Growth,SOUTHEND-ON-SEA BOROUGH COUNCIL,,,,,7700003308,,ERDF grant payment,SS2 6ER,"175,978.90",Yes
"Housing, Communities & Local Government",MHCLG,12/11/2018,EXP � PURCHASE OF GOODS /SERVICES R & D,Local Government & Public Services,FIFTY FIFTY POST PRODUCTION LTD,,Small,,,5106240849,Research,Social Media Clips (Holocaust Testimony),W1F 8EH,"1,150.00",
"Housing, Communities & Local Government",MHCLG,12/11/2018,EXP � PURCHASE OF GOODS /SERVICES R & D,Local Government & Public Services,FIFTY FIFTY POST PRODUCTION LTD,,Small,,,5106241069,Research,Social Media Clips (Holocaust Testimony),W1F 8EH,"1,930.00",
"Housing, Communities & Local Government",MHCLG,12/11/2018,Grant in Aid to NDPBs (non budget),Housing & BSP,HOMES ENGLAND,,Public Bodies,,215576860,2100287595,,Homes England October 2018 Grant in Aid payment,NE11 0NA,"384,971,385.00",Yes
"Housing, Communities & Local Government",MHCLG,12/11/2018,Input VAT Reconciliation Account,Chief Finance Office,BOUYGUES E&S FM UK LTD (CATERING),,Large,,,2100287536,,Monthly catering Oct 2018,SE1 7EU,699.83,
"Housing, Communities & Local Government",MHCLG,12/11/2018,IT - Service Contracts,Chief Finance Office,ALEXANDER MANN SOLUTIONS LTD,,Large,,,5106241034,Contingent Labour,Interim Manager,EC2N 3AG,"3,165.25",
"Housing, Communities & Local Government",MHCLG,12/11/2018,IT Consultancy,Housing & BSP,VALTECH LTD,,Medium,,,5106240982,Consultancy,Discovery work - EPB Register,N1 8AF,"80,220.00",
"Housing, Communities & Local Government",MHCLG,12/11/2018,Medals,Local Government & Public Services,MARSHALLS MONO LTD,,Large,,,5106241079,Learning and Development Materials,Victoria Cross Paving Stones,HX5 9HT,401.54,
"Housing, Communities & Local Government",MHCLG,12/11/2018,Physical Storage,Chief Finance Office,RESTORE PLC,,Large,,,5106241072,Warehousing and Storage,Records storage costs,RH1 3DY,"1,535.72",
"Housing, Communities & Local Government",MHCLG,12/11/2018,Physical Storage,Chief Finance Office,RESTORE PLC,,Large,,,5106241075,Warehousing and Storage,Records storage costs,RH1 3DY,"4,015.21",
"Housing, Communities & Local Government",MHCLG,12/11/2018,Physical Storage,Chief Finance Office,RESTORE PLC,,Large,,,5106241078,Warehousing and Storage,Records storage costs,RH1 3DY,927.35,
"Housing, Communities & Local Government",MHCLG,12/11/2018,Physical Storage,Chief Finance Office,RESTORE PLC,,Large,,,5106241081,Warehousing and Storage,Records storage costs,RH1 3DY,"21,245.69",
"Housing, Communities & Local Government",MHCLG,12/11/2018,Physical Storage,Chief Finance Office,RESTORE PLC,,Large,,,5106241084,Warehousing and Storage,Records storage costs,RH1 3DY,238.2,
"Housing, Communities & Local Government",MHCLG,12/11/2018,Physical Storage,Chief Finance Office,TNT UK LIMITED,,Large,,,2300002920,Warehousing and Storage,Offsite Records Storage FYR 17/18,BL10 9GR,"-1,454.20",
"Housing, Communities & Local Government",MHCLG,12/11/2018,Professional services,Housing & BSP,VALUATION OFFICE AGENCY,,Public Bodies,,215253886,5106241045,Technical Services,Valuation Office Agency - Right to Buy Year 2017-18,W1D 5BU,510,
"Housing, Communities & Local Government",MHCLG,12/11/2018,Professional services,Housing & BSP,VALUATION OFFICE AGENCY,,Public Bodies,,215253886,5106241047,Technical Services,Valuation Office Agency - Right to Buy Year 2017-18,W1D 5BU,"119,898.44",
"Housing, Communities & Local Government",MHCLG,12/11/2018,Publications,Decentralisation and Local Growth,FINANCIAL TIMES LIMITED,,Large,,210104360,5106241066,Learning and Development Materials,FT.com Premium Digital Licence,SE1 9HL,714,
"Housing, Communities & Local Government",MHCLG,12/11/2018,Publications,Decentralisation and Local Growth,KANTAR MEDIA,Yes,Large,,,5106240943,Learning and Development Materials,Press monitoring service monthly subscription,EC2M 2QS,"1,250.00",
"Housing, Communities & Local Government",MHCLG,12/11/2018,Repayments of LA Grant (Cap),Decentralisation and Local Growth,SHEFFIELD CITY COUNCIL,,Large,,228153011,2300002996,,RGF clawback - ref: 000044860 Sheffield C.C 1495,DL1 9UT,"-54,743.75",
"Housing, Communities & Local Government",MHCLG,12/11/2018,Repayments of Private Sect Grant (Cap),Decentralisation and Local Growth,TOYOTA MOTOR MANUFACTURING (UK),,Large,,,2300002953,,RGF clawback - 2151c Toyota September 18,DE1 9TA,"-586,017.00",
"Housing, Communities & Local Government",MHCLG,12/11/2018,Training,Chief Finance Office,CENTRAL HALL WESTMINSTER LTD,,Small,,238100221,5106241065,Development and Training,Civil Service Training,SW1H 9NH,"1,400.00",
"Housing, Communities & Local Government",MHCLG,12/11/2018,Training,Chief Finance Office,LSR TRAINING AND DEVELOPMENT LTD,,Micro,,,5106240958,Development and Training,Civil Service Training,YO42 4RE,840,
"Housing, Communities & Local Government",MHCLG,12/11/2018,Training,Chief Finance Office,UNIVERSITY COLLEGE LONDON,,Large,,,5106241036,Development and Training,Civil Service Training,WC1N 1EH,"4,840.00",
"Housing, Communities & Local Government",MHCLG,12/11/2018,Training,Decentralisation and Local Growth,MEDIA TRAINING LTD,,Small,,570206003,5106241080,Development and Training,Civil Service Training,SE1 1PP,375,
"Housing, Communities & Local Government",MHCLG,12/11/2018,Travel and Subsistence Account,Decentralisation and Local Growth,DIAL A CAB,,Medium,,225338235,2100287537,Business Travel,Official Travel & Subsistence,N1 6AH,347.48,
"Housing, Communities & Local Government",MHCLG,12/11/2018,Travel and Subsistence Account,Decentralisation and Local Growth,DIAL A CAB,,Medium,,225338235,2100287537,Business Travel,Official Travel & Subsistence,N1 6AH,206.09,
"Housing, Communities & Local Government",MHCLG,12/11/2018,Travel and Subsistence Account,Decentralisation and Local Growth,DIAL A CAB,,Medium,,225338235,2100287537,Business Travel,Official Travel & Subsistence,N1 6AH,291.68,
"Housing, Communities & Local Government",MHCLG,13/11/2018,Current Grants to Non Profit Bodies,Local Government & Public Services,ROYAL BOROUGH  KENSINGTON & CHELSEA,,Large,,211124466,2100287596,,for community events for Grenfell fire anniversary,W8 7NX,"50,000.00",Yes
"Housing, Communities & Local Government",MHCLG,13/11/2018,ERDF Work in Progress � Capital,Decentralisation and Local Growth,KENT COUNTY COUNCIL,,Large,,,7700003321,,ERDF grant payment,ME14 1XQ,"82,205.35",Yes
"Housing, Communities & Local Government",MHCLG,13/11/2018,ERDF Work in Progress � Capital,Decentralisation and Local Growth,NEWANGLIA LOC ENTER PARTNER LTD,,Medium,,,7700003313,,ERDF grant payment,NR4 7UG,"188,445.73",Yes
"Housing, Communities & Local Government",MHCLG,13/11/2018,ERDF Work in Progress � Capital,Decentralisation and Local Growth,PETERBOROUGH ENVIRON CITY TRUST,Yes,Small,,,7700003324,,ERDF grant payment,PE1 1NA,"44,541.00",Yes
"Housing, Communities & Local Government",MHCLG,13/11/2018,ERDF Work in Progress � Capital,Decentralisation and Local Growth,SUFFOLK COUNTY COUNCIL,,Large,,,7700003310,,ERDF grant payment,IP1 2BX,"366,976.22",Yes
"Housing, Communities & Local Government",MHCLG,13/11/2018,ERDF Work in Progress � Resource,Decentralisation and Local Growth,ESSEX COUNTY COUNCIL,,Large,,,7700003315,,ERDF grant payment,CM1 1LX,"42,116.12",Yes
"Housing, Communities & Local Government",MHCLG,13/11/2018,ERDF Work in Progress � Resource,Decentralisation and Local Growth,EXEMPLAS LIMITED,,Medium,,,7700003314,,ERDF grant payment,AL7 3AX,"18,918.41",Yes
"Housing, Communities & Local Government",MHCLG,13/11/2018,ERDF Work in Progress � Resource,Decentralisation and Local Growth,EXEMPLAS TRADE SERVICES LTD,,,,,7700003320,,ERDF grant payment,AL7 3AX,"39,403.62",Yes
"Housing, Communities & Local Government",MHCLG,13/11/2018,ERDF Work in Progress � Resource,Decentralisation and Local Growth,KENT COUNTY COUNCIL,,Large,,,7700003321,,ERDF grant payment,ME14 1XQ,"207,912.94",Yes
"Housing, Communities & Local Government",MHCLG,13/11/2018,ERDF Work in Progress � Resource,Decentralisation and Local Growth,NEWANGLIA LOC ENTER PARTNER LTD,,Medium,,,7700003313,,ERDF grant payment,NR4 7UG,"65,156.62",Yes
"Housing, Communities & Local Government",MHCLG,13/11/2018,ERDF Work in Progress � Resource,Decentralisation and Local Growth,NGAGE SOLUTIONS LTD,,Small,,,7700003319,,ERDF grant payment,HP14 4BF,"44,550.36",Yes
"Housing, Communities & Local Government",MHCLG,13/11/2018,ERDF Work in Progress � Resource,Decentralisation and Local Growth,OXFORDSHIRE COUNTY COUNCIL,,Large,,,7700003312,,ERDF grant payment,OX1 1ND,"2,535.60",Yes
"Housing, Communities & Local Government",MHCLG,13/11/2018,ERDF Work in Progress � Resource,Decentralisation and Local Growth,PETERBOROUGH ENVIRON CITY TRUST,Yes,Small,,,7700003324,,ERDF grant payment,PE1 1NA,"8,257.59",Yes
"Housing, Communities & Local Government",MHCLG,13/11/2018,ERDF Work in Progress � Resource,Decentralisation and Local Growth,PRP ARCHITECTS LLP,,Micro,,218614801,7700003322,,ERDF grant payment,KT7 0QJ,"213,398.84",Yes
"Housing, Communities & Local Government",MHCLG,13/11/2018,ERDF Work in Progress � Resource,Decentralisation and Local Growth,SATELLITE APPLICATIONS CATAPULT LTD,,,,,7700003311,,ERDF grant payment,OX11 0QR,"19,020.45",Yes
"Housing, Communities & Local Government",MHCLG,13/11/2018,ERDF Work in Progress � Resource,Decentralisation and Local Growth,SOMERSET COUNTY COUNCIL,,Micro,,,7700003318,,ERDF grant payment,TA1 4DY,"1,462.16",Yes
"Housing, Communities & Local Government",MHCLG,13/11/2018,ERDF Work in Progress � Resource,Decentralisation and Local Growth,SUFFOLK COUNTY COUNCIL,,Large,,,7700003310,,ERDF grant payment,IP1 2BX,"112,398.65",Yes
"Housing, Communities & Local Government",MHCLG,13/11/2018,ERDF Work in Progress � Resource,Decentralisation and Local Growth,THURROCK BOROUGH COUNCIL,,,,,7700003316,,ERDF grant payment,RM17 6SL,"15,379.52",Yes
"Housing, Communities & Local Government",MHCLG,13/11/2018,ERDF Work in Progress � Resource,Decentralisation and Local Growth,YTKO LIMITED,,Small,,,7700003323,,ERDF grant payment,CB6 1RA,"380,258.95",Yes
"Housing, Communities & Local Government",MHCLG,13/11/2018,Facilities Management (ISD use only),Housing & BSP,ISTRUCTE LTD,,Medium,,,5106240983,Property Occupation,Large Panel Systems Best Practice Event,EC1V 3PS,"1,950.00",
"Housing, Communities & Local Government",MHCLG,13/11/2018,Government Procurement Card (expense),Chief Finance Office,DCLG GOVERNMENT PROCUREMENT CARD,,,,,1000004375,,Civil Service Training,TN37 7GA,250,
"Housing, Communities & Local Government",MHCLG,13/11/2018,"IT - PC, Network & Hardware",Chief Finance Office,X M A LTD,,Large,,298484148,5106240997,ICT Hardware,Philips Monitor (See Line Text),NG11 7EP,"4,483.39",
"Housing, Communities & Local Government",MHCLG,13/11/2018,"IT - PC, Network & Hardware",Chief Finance Office,X M A LTD,,Large,,298484148,5106240999,ICT Hardware,Philips Monitor (See Line Text),NG11 7EP,"12,049.12",
"Housing, Communities & Local Government",MHCLG,13/11/2018,"IT - PC, Network & Hardware",Chief Finance Office,X M A LTD,,Large,,298484148,5106241000,ICT Hardware,Philips Monitor (See Line Text),NG11 7EP,"17,933.57",
"Housing, Communities & Local Government",MHCLG,13/11/2018,"IT - PC, Network & Hardware",Chief Finance Office,X M A LTD,,Large,,298484148,5106241001,ICT Hardware,Philips Monitor (See Line Text),NG11 7EP,"1,120.85",
"Housing, Communities & Local Government",MHCLG,13/11/2018,"IT - PC, Network & Hardware",Chief Finance Office,X M A LTD,,Large,,298484148,5106241002,ICT Hardware,Philips Monitor (See Line Text),NG11 7EP,"13,169.96",
"Housing, Communities & Local Government",MHCLG,13/11/2018,"IT - PC, Network & Hardware",Chief Finance Office,X M A LTD,,Large,,298484148,5106241003,ICT Hardware,Philips Monitor (See Line Text),NG11 7EP,"5,324.03",
"Housing, Communities & Local Government",MHCLG,13/11/2018,"IT - PC, Network & Hardware",Chief Finance Office,X M A LTD,,Large,,298484148,5106241004,ICT Hardware,Philips Monitor (See Line Text),NG11 7EP,"2,241.70",
"Housing, Communities & Local Government",MHCLG,13/11/2018,"IT - PC, Network & Hardware",Chief Finance Office,X M A LTD,,Large,,298484148,5106241005,ICT Hardware,Keyboard,NG11 7EP,119.02,
"Housing, Communities & Local Government",MHCLG,13/11/2018,"IT - PC, Network & Hardware",Chief Finance Office,X M A LTD,,Large,,298484148,5106241005,ICT Hardware,Mice,NG11 7EP,119.02,
"Housing, Communities & Local Government",MHCLG,13/11/2018,"IT - PC, Network & Hardware",Chief Finance Office,X M A LTD,,Large,,298484148,5106241005,ICT Hardware,Surface Adapter,NG11 7EP,"1,172.14",
"Housing, Communities & Local Government",MHCLG,13/11/2018,"IT - PC, Network & Hardware",Chief Finance Office,X M A LTD,,Large,,298484148,5106241097,ICT Hardware,laptops 8GB,NG11 7EP,"76,198.50",
"Housing, Communities & Local Government",MHCLG,13/11/2018,"IT - PC, Network & Hardware",Chief Finance Office,X M A LTD,,Large,,298484148,5106241119,ICT Hardware,3yr Warranty (Surface Laptop),NG11 7EP,"45,242.40",
"Housing, Communities & Local Government",MHCLG,13/11/2018,"IT - PC, Network & Hardware",Chief Finance Office,X M A LTD,,Large,,298484148,5106241121,ICT Hardware,Philips Monitor (See Line Text),NG11 7EP,"6,444.88",
"Housing, Communities & Local Government",MHCLG,13/11/2018,"IT - PC, Network & Hardware",Chief Finance Office,X M A LTD,,Large,,298484148,5106241122,ICT Hardware,Philips Monitor (See Line Text),NG11 7EP,"2,802.12",
"Housing, Communities & Local Government",MHCLG,13/11/2018,"IT - PC, Network & Hardware",Chief Finance Office,X M A LTD,,Large,,298484148,5106241123,ICT Hardware,Philips Monitor (See Line Text),NG11 7EP,"5,324.03",
"Housing, Communities & Local Government",MHCLG,13/11/2018,"IT - PC, Network & Hardware",Chief Finance Office,X M A LTD,,Large,,298484148,5106241124,ICT Hardware,Philips Monitor (See Line Text),NG11 7EP,"4,483.39",
"Housing, Communities & Local Government",MHCLG,13/11/2018,IT - Service Contracts,Chief Finance Office,APPTIMIZED LTD,,Micro,,,5106241113,IT Managed / Outsourced Services,Apps,AL1 3TR,"1,750.00",
"Housing, Communities & Local Government",MHCLG,13/11/2018,IT Consultancy,Housing & BSP,VALTECH LTD,,Medium,,,5106241086,Consultancy,Discovery work - EPB Register,N1 8AF,"13,692.00",
"Housing, Communities & Local Government",MHCLG,13/11/2018,Legal Fees,Chief Finance Office,DCLG GOVERNMENT PROCUREMENT CARD,,,,,1000004377,Legal,Legal Advice,TN37 7GA,"2,900.00",
"Housing, Communities & Local Government",MHCLG,13/11/2018,Publications,Chief Finance Office,DCLG GOVERNMENT PROCUREMENT CARD,,,,,1000004375,Learning and Development Materials,National Institute Economic Review,TN37 7GA,559.1,
"Housing, Communities & Local Government",MHCLG,13/11/2018,Publicity,Decentralisation and Local Growth,CENTAUR COMMUNICATIONS LTD,,Large,,229523717,5106241088,Advertising,Foresight News Renewal 29/10/18-28/10/19,W1T 3QN,"2,880.00",
"Housing, Communities & Local Government",MHCLG,13/11/2018,Subscriptions,Chief Finance Office,ASSOC FOR PROJECT MANAGEMENT,,Medium,,236189460,5106241085,Subscriptions and Admissions,APM CORPORATE MEMBERSHIP,HP27 9LE,"4,995.00",
"Housing, Communities & Local Government",MHCLG,13/11/2018,Training,Chief Finance Office,CRANFIELD MANAGEMENT DEVELOPMENT LT,,Medium,,346264427,5106240990,Development and Training,Civil Service Training,MK43 0AL,"6,443.85",
"Housing, Communities & Local Government",MHCLG,13/11/2018,Training,Chief Finance Office,HABLE EDUCATION LTD,,Micro,,,5106241111,Development and Training,Civil Service Training,OX14 3AB,"17,066.87",
"Housing, Communities & Local Government",MHCLG,13/11/2018,Training,Chief Finance Office,HABLE EDUCATION LTD,,Micro,,,5106241111,Development and Training,Civil Service Training,OX14 3AB,"10,861.00",
"Housing, Communities & Local Government",MHCLG,13/11/2018,Training,Chief Finance Office,HABLE EDUCATION LTD,,Micro,,,5106241111,Development and Training,Civil Service Training,OX14 3AB,"17,066.87",
"Housing, Communities & Local Government",MHCLG,13/11/2018,Training,Chief Finance Office,HABLE EDUCATION LTD,,Micro,,,5106241111,Development and Training,Civil Service Training,OX14 3AB,"23,272.75",
"Housing, Communities & Local Government",MHCLG,13/11/2018,Training,Chief Finance Office,HABLE EDUCATION LTD,,Micro,,,5106241111,Development and Training,Civil Service Training,OX14 3AB,"17,066.87",
"Housing, Communities & Local Government",MHCLG,13/11/2018,Training,Chief Finance Office,HABLE EDUCATION LTD,,Micro,,,5106241111,Development and Training,Civil Service Training,OX14 3AB,"17,066.87",
"Housing, Communities & Local Government",MHCLG,13/11/2018,Training,Chief Finance Office,KPMG LLP (CSL),,Large,,,5106240795,Development and Training,Civil Service Training,E14 5GL,"5,701.00",
"Housing, Communities & Local Government",MHCLG,14/11/2018,Capital Grants to People Non Profit,Decentralisation and Local Growth,DORSET TRUST NC LTD,,Medium,,,2100287656,,Coastal Communities Fund,DT2 7AA,"3,693.00",Yes
"Housing, Communities & Local Government",MHCLG,14/11/2018,Current (non AEF) Grants to Local Authorities,Housing & BSP,CALDERDALE MBC,,,,,2100287658,,Rent Officer Pensions refund 18/19,HX1 1PS,"9,633.98",Yes
"Housing, Communities & Local Government",MHCLG,14/11/2018,Current (non AEF) Grants to Local Authorities,Housing & BSP,DORSET COUNTY COUNCIL,,Public Bodies,,225431279,2100287659,,Rent Officer Pensions refund 18/19,DT1 1XJ,"2,689.39",Yes
"Housing, Communities & Local Government",MHCLG,14/11/2018,Current (non AEF) Grants to Local Authorities,Housing & BSP,NORTHUMBERLAND CC,,Large,,228141644,2100287660,,Rent Officer Pensions refund 18/19,NE61 2EF,"11,805.27",Yes
"Housing, Communities & Local Government",MHCLG,14/11/2018,Current Grants to Non Profit Bodies,Decentralisation and Local Growth,BERWICK HARBOUR COMMINSION,Yes,,,,2100287655,,Coastal Communities Fund,TD15 2AB,"4,130.00",Yes
"Housing, Communities & Local Government",MHCLG,14/11/2018,Current Grants to Non Profit Bodies,Decentralisation and Local Growth,DORSET TRUST NC LTD,,Medium,,,2100287657,,Coastal Communities Fund,DT2 7AA,"6,552.00",Yes
"Housing, Communities & Local Government",MHCLG,14/11/2018,Current Grants to Non Profit Bodies,Local Government & Public Services,CHURCH URBAN FUND,,Small,,396728263,2100287598,,Near Neighbours programme,SW1P 3AZ,"325,500.00",Yes
"Housing, Communities & Local Government",MHCLG,14/11/2018,Current Grants to Non Profit Bodies,Local Government & Public Services,INTER FAITH NETWORK FOR THE UK,Yes,Small,,519808690,2100287607,,Inter Faith Network for the UK 2018/19,SW1W 0DH,"96,250.00",Yes
"Housing, Communities & Local Government",MHCLG,14/11/2018,ERDF Work in Progress � Resource,Decentralisation and Local Growth,BIOCITY GROUP LIMITED,,,,,7700003325,,ERDF grant payment,NG1 1GF,"72,212.02",Yes
"Housing, Communities & Local Government",MHCLG,14/11/2018,EXP � PURCHASE OF GOODS /SERVICES R & D,Chief Finance Office,SQW LTD,,Medium,,289652133,5106241062,Research,Research - Evaluation of Communities Fund,CB4 9ZR,"12,302.50",
"Housing, Communities & Local Government",MHCLG,14/11/2018,IT - Service Contracts,Chief Finance Office,ARCUS GLOBAL LIMITED,,Medium,,,5106241156,IT Managed / Outsourced Services,Datamart infrastructure and T&M,CB4 2HY,"23,893.75",
"Housing, Communities & Local Government",MHCLG,14/11/2018,IT - Software Maintenance,Chief Finance Office,BLAZIE LTD,,Small,,,5106240726,IT Managed / Outsourced Services,JAWS script assessment - quote 07157,MK9 2UB,720,
"Housing, Communities & Local Government",MHCLG,14/11/2018,Management Consultancy,Chief Finance Office,BRAMBLE HUB LTD,,Large,,221172856,5106241149,Consultancy,risk function consultancy,SE1 7SP,"8,310.00",
"Housing, Communities & Local Government",MHCLG,14/11/2018,Management Consultancy,Decentralisation and Local Growth,STEPHEN HALE,,Micro,,,5106241139,Consultancy,Review of MHCLG Digital Function,SE27 9PW,"8,000.00",
"Housing, Communities & Local Government",MHCLG,14/11/2018,Mobile phone costs,Chief Finance Office,GAMMA TELECOM LTD,,Large,,,5106241155,Telecoms,Running costs Non-VAT,EC4M 7RD,"1,557.50",
"Housing, Communities & Local Government",MHCLG,14/11/2018,Mobile phone costs,Chief Finance Office,GAMMA TELECOM LTD,,Large,,,5106241155,Telecoms,SO12178 - Contract Running Costs 18/19,EC4M 7RD,"14,572.55",
"Housing, Communities & Local Government",MHCLG,14/11/2018,Printing,Decentralisation and Local Growth,APS GROUP,,Micro,,212228001,5106240928,Printing Services,Storage for Publications,SK3 02P,591.12,
"Housing, Communities & Local Government",MHCLG,14/11/2018,Printing,Decentralisation and Local Growth,APS GROUP,,Micro,,212228001,5106241116,Printing Services,Corporate Publishing,SK3 02P,303.88,
"Housing, Communities & Local Government",MHCLG,14/11/2018,Printing,Decentralisation and Local Growth,APS GROUP,,Micro,,212228001,5106241120,Printing Services,Corporate Publishing,SK3 02P,495.72,
"Housing, Communities & Local Government",MHCLG,14/11/2018,Printing,Housing & BSP,APS GROUP,,Micro,,212228001,5106240889,Printing Services,Hackitt Review final report,SK3 02P,-837.82,
"Housing, Communities & Local Government",MHCLG,14/11/2018,Professional services,Decentralisation and Local Growth,VALUATION OFFICE AGENCY,,Public Bodies,,215253886,5106241151,Financial,Planning changes to support infrastructure of local area,W1D 5BU,827.84,
"Housing, Communities & Local Government",MHCLG,14/11/2018,Publications,Housing & BSP,APS GROUP,,Micro,,212228001,5106240721,Learning and Development Materials,Rough Sleeping Strategy - Publication,SK3 02P,"2,936.13",
"Housing, Communities & Local Government",MHCLG,14/11/2018,Recruitment,Chief Finance Office,OFFICE FOR NATIONAL STATISTICS,,Public Bodies,,232101196,5106241093,Business Process Outsourcing Services,Recruitment,NP10 8XG,"2,400.00",
"Housing, Communities & Local Government",MHCLG,14/11/2018,Software Licences,Chief Finance Office,BYTES SOFTWARE SERVICES LTD,,Medium,,225273754,5106241138,Software,Read& Write Single user licence,KT22 7TW,286.63,
"Housing, Communities & Local Government",MHCLG,14/11/2018,Steady State Service Provision,Decentralisation and Local Growth,GROUNDWORK UK,Yes,,,739193758,5106240957,Business Process Outsourcing Services,Grant admin costs,B1 2RR,"6,522.00",
"Housing, Communities & Local Government",MHCLG,14/11/2018,Steady State Service Provision,Decentralisation and Local Growth,LOCALITY,,Medium,,347998312,5106241144,Business Process Outsourcing Services,Fixed costs,N1 6DR,"39,241.25",
"Housing, Communities & Local Government",MHCLG,14/11/2018,Steady State Service Provision,Decentralisation and Local Growth,LOCALITY,,Medium,,347998312,5106241145,Business Process Outsourcing Services,Locality Support Contract,N1 6DR,"8,506.94",
"Housing, Communities & Local Government",MHCLG,14/11/2018,Training,Chief Finance Office,KPMG LLP (CSL),,Large,,,5106241146,Development and Training,Civil Service Training,E14 5GL,345,
"Housing, Communities & Local Government",MHCLG,15/11/2018,Agency Staff,Decentralisation and Local Growth,BROOK STREET UK LTD,,Large,,364940028,5106241166,Contingent Labour,Interim Manager,AL1 4JB,769.45,
"Housing, Communities & Local Government",MHCLG,15/11/2018,Cap Grants to Local Authorities (DEL),Decentralisation and Local Growth,WORCESTER CITY CNCL,,,,227419751,5000412854,,Land Release Fund,WR1 2EZ,"150,000.00",Yes
"Housing, Communities & Local Government",MHCLG,15/11/2018,Current (non AEF) Grants to Local Authorities,Chief Finance Office,CO DURHAM & DARLINGTON FIRE RESCUE,,Public Bodies,,211684266,2100287693,,Regional Control Centres,DH1 1TW,"82,657.33",Yes
"Housing, Communities & Local Government",MHCLG,15/11/2018,Current (non AEF) Grants to Local Authorities,Chief Finance Office,GREATER LONDON AUTHORITY,,Large,,225353416,2100287692,,Regional Control Centres,SE10 1AP,"160,743.58",Yes
"Housing, Communities & Local Government",MHCLG,15/11/2018,Current (non AEF) Grants to Local Authorities,Chief Finance Office,GREATER MANCHESTER COMB AUT,,Public Bodies,,424873172,2100287691,,Regional Control Centres,M27 8US,"74,517.33",Yes
"Housing, Communities & Local Government",MHCLG,15/11/2018,Current (non AEF) Grants to Local Authorities,Local Government & Public Services,ADUR DC,,,,227472891,5000411400,,Grant Payable by Exchequer,BN11 1HA,"13,953.00",Yes
"Housing, Communities & Local Government",MHCLG,15/11/2018,Current (non AEF) Grants to Local Authorities,Local Government & Public Services,ADUR DC,,,,227472891,5000411400,,Grant Payable by Exchequer,BN11 1HA,"47,894.00",Yes
"Housing, Communities & Local Government",MHCLG,15/11/2018,Current (non AEF) Grants to Local Authorities,Local Government & Public Services,ADUR DC,,,,227472891,5000411400,,Grant Payable by Exchequer,BN11 1HA,-183,Yes
"Housing, Communities & Local Government",MHCLG,15/11/2018,Current (non AEF) Grants to Local Authorities,Local Government & Public Services,ADUR DC,,,,227472891,5000411400,,Grant Payable by Exchequer,BN11 1HA,"-9,416.00",Yes
"Housing, Communities & Local Government",MHCLG,15/11/2018,Current (non AEF) Grants to Local Authorities,Local Government & Public Services,ALLERDALE BOROUGH COUNCIL,,,,230824120,5000411402,,Grant Payable by Exchequer,CA14 3YJ,"22,063.00",Yes
"Housing, Communities & Local Government",MHCLG,15/11/2018,Current (non AEF) Grants to Local Authorities,Local Government & Public Services,ALLERDALE BOROUGH COUNCIL,,,,230824120,5000411402,,Grant Payable by Exchequer,CA14 3YJ,"110,424.00",Yes
"Housing, Communities & Local Government",MHCLG,15/11/2018,Current (non AEF) Grants to Local Authorities,Local Government & Public Services,ALLERDALE BOROUGH COUNCIL,,,,230824120,5000411402,,Grant Payable by Exchequer,CA14 3YJ,"1,488.00",Yes
"Housing, Communities & Local Government",MHCLG,15/11/2018,Current (non AEF) Grants to Local Authorities,Local Government & Public Services,ALLERDALE BOROUGH COUNCIL,,,,230824120,5000411402,,Grant Payable by Exchequer,CA14 3YJ,"5,899.00",Yes
"Housing, Communities & Local Government",MHCLG,15/11/2018,Current (non AEF) Grants to Local Authorities,Local Government & Public Services,ALLERDALE BOROUGH COUNCIL,,,,230824120,5000411402,,Grant Payable by Exchequer,CA14 3YJ,922,Yes
"Housing, Communities & Local Government",MHCLG,15/11/2018,Current (non AEF) Grants to Local Authorities,Local Government & Public Services,ALLERDALE BOROUGH COUNCIL,,,,230824120,5000411402,,Grant Payable by Exchequer,CA14 3YJ,"2,117.00",Yes
"Housing, Communities & Local Government",MHCLG,15/11/2018,Current (non AEF) Grants to Local Authorities,Local Government & Public Services,ALLERDALE BOROUGH COUNCIL,,,,230824120,5000411402,,Grant Payable by Exchequer,CA14 3YJ,599,Yes
"Housing, Communities & Local Government",MHCLG,15/11/2018,Current (non AEF) Grants to Local Authorities,Local Government & Public Services,ALLERDALE BOROUGH COUNCIL,,,,230824120,5000411402,,Grant Payable by Exchequer,CA14 3YJ,5,Yes
"Housing, Communities & Local Government",MHCLG,15/11/2018,Current (non AEF) Grants to Local Authorities,Local Government & Public Services,ALLERDALE BOROUGH COUNCIL,,,,230824120,5000411402,,Grant Payable by Exchequer,CA14 3YJ,"-13,626.00",Yes
"Housing, Communities & Local Government",MHCLG,15/11/2018,Current (non AEF) Grants to Local Authorities,Local Government & Public Services,AMBER VALLEY BC,,,,,5000411404,,Grant Payable by Exchequer,DE5 3BT,"28,302.00",Yes
"Housing, Communities & Local Government",MHCLG,15/11/2018,Current (non AEF) Grants to Local Authorities,Local Government & Public Services,AMBER VALLEY BC,,,,,5000411404,,Grant Payable by Exchequer,DE5 3BT,"123,424.00",Yes
"Housing, Communities & Local Government",MHCLG,15/11/2018,Current (non AEF) Grants to Local Authorities,Local Government & Public Services,AMBER VALLEY BC,,,,,5000411404,,Grant Payable by Exchequer,DE5 3BT,602,Yes
"Housing, Communities & Local Government",MHCLG,15/11/2018,Current (non AEF) Grants to Local Authorities,Local Government & Public Services,AMBER VALLEY BC,,,,,5000411404,,Grant Payable by Exchequer,DE5 3BT,"1,089.00",Yes
"Housing, Communities & Local Government",MHCLG,15/11/2018,Current (non AEF) Grants to Local Authorities,Local Government & Public Services,AMBER VALLEY BC,,,,,5000411404,,Grant Payable by Exchequer,DE5 3BT,"1,824.00",Yes
"Housing, Communities & Local Government",MHCLG,15/11/2018,Current (non AEF) Grants to Local Authorities,Local Government & Public Services,AMBER VALLEY BC,,,,,5000411404,,Grant Payable by Exchequer,DE5 3BT,"1,834.00",Yes
"Housing, Communities & Local Government",MHCLG,15/11/2018,Current (non AEF) Grants to Local Authorities,Local Government & Public Services,AMBER VALLEY BC,,,,,5000411404,,Grant Payable by Exchequer,DE5 3BT,-61,Yes
"Housing, Communities & Local Government",MHCLG,15/11/2018,Current (non AEF) Grants to Local Authorities,Local Government & Public Services,AMBER VALLEY BC,,,,,5000411404,,Grant Payable by Exchequer,DE5 3BT,"-22,784.00",Yes
"Housing, Communities & Local Government",MHCLG,15/11/2018,Current (non AEF) Grants to Local Authorities,Local Government & Public Services,ARUN DC,,,,211217668,5000411406,,Grant Payable by Exchequer,BN17 5LF,"28,079.00",Yes
"Housing, Communities & Local Government",MHCLG,15/11/2018,Current (non AEF) Grants to Local Authorities,Local Government & Public Services,ARUN DC,,,,211217668,5000411406,,Grant Payable by Exchequer,BN17 5LF,"120,673.00",Yes
"Housing, Communities & Local Government",MHCLG,15/11/2018,Current (non AEF) Grants to Local Authorities,Local Government & Public Services,ARUN DC,,,,211217668,5000411406,,Grant Payable by Exchequer,BN17 5LF,83,Yes
"Housing, Communities & Local Government",MHCLG,15/11/2018,Current (non AEF) Grants to Local Authorities,Local Government & Public Services,ARUN DC,,,,211217668,5000411406,,Grant Payable by Exchequer,BN17 5LF,"5,956.00",Yes
"Housing, Communities & Local Government",MHCLG,15/11/2018,Current (non AEF) Grants to Local Authorities,Local Government & Public Services,ARUN DC,,,,211217668,5000411406,,Grant Payable by Exchequer,BN17 5LF,"1,462.00",Yes
"Housing, Communities & Local Government",MHCLG,15/11/2018,Current (non AEF) Grants to Local Authorities,Local Government & Public Services,ARUN DC,,,,211217668,5000411406,,Grant Payable by Exchequer,BN17 5LF,"2,251.00",Yes
"Housing, Communities & Local Government",MHCLG,15/11/2018,Current (non AEF) Grants to Local Authorities,Local Government & Public Services,ARUN DC,,,,211217668,5000411406,,Grant Payable by Exchequer,BN17 5LF,954,Yes
"Housing, Communities & Local Government",MHCLG,15/11/2018,Current (non AEF) Grants to Local Authorities,Local Government & Public Services,ARUN DC,,,,211217668,5000411406,,Grant Payable by Exchequer,BN17 5LF,304,Yes
"Housing, Communities & Local Government",MHCLG,15/11/2018,Current (non AEF) Grants to Local Authorities,Local Government & Public Services,ARUN DC,,,,211217668,5000411406,,Grant Payable by Exchequer,BN17 5LF,"-16,611.00",Yes
"Housing, Communities & Local Government",MHCLG,15/11/2018,Current (non AEF) Grants to Local Authorities,Local Government & Public Services,ASHFIELD DC,,,,235415296,5000411408,,Grant Payable by Exchequer,NG17 8DA,"28,674.00",Yes
"Housing, Communities & Local Government",MHCLG,15/11/2018,Current (non AEF) Grants to Local Authorities,Local Government & Public Services,ASHFIELD DC,,,,235415296,5000411408,,Grant Payable by Exchequer,NG17 8DA,"69,139.00",Yes
"Housing, Communities & Local Government",MHCLG,15/11/2018,Current (non AEF) Grants to Local Authorities,Local Government & Public Services,ASHFIELD DC,,,,235415296,5000411408,,Grant Payable by Exchequer,NG17 8DA,577,Yes
"Housing, Communities & Local Government",MHCLG,15/11/2018,Current (non AEF) Grants to Local Authorities,Local Government & Public Services,ASHFIELD DC,,,,235415296,5000411408,,Grant Payable by Exchequer,NG17 8DA,"3,197.00",Yes
"Housing, Communities & Local Government",MHCLG,15/11/2018,Current (non AEF) Grants to Local Authorities,Local Government & Public Services,ASHFIELD DC,,,,235415296,5000411408,,Grant Payable by Exchequer,NG17 8DA,503,Yes
"Housing, Communities & Local Government",MHCLG,15/11/2018,Current (non AEF) Grants to Local Authorities,Local Government & Public Services,ASHFIELD DC,,,,235415296,5000411408,,Grant Payable by Exchequer,NG17 8DA,"1,125.00",Yes
"Housing, Communities & Local Government",MHCLG,15/11/2018,Current (non AEF) Grants to Local Authorities,Local Government & Public Services,ASHFIELD DC,,,,235415296,5000411408,,Grant Payable by Exchequer,NG17 8DA,-65,Yes
"Housing, Communities & Local Government",MHCLG,15/11/2018,Current (non AEF) Grants to Local Authorities,Local Government & Public Services,ASHFIELD DC,,,,235415296,5000411408,,Grant Payable by Exchequer,NG17 8DA,"-17,976.00",Yes
"Housing, Communities & Local Government",MHCLG,15/11/2018,Current (non AEF) Grants to Local Authorities,Local Government & Public Services,ASHFORD BC,,,,229467071,5000411412,,Grant Payable by Exchequer,TN23 1PL,"37,449.00",Yes
"Housing, Communities & Local Government",MHCLG,15/11/2018,Current (non AEF) Grants to Local Authorities,Local Government & Public Services,ASHFORD BC,,,,229467071,5000411412,,Grant Payable by Exchequer,TN23 1PL,"107,645.00",Yes
"Housing, Communities & Local Government",MHCLG,15/11/2018,Current (non AEF) Grants to Local Authorities,Local Government & Public Services,ASHFORD BC,,,,229467071,5000411412,,Grant Payable by Exchequer,TN23 1PL,366,Yes
"Housing, Communities & Local Government",MHCLG,15/11/2018,Current (non AEF) Grants to Local Authorities,Local Government & Public Services,ASHFORD BC,,,,229467071,5000411412,,Grant Payable by Exchequer,TN23 1PL,"5,800.00",Yes
"Housing, Communities & Local Government",MHCLG,15/11/2018,Current (non AEF) Grants to Local Authorities,Local Government & Public Services,ASHFORD BC,,,,229467071,5000411412,,Grant Payable by Exchequer,TN23 1PL,"1,023.00",Yes
"Housing, Communities & Local Government",MHCLG,15/11/2018,Current (non AEF) Grants to Local Authorities,Local Government & Public Services,ASHFORD BC,,,,229467071,5000411412,,Grant Payable by Exchequer,TN23 1PL,"2,387.00",Yes
"Housing, Communities & Local Government",MHCLG,15/11/2018,Current (non AEF) Grants to Local Authorities,Local Government & Public Services,ASHFORD BC,,,,229467071,5000411412,,Grant Payable by Exchequer,TN23 1PL,126,Yes
"Housing, Communities & Local Government",MHCLG,15/11/2018,Current (non AEF) Grants to Local Authorities,Local Government & Public Services,ASHFORD BC,,,,229467071,5000411412,,Grant Payable by Exchequer,TN23 1PL,263,Yes
"Housing, Communities & Local Government",MHCLG,15/11/2018,Current (non AEF) Grants to Local Authorities,Local Government & Public Services,ASHFORD BC,,,,229467071,5000411412,,Grant Payable by Exchequer,TN23 1PL,"-29,609.00",Yes
"Housing, Communities & Local Government",MHCLG,15/11/2018,Current (non AEF) Grants to Local Authorities,Local Government & Public Services,AVON FIRE AUTHORITY,,,,424872570,5000411416,,Grant Payable by Exchequer,BS1 6EU,"8,895.00",Yes
"Housing, Communities & Local Government",MHCLG,15/11/2018,Current (non AEF) Grants to Local Authorities,Local Government & Public Services,AVON FIRE AUTHORITY,,,,424872570,5000411416,,Grant Payable by Exchequer,BS1 6EU,"19,117.00",Yes
"Housing, Communities & Local Government",MHCLG,15/11/2018,Current (non AEF) Grants to Local Authorities,Local Government & Public Services,AVON FIRE AUTHORITY,,,,424872570,5000411416,,Grant Payable by Exchequer,BS1 6EU,16,Yes
"Housing, Communities & Local Government",MHCLG,15/11/2018,Current (non AEF) Grants to Local Authorities,Local Government & Public Services,AVON FIRE AUTHORITY,,,,424872570,5000411416,,Grant Payable by Exchequer,BS1 6EU,717,Yes
"Housing, Communities & Local Government",MHCLG,15/11/2018,Current (non AEF) Grants to Local Authorities,Local Government & Public Services,AVON FIRE AUTHORITY,,,,424872570,5000411416,,Grant Payable by Exchequer,BS1 6EU,142,Yes
"Housing, Communities & Local Government",MHCLG,15/11/2018,Current (non AEF) Grants to Local Authorities,Local Government & Public Services,AVON FIRE AUTHORITY,,,,424872570,5000411416,,Grant Payable by Exchequer,BS1 6EU,313,Yes
"Housing, Communities & Local Government",MHCLG,15/11/2018,Current (non AEF) Grants to Local Authorities,Local Government & Public Services,AVON FIRE AUTHORITY,,,,424872570,5000411416,,Grant Payable by Exchequer,BS1 6EU,3,Yes
"Housing, Communities & Local Government",MHCLG,15/11/2018,Current (non AEF) Grants to Local Authorities,Local Government & Public Services,AVON FIRE AUTHORITY,,,,424872570,5000411416,,Grant Payable by Exchequer,BS1 6EU,55,Yes
"Housing, Communities & Local Government",MHCLG,15/11/2018,Current (non AEF) Grants to Local Authorities,Local Government & Public Services,AVON FIRE AUTHORITY,,,,424872570,5000411416,,Grant Payable by Exchequer,BS1 6EU,-22,Yes
"Housing, Communities & Local Government",MHCLG,15/11/2018,Current (non AEF) Grants to Local Authorities,Local Government & Public Services,AVON FIRE AUTHORITY,,,,424872570,5000411416,,Grant Payable by Exchequer,BS1 6EU,"11,271.00",Yes
"Housing, Communities & Local Government",MHCLG,15/11/2018,Current (non AEF) Grants to Local Authorities,Local Government & Public Services,AYLESBURY VALE DC,,,,396710709,5000411422,,Grant Payable by Exchequer,HP19 8FF,"42,062.00",Yes
"Housing, Communities & Local Government",MHCLG,15/11/2018,Current (non AEF) Grants to Local Authorities,Local Government & Public Services,AYLESBURY VALE DC,,,,396710709,5000411422,,Grant Payable by Exchequer,HP19 8FF,"129,591.00",Yes
"Housing, Communities & Local Government",MHCLG,15/11/2018,Current (non AEF) Grants to Local Authorities,Local Government & Public Services,AYLESBURY VALE DC,,,,396710709,5000411422,,Grant Payable by Exchequer,HP19 8FF,"1,864.00",Yes
"Housing, Communities & Local Government",MHCLG,15/11/2018,Current (non AEF) Grants to Local Authorities,Local Government & Public Services,AYLESBURY VALE DC,,,,396710709,5000411422,,Grant Payable by Exchequer,HP19 8FF,"7,126.00",Yes
"Housing, Communities & Local Government",MHCLG,15/11/2018,Current (non AEF) Grants to Local Authorities,Local Government & Public Services,AYLESBURY VALE DC,,,,396710709,5000411422,,Grant Payable by Exchequer,HP19 8FF,"1,313.00",Yes
"Housing, Communities & Local Government",MHCLG,15/11/2018,Current (non AEF) Grants to Local Authorities,Local Government & Public Services,AYLESBURY VALE DC,,,,396710709,5000411422,,Grant Payable by Exchequer,HP19 8FF,"2,706.00",Yes
"Housing, Communities & Local Government",MHCLG,15/11/2018,Current (non AEF) Grants to Local Authorities,Local Government & Public Services,AYLESBURY VALE DC,,,,396710709,5000411422,,Grant Payable by Exchequer,HP19 8FF,51,Yes
"Housing, Communities & Local Government",MHCLG,15/11/2018,Current (non AEF) Grants to Local Authorities,Local Government & Public Services,AYLESBURY VALE DC,,,,396710709,5000411422,,Grant Payable by Exchequer,HP19 8FF,615,Yes
"Housing, Communities & Local Government",MHCLG,15/11/2018,Current (non AEF) Grants to Local Authorities,Local Government & Public Services,AYLESBURY VALE DC,,,,396710709,5000411422,,Grant Payable by Exchequer,HP19 8FF,-17,Yes
"Housing, Communities & Local Government",MHCLG,15/11/2018,Current (non AEF) Grants to Local Authorities,Local Government & Public Services,AYLESBURY VALE DC,,,,396710709,5000411422,,Grant Payable by Exchequer,HP19 8FF,"-30,492.00",Yes
"Housing, Communities & Local Government",MHCLG,15/11/2018,Current (non AEF) Grants to Local Authorities,Local Government & Public Services,BABERGH DC,,,,232618405,5000411427,,Grant Payable by Exchequer,IP7 6SJ,"35,309.00",Yes
"Housing, Communities & Local Government",MHCLG,15/11/2018,Current (non AEF) Grants to Local Authorities,Local Government & Public Services,BABERGH DC,,,,232618405,5000411427,,Grant Payable by Exchequer,IP7 6SJ,"161,825.00",Yes
"Housing, Communities & Local Government",MHCLG,15/11/2018,Current (non AEF) Grants to Local Authorities,Local Government & Public Services,BABERGH DC,,,,232618405,5000411427,,Grant Payable by Exchequer,IP7 6SJ,"4,865.00",Yes
"Housing, Communities & Local Government",MHCLG,15/11/2018,Current (non AEF) Grants to Local Authorities,Local Government & Public Services,BABERGH DC,,,,232618405,5000411427,,Grant Payable by Exchequer,IP7 6SJ,"5,864.00",Yes
"Housing, Communities & Local Government",MHCLG,15/11/2018,Current (non AEF) Grants to Local Authorities,Local Government & Public Services,BABERGH DC,,,,232618405,5000411427,,Grant Payable by Exchequer,IP7 6SJ,900,Yes
"Housing, Communities & Local Government",MHCLG,15/11/2018,Current (non AEF) Grants to Local Authorities,Local Government & Public Services,BABERGH DC,,,,232618405,5000411427,,Grant Payable by Exchequer,IP7 6SJ,"3,458.00",Yes
"Housing, Communities & Local Government",MHCLG,15/11/2018,Current (non AEF) Grants to Local Authorities,Local Government & Public Services,BABERGH DC,,,,232618405,5000411427,,Grant Payable by Exchequer,IP7 6SJ,"1,250.00",Yes
"Housing, Communities & Local Government",MHCLG,15/11/2018,Current (non AEF) Grants to Local Authorities,Local Government & Public Services,BABERGH DC,,,,232618405,5000411427,,Grant Payable by Exchequer,IP7 6SJ,-5,Yes
"Housing, Communities & Local Government",MHCLG,15/11/2018,Current (non AEF) Grants to Local Authorities,Local Government & Public Services,BABERGH DC,,,,232618405,5000411427,,Grant Payable by Exchequer,IP7 6SJ,"-30,363.00",Yes
"Housing, Communities & Local Government",MHCLG,15/11/2018,Current (non AEF) Grants to Local Authorities,Local Government & Public Services,BARKING & DAGENHAM LB,,Public Bodies,,227419488,5000411433,,Grant Payable by Exchequer,RM10 7BY,"74,433.00",Yes
"Housing, Communities & Local Government",MHCLG,15/11/2018,Current (non AEF) Grants to Local Authorities,Local Government & Public Services,BARKING & DAGENHAM LB,,Public Bodies,,227419488,5000411433,,Grant Payable by Exchequer,RM10 7BY,"186,434.00",Yes
"Housing, Communities & Local Government",MHCLG,15/11/2018,Current (non AEF) Grants to Local Authorities,Local Government & Public Services,BARKING & DAGENHAM LB,,Public Bodies,,227419488,5000411433,,Grant Payable by Exchequer,RM10 7BY,"14,053.00",Yes
"Housing, Communities & Local Government",MHCLG,15/11/2018,Current (non AEF) Grants to Local Authorities,Local Government & Public Services,BARKING & DAGENHAM LB,,Public Bodies,,227419488,5000411433,,Grant Payable by Exchequer,RM10 7BY,"1,182.00",Yes
"Housing, Communities & Local Government",MHCLG,15/11/2018,Current (non AEF) Grants to Local Authorities,Local Government & Public Services,BARKING & DAGENHAM LB,,Public Bodies,,227419488,5000411433,,Grant Payable by Exchequer,RM10 7BY,546,Yes
"Housing, Communities & Local Government",MHCLG,15/11/2018,Current (non AEF) Grants to Local Authorities,Local Government & Public Services,BARKING & DAGENHAM LB,,Public Bodies,,227419488,5000411433,,Grant Payable by Exchequer,RM10 7BY,629,Yes
"Housing, Communities & Local Government",MHCLG,15/11/2018,Current (non AEF) Grants to Local Authorities,Local Government & Public Services,BARKING & DAGENHAM LB,,Public Bodies,,227419488,5000411433,,Grant Payable by Exchequer,RM10 7BY,-206,Yes
"Housing, Communities & Local Government",MHCLG,15/11/2018,Current (non AEF) Grants to Local Authorities,Local Government & Public Services,BARKING & DAGENHAM LB,,Public Bodies,,227419488,5000411433,,Grant Payable by Exchequer,RM10 7BY,"32,075.00",Yes
"Housing, Communities & Local Government",MHCLG,15/11/2018,Current (non AEF) Grants to Local Authorities,Local Government & Public Services,BARKING & DAGENHAM LB (HSG),,,,217142293,5000412418,,Improved Better Care Fund,RM10 7BY,"409,164.00",Yes
"Housing, Communities & Local Government",MHCLG,15/11/2018,Current (non AEF) Grants to Local Authorities,Local Government & Public Services,BARKING & DAGENHAM LB (HSG),,,,217142293,5000412419,,Additional Better Care Fund element,RM10 7BY,"218,017.00",Yes
"Housing, Communities & Local Government",MHCLG,15/11/2018,Current (non AEF) Grants to Local Authorities,Local Government & Public Services,BARKING & DAGENHAM LB (HSG),,,,217142293,5000412420,,Adult Social Care Support Grant,RM10 7BY,"47,554.00",Yes
"Housing, Communities & Local Government",MHCLG,15/11/2018,Current (non AEF) Grants to Local Authorities,Local Government & Public Services,BARNET LBC,,,,211049507,5000411439,,Grant Payable by Exchequer,N11 1NP,"142,096.00",Yes
"Housing, Communities & Local Government",MHCLG,15/11/2018,Current (non AEF) Grants to Local Authorities,Local Government & Public Services,BARNET LBC,,,,211049507,5000411439,,Grant Payable by Exchequer,N11 1NP,"298,662.00",Yes
"Housing, Communities & Local Government",MHCLG,15/11/2018,Current (non AEF) Grants to Local Authorities,Local Government & Public Services,BARNET LBC,,,,211049507,5000411439,,Grant Payable by Exchequer,N11 1NP,"36,660.00",Yes
"Housing, Communities & Local Government",MHCLG,15/11/2018,Current (non AEF) Grants to Local Authorities,Local Government & Public Services,BARNET LBC,,,,211049507,5000411439,,Grant Payable by Exchequer,N11 1NP,"7,985.00",Yes
"Housing, Communities & Local Government",MHCLG,15/11/2018,Current (non AEF) Grants to Local Authorities,Local Government & Public Services,BARNET LBC,,,,211049507,5000411439,,Grant Payable by Exchequer,N11 1NP,"1,307.00",Yes
"Housing, Communities & Local Government",MHCLG,15/11/2018,Current (non AEF) Grants to Local Authorities,Local Government & Public Services,BARNET LBC,,,,211049507,5000411439,,Grant Payable by Exchequer,N11 1NP,80,Yes
"Housing, Communities & Local Government",MHCLG,15/11/2018,Current (non AEF) Grants to Local Authorities,Local Government & Public Services,BARNET LBC,,,,211049507,5000411439,,Grant Payable by Exchequer,N11 1NP,"-44,947.00",Yes
"Housing, Communities & Local Government",MHCLG,15/11/2018,Current (non AEF) Grants to Local Authorities,Local Government & Public Services,BARNSLEY MBC,,,,211178595,5000412490,,Improved Better Care Fund,S70 2AQ,"487,940.00",Yes
"Housing, Communities & Local Government",MHCLG,15/11/2018,Current (non AEF) Grants to Local Authorities,Local Government & Public Services,BARNSLEY MBC,,,,211178595,5000412491,,Additional Better Care Fund element,S70 2AQ,"294,971.00",Yes
"Housing, Communities & Local Government",MHCLG,15/11/2018,Current (non AEF) Grants to Local Authorities,Local Government & Public Services,BARNSLEY MBC,,,,211178595,5000412492,,Adult Social Care Support Grant,S70 2AQ,"64,497.00",Yes
"Housing, Communities & Local Government",MHCLG,15/11/2018,Current (non AEF) Grants to Local Authorities,Local Government & Public Services,BARNSLEY MBC,,Public Bodies,,211178595,5000411449,,Grant Payable by Exchequer,S70 2AQ,"44,219.00",Yes
"Housing, Communities & Local Government",MHCLG,15/11/2018,Current (non AEF) Grants to Local Authorities,Local Government & Public Services,BARNSLEY MBC,,Public Bodies,,211178595,5000411449,,Grant Payable by Exchequer,S70 2AQ,"202,244.00",Yes
"Housing, Communities & Local Government",MHCLG,15/11/2018,Current (non AEF) Grants to Local Authorities,Local Government & Public Services,BARNSLEY MBC,,Public Bodies,,211178595,5000411449,,Grant Payable by Exchequer,S70 2AQ,149,Yes
"Housing, Communities & Local Government",MHCLG,15/11/2018,Current (non AEF) Grants to Local Authorities,Local Government & Public Services,BARNSLEY MBC,,Public Bodies,,211178595,5000411449,,Grant Payable by Exchequer,S70 2AQ,"5,597.00",Yes
"Housing, Communities & Local Government",MHCLG,15/11/2018,Current (non AEF) Grants to Local Authorities,Local Government & Public Services,BARNSLEY MBC,,Public Bodies,,211178595,5000411449,,Grant Payable by Exchequer,S70 2AQ,388,Yes
"Housing, Communities & Local Government",MHCLG,15/11/2018,Current (non AEF) Grants to Local Authorities,Local Government & Public Services,BARNSLEY MBC,,Public Bodies,,211178595,5000411449,,Grant Payable by Exchequer,S70 2AQ,"3,926.00",Yes
"Housing, Communities & Local Government",MHCLG,15/11/2018,Current (non AEF) Grants to Local Authorities,Local Government & Public Services,BARNSLEY MBC,,Public Bodies,,211178595,5000411449,,Grant Payable by Exchequer,S70 2AQ,65,Yes
"Housing, Communities & Local Government",MHCLG,15/11/2018,Current (non AEF) Grants to Local Authorities,Local Government & Public Services,BARNSLEY MBC,,Public Bodies,,211178595,5000411449,,Grant Payable by Exchequer,S70 2AQ,286,Yes
"Housing, Communities & Local Government",MHCLG,15/11/2018,Current (non AEF) Grants to Local Authorities,Local Government & Public Services,BARNSLEY MBC,,Public Bodies,,211178595,5000411449,,Grant Payable by Exchequer,S70 2AQ,"60,132.00",Yes
"Housing, Communities & Local Government",MHCLG,15/11/2018,Current (non AEF) Grants to Local Authorities,Local Government & Public Services,BARROW BC,,,,295632913,5000411461,,Grant Payable by Exchequer,LA14 2LD,"16,136.00",Yes
"Housing, Communities & Local Government",MHCLG,15/11/2018,Current (non AEF) Grants to Local Authorities,Local Government & Public Services,BARROW BC,,,,295632913,5000411461,,Grant Payable by Exchequer,LA14 2LD,"44,872.00",Yes
"Housing, Communities & Local Government",MHCLG,15/11/2018,Current (non AEF) Grants to Local Authorities,Local Government & Public Services,BARROW BC,,,,295632913,5000411461,,Grant Payable by Exchequer,LA14 2LD,894,Yes
"Housing, Communities & Local Government",MHCLG,15/11/2018,Current (non AEF) Grants to Local Authorities,Local Government & Public Services,BARROW BC,,,,295632913,5000411461,,Grant Payable by Exchequer,LA14 2LD,91,Yes
"Housing, Communities & Local Government",MHCLG,15/11/2018,Current (non AEF) Grants to Local Authorities,Local Government & Public Services,BARROW BC,,,,295632913,5000411461,,Grant Payable by Exchequer,LA14 2LD,"1,128.00",Yes
"Housing, Communities & Local Government",MHCLG,15/11/2018,Current (non AEF) Grants to Local Authorities,Local Government & Public Services,BARROW BC,,,,295632913,5000411461,,Grant Payable by Exchequer,LA14 2LD,51,Yes
"Housing, Communities & Local Government",MHCLG,15/11/2018,Current (non AEF) Grants to Local Authorities,Local Government & Public Services,BARROW BC,,,,295632913,5000411461,,Grant Payable by Exchequer,LA14 2LD,68,Yes
"Housing, Communities & Local Government",MHCLG,15/11/2018,Current (non AEF) Grants to Local Authorities,Local Government & Public Services,BARROW BC,,,,295632913,5000411461,,Grant Payable by Exchequer,LA14 2LD,"-9,499.00",Yes
"Housing, Communities & Local Government",MHCLG,15/11/2018,Current (non AEF) Grants to Local Authorities,Local Government & Public Services,BASILDON DC,,,,,5000411473,,Grant Payable by Exchequer,SS14 0DF,"61,133.00",Yes
"Housing, Communities & Local Government",MHCLG,15/11/2018,Current (non AEF) Grants to Local Authorities,Local Government & Public Services,BASILDON DC,,,,,5000411473,,Grant Payable by Exchequer,SS14 0DF,"125,794.00",Yes
"Housing, Communities & Local Government",MHCLG,15/11/2018,Current (non AEF) Grants to Local Authorities,Local Government & Public Services,BASILDON DC,,,,,5000411473,,Grant Payable by Exchequer,SS14 0DF,57,Yes
"Housing, Communities & Local Government",MHCLG,15/11/2018,Current (non AEF) Grants to Local Authorities,Local Government & Public Services,BASILDON DC,,,,,5000411473,,Grant Payable by Exchequer,SS14 0DF,"4,320.00",Yes
"Housing, Communities & Local Government",MHCLG,15/11/2018,Current (non AEF) Grants to Local Authorities,Local Government & Public Services,BASILDON DC,,,,,5000411473,,Grant Payable by Exchequer,SS14 0DF,710,Yes
"Housing, Communities & Local Government",MHCLG,15/11/2018,Current (non AEF) Grants to Local Authorities,Local Government & Public Services,BASILDON DC,,,,,5000411473,,Grant Payable by Exchequer,SS14 0DF,307,Yes
"Housing, Communities & Local Government",MHCLG,15/11/2018,Current (non AEF) Grants to Local Authorities,Local Government & Public Services,BASILDON DC,,,,,5000411473,,Grant Payable by Exchequer,SS14 0DF,847,Yes
"Housing, Communities & Local Government",MHCLG,15/11/2018,Current (non AEF) Grants to Local Authorities,Local Government & Public Services,BASILDON DC,,,,,5000411473,,Grant Payable by Exchequer,SS14 0DF,"-47,154.00",Yes
"Housing, Communities & Local Government",MHCLG,15/11/2018,Current (non AEF) Grants to Local Authorities,Local Government & Public Services,BASINGSTOKE & DEANE BC,,,,228328506,5000411485,,Grant Payable by Exchequer,RG21 2AJ,"55,794.00",Yes
"Housing, Communities & Local Government",MHCLG,15/11/2018,Current (non AEF) Grants to Local Authorities,Local Government & Public Services,BASINGSTOKE & DEANE BC,,,,228328506,5000411485,,Grant Payable by Exchequer,RG21 2AJ,"69,803.00",Yes
"Housing, Communities & Local Government",MHCLG,15/11/2018,Current (non AEF) Grants to Local Authorities,Local Government & Public Services,BASINGSTOKE & DEANE BC,,,,228328506,5000411485,,Grant Payable by Exchequer,RG21 2AJ,849,Yes
"Housing, Communities & Local Government",MHCLG,15/11/2018,Current (non AEF) Grants to Local Authorities,Local Government & Public Services,BASINGSTOKE & DEANE BC,,,,228328506,5000411485,,Grant Payable by Exchequer,RG21 2AJ,"8,404.00",Yes
"Housing, Communities & Local Government",MHCLG,15/11/2018,Current (non AEF) Grants to Local Authorities,Local Government & Public Services,BASINGSTOKE & DEANE BC,,,,228328506,5000411485,,Grant Payable by Exchequer,RG21 2AJ,959,Yes
"Housing, Communities & Local Government",MHCLG,15/11/2018,Current (non AEF) Grants to Local Authorities,Local Government & Public Services,BASINGSTOKE & DEANE BC,,,,228328506,5000411485,,Grant Payable by Exchequer,RG21 2AJ,"2,387.00",Yes
"Housing, Communities & Local Government",MHCLG,15/11/2018,Current (non AEF) Grants to Local Authorities,Local Government & Public Services,BASINGSTOKE & DEANE BC,,,,228328506,5000411485,,Grant Payable by Exchequer,RG21 2AJ,51,Yes
"Housing, Communities & Local Government",MHCLG,15/11/2018,Current (non AEF) Grants to Local Authorities,Local Government & Public Services,BASINGSTOKE & DEANE BC,,,,228328506,5000411485,,Grant Payable by Exchequer,RG21 2AJ,"1,351.00",Yes
"Housing, Communities & Local Government",MHCLG,15/11/2018,Current (non AEF) Grants to Local Authorities,Local Government & Public Services,BASINGSTOKE & DEANE BC,,,,228328506,5000411485,,Grant Payable by Exchequer,RG21 2AJ,-164,Yes
"Housing, Communities & Local Government",MHCLG,15/11/2018,Current (non AEF) Grants to Local Authorities,Local Government & Public Services,BASINGSTOKE & DEANE BC,,,,228328506,5000411485,,Grant Payable by Exchequer,RG21 2AJ,"-50,347.00",Yes
"Housing, Communities & Local Government",MHCLG,15/11/2018,Current (non AEF) Grants to Local Authorities,Local Government & Public Services,BASSETLAW DC,,,,230225054,5000411499,,Grant Payable by Exchequer,S80 2AH,"33,219.00",Yes
"Housing, Communities & Local Government",MHCLG,15/11/2018,Current (non AEF) Grants to Local Authorities,Local Government & Public Services,BASSETLAW DC,,,,230225054,5000411499,,Grant Payable by Exchequer,S80 2AH,"89,850.00",Yes
"Housing, Communities & Local Government",MHCLG,15/11/2018,Current (non AEF) Grants to Local Authorities,Local Government & Public Services,BASSETLAW DC,,,,230225054,5000411499,,Grant Payable by Exchequer,S80 2AH,"1,166.00",Yes
"Housing, Communities & Local Government",MHCLG,15/11/2018,Current (non AEF) Grants to Local Authorities,Local Government & Public Services,BASSETLAW DC,,,,230225054,5000411499,,Grant Payable by Exchequer,S80 2AH,"4,658.00",Yes
"Housing, Communities & Local Government",MHCLG,15/11/2018,Current (non AEF) Grants to Local Authorities,Local Government & Public Services,BASSETLAW DC,,,,230225054,5000411499,,Grant Payable by Exchequer,S80 2AH,614,Yes
"Housing, Communities & Local Government",MHCLG,15/11/2018,Current (non AEF) Grants to Local Authorities,Local Government & Public Services,BASSETLAW DC,,,,230225054,5000411499,,Grant Payable by Exchequer,S80 2AH,"2,216.00",Yes
"Housing, Communities & Local Government",MHCLG,15/11/2018,Current (non AEF) Grants to Local Authorities,Local Government & Public Services,BASSETLAW DC,,,,230225054,5000411499,,Grant Payable by Exchequer,S80 2AH,51,Yes
"Housing, Communities & Local Government",MHCLG,15/11/2018,Current (non AEF) Grants to Local Authorities,Local Government & Public Services,BASSETLAW DC,,,,230225054,5000411499,,Grant Payable by Exchequer,S80 2AH,515,Yes
"Housing, Communities & Local Government",MHCLG,15/11/2018,Current (non AEF) Grants to Local Authorities,Local Government & Public Services,BASSETLAW DC,,,,230225054,5000411499,,Grant Payable by Exchequer,S80 2AH,544,Yes
"Housing, Communities & Local Government",MHCLG,15/11/2018,Current (non AEF) Grants to Local Authorities,Local Government & Public Services,BASSETLAW DC,,,,230225054,5000411499,,Grant Payable by Exchequer,S80 2AH,"-23,516.00",Yes
"Housing, Communities & Local Government",MHCLG,15/11/2018,Current (non AEF) Grants to Local Authorities,Local Government & Public Services,BATH & NE SOMERSET DC (HSG),,,,214502499,5000412421,,Improved Better Care Fund,BA1 5AW,"116,156.00",Yes
"Housing, Communities & Local Government",MHCLG,15/11/2018,Current (non AEF) Grants to Local Authorities,Local Government & Public Services,BATH & NE SOMERSET DC (HSG),,,,214502499,5000412422,,Additional Better Care Fund element,BA1 5AW,"171,954.00",Yes
"Housing, Communities & Local Government",MHCLG,15/11/2018,Current (non AEF) Grants to Local Authorities,Local Government & Public Services,BATH & NE SOMERSET DC (HSG),,,,214502499,5000412423,,Adult Social Care Support Grant,BA1 5AW,"38,007.00",Yes
"Housing, Communities & Local Government",MHCLG,15/11/2018,Current (non AEF) Grants to Local Authorities,Local Government & Public Services,BATH & NORTH EAST SOMERSET DC,,,,214502499,5000411514,,Grant Payable by Exchequer,BA1 5AW,"118,884.00",Yes
"Housing, Communities & Local Government",MHCLG,15/11/2018,Current (non AEF) Grants to Local Authorities,Local Government & Public Services,BATH & NORTH EAST SOMERSET DC,,,,214502499,5000411514,,Grant Payable by Exchequer,BA1 5AW,"358,635.00",Yes
"Housing, Communities & Local Government",MHCLG,15/11/2018,Current (non AEF) Grants to Local Authorities,Local Government & Public Services,BATH & NORTH EAST SOMERSET DC,,,,214502499,5000411514,,Grant Payable by Exchequer,BA1 5AW,"1,511.00",Yes
"Housing, Communities & Local Government",MHCLG,15/11/2018,Current (non AEF) Grants to Local Authorities,Local Government & Public Services,BATH & NORTH EAST SOMERSET DC,,,,214502499,5000411514,,Grant Payable by Exchequer,BA1 5AW,"15,224.00",Yes
"Housing, Communities & Local Government",MHCLG,15/11/2018,Current (non AEF) Grants to Local Authorities,Local Government & Public Services,BATH & NORTH EAST SOMERSET DC,,,,214502499,5000411514,,Grant Payable by Exchequer,BA1 5AW,866,Yes
"Housing, Communities & Local Government",MHCLG,15/11/2018,Current (non AEF) Grants to Local Authorities,Local Government & Public Services,BATH & NORTH EAST SOMERSET DC,,,,214502499,5000411514,,Grant Payable by Exchequer,BA1 5AW,"3,205.00",Yes
"Housing, Communities & Local Government",MHCLG,15/11/2018,Current (non AEF) Grants to Local Authorities,Local Government & Public Services,BATH & NORTH EAST SOMERSET DC,,,,214502499,5000411514,,Grant Payable by Exchequer,BA1 5AW,120,Yes
"Housing, Communities & Local Government",MHCLG,15/11/2018,Current (non AEF) Grants to Local Authorities,Local Government & Public Services,BATH & NORTH EAST SOMERSET DC,,,,214502499,5000411514,,Grant Payable by Exchequer,BA1 5AW,462,Yes
"Housing, Communities & Local Government",MHCLG,15/11/2018,Current (non AEF) Grants to Local Authorities,Local Government & Public Services,BATH & NORTH EAST SOMERSET DC,,,,214502499,5000411514,,Grant Payable by Exchequer,BA1 5AW,-75,Yes
"Housing, Communities & Local Government",MHCLG,15/11/2018,Current (non AEF) Grants to Local Authorities,Local Government & Public Services,BATH & NORTH EAST SOMERSET DC,,,,214502499,5000411514,,Grant Payable by Exchequer,BA1 5AW,"-73,680.00",Yes
"Housing, Communities & Local Government",MHCLG,15/11/2018,Current (non AEF) Grants to Local Authorities,Local Government & Public Services,BEDFORD BOROUGH COUNCIL,,,,211166889,5000412160,,Grant Payable by Exchequer,MK40 1SJ,"58,655.00",Yes
"Housing, Communities & Local Government",MHCLG,15/11/2018,Current (non AEF) Grants to Local Authorities,Local Government & Public Services,BEDFORD BOROUGH COUNCIL,,,,211166889,5000412160,,Grant Payable by Exchequer,MK40 1SJ,"153,969.00",Yes
"Housing, Communities & Local Government",MHCLG,15/11/2018,Current (non AEF) Grants to Local Authorities,Local Government & Public Services,BEDFORD BOROUGH COUNCIL,,,,211166889,5000412160,,Grant Payable by Exchequer,MK40 1SJ,"1,422.00",Yes
"Housing, Communities & Local Government",MHCLG,15/11/2018,Current (non AEF) Grants to Local Authorities,Local Government & Public Services,BEDFORD BOROUGH COUNCIL,,,,211166889,5000412160,,Grant Payable by Exchequer,MK40 1SJ,"4,386.00",Yes
"Housing, Communities & Local Government",MHCLG,15/11/2018,Current (non AEF) Grants to Local Authorities,Local Government & Public Services,BEDFORD BOROUGH COUNCIL,,,,211166889,5000412160,,Grant Payable by Exchequer,MK40 1SJ,504,Yes
"Housing, Communities & Local Government",MHCLG,15/11/2018,Current (non AEF) Grants to Local Authorities,Local Government & Public Services,BEDFORD BOROUGH COUNCIL,,,,211166889,5000412160,,Grant Payable by Exchequer,MK40 1SJ,"1,880.00",Yes
"Housing, Communities & Local Government",MHCLG,15/11/2018,Current (non AEF) Grants to Local Authorities,Local Government & Public Services,BEDFORD BOROUGH COUNCIL,,,,211166889,5000412160,,Grant Payable by Exchequer,MK40 1SJ,62,Yes
"Housing, Communities & Local Government",MHCLG,15/11/2018,Current (non AEF) Grants to Local Authorities,Local Government & Public Services,BEDFORD BOROUGH COUNCIL,,,,211166889,5000412160,,Grant Payable by Exchequer,MK40 1SJ,485,Yes
"Housing, Communities & Local Government",MHCLG,15/11/2018,Current (non AEF) Grants to Local Authorities,Local Government & Public Services,BEDFORD BOROUGH COUNCIL,,,,211166889,5000412160,,Grant Payable by Exchequer,MK40 1SJ,186,Yes
"Housing, Communities & Local Government",MHCLG,15/11/2018,Current (non AEF) Grants to Local Authorities,Local Government & Public Services,BEDFORD BOROUGH COUNCIL,,,,211166889,5000412160,,Grant Payable by Exchequer,MK40 1SJ,"4,550.00",Yes
"Housing, Communities & Local Government",MHCLG,15/11/2018,Current (non AEF) Grants to Local Authorities,Local Government & Public Services,BEDFORD UNITARY AUTHORITY,,,,225682160,5000412842,,Improved Better Care Fund,MK40 1SJ,"57,335.00",Yes
"Housing, Communities & Local Government",MHCLG,15/11/2018,Current (non AEF) Grants to Local Authorities,Local Government & Public Services,BEDFORD UNITARY AUTHORITY,,,,225682160,5000412843,,Additional Better Care Fund element,MK40 1SJ,"145,833.00",Yes
"Housing, Communities & Local Government",MHCLG,15/11/2018,Current (non AEF) Grants to Local Authorities,Local Government & Public Services,BEDFORD UNITARY AUTHORITY,,,,225682160,5000412844,,Adult Social Care Support Grant,MK40 1SJ,"32,333.00",Yes
"Housing, Communities & Local Government",MHCLG,15/11/2018,Current (non AEF) Grants to Local Authorities,Local Government & Public Services,BEDS & LUTON FIRE & RESCUE SERVICE,,,,387821283,5000411525,,Grant Payable by Exchequer,MK42 7NR,"4,080.00",Yes
"Housing, Communities & Local Government",MHCLG,15/11/2018,Current (non AEF) Grants to Local Authorities,Local Government & Public Services,BEDS & LUTON FIRE & RESCUE SERVICE,,,,387821283,5000411525,,Grant Payable by Exchequer,MK42 7NR,"11,278.00",Yes
"Housing, Communities & Local Government",MHCLG,15/11/2018,Current (non AEF) Grants to Local Authorities,Local Government & Public Services,BEDS & LUTON FIRE & RESCUE SERVICE,,,,387821283,5000411525,,Grant Payable by Exchequer,MK42 7NR,29,Yes
"Housing, Communities & Local Government",MHCLG,15/11/2018,Current (non AEF) Grants to Local Authorities,Local Government & Public Services,BEDS & LUTON FIRE & RESCUE SERVICE,,,,387821283,5000411525,,Grant Payable by Exchequer,MK42 7NR,363,Yes
"Housing, Communities & Local Government",MHCLG,15/11/2018,Current (non AEF) Grants to Local Authorities,Local Government & Public Services,BEDS & LUTON FIRE & RESCUE SERVICE,,,,387821283,5000411525,,Grant Payable by Exchequer,MK42 7NR,59,Yes
"Housing, Communities & Local Government",MHCLG,15/11/2018,Current (non AEF) Grants to Local Authorities,Local Government & Public Services,BEDS & LUTON FIRE & RESCUE SERVICE,,,,387821283,5000411525,,Grant Payable by Exchequer,MK42 7NR,160,Yes
"Housing, Communities & Local Government",MHCLG,15/11/2018,Current (non AEF) Grants to Local Authorities,Local Government & Public Services,BEDS & LUTON FIRE & RESCUE SERVICE,,,,387821283,5000411525,,Grant Payable by Exchequer,MK42 7NR,3,Yes
"Housing, Communities & Local Government",MHCLG,15/11/2018,Current (non AEF) Grants to Local Authorities,Local Government & Public Services,BEDS & LUTON FIRE & RESCUE SERVICE,,,,387821283,5000411525,,Grant Payable by Exchequer,MK42 7NR,10,Yes
"Housing, Communities & Local Government",MHCLG,15/11/2018,Current (non AEF) Grants to Local Authorities,Local Government & Public Services,BEDS & LUTON FIRE & RESCUE SERVICE,,,,387821283,5000411525,,Grant Payable by Exchequer,MK42 7NR,29,Yes
"Housing, Communities & Local Government",MHCLG,15/11/2018,Current (non AEF) Grants to Local Authorities,Local Government & Public Services,BEDS & LUTON FIRE & RESCUE SERVICE,,,,387821283,5000411525,,Grant Payable by Exchequer,MK42 7NR,"7,054.00",Yes
"Housing, Communities & Local Government",MHCLG,15/11/2018,Current (non AEF) Grants to Local Authorities,Local Government & Public Services,BEXLEY LB,,,,,5000411547,,Grant Payable by Exchequer,DA8 1TL,"88,400.00",Yes
"Housing, Communities & Local Government",MHCLG,15/11/2018,Current (non AEF) Grants to Local Authorities,Local Government & Public Services,BEXLEY LB,,,,,5000411547,,Grant Payable by Exchequer,DA8 1TL,"240,948.00",Yes
"Housing, Communities & Local Government",MHCLG,15/11/2018,Current (non AEF) Grants to Local Authorities,Local Government & Public Services,BEXLEY LB,,,,,5000411547,,Grant Payable by Exchequer,DA8 1TL,"2,220.00",Yes
"Housing, Communities & Local Government",MHCLG,15/11/2018,Current (non AEF) Grants to Local Authorities,Local Government & Public Services,BEXLEY LB,,,,,5000411547,,Grant Payable by Exchequer,DA8 1TL,"2,346.00",Yes
"Housing, Communities & Local Government",MHCLG,15/11/2018,Current (non AEF) Grants to Local Authorities,Local Government & Public Services,BEXLEY LB,,,,,5000411547,,Grant Payable by Exchequer,DA8 1TL,-56,Yes
"Housing, Communities & Local Government",MHCLG,15/11/2018,Current (non AEF) Grants to Local Authorities,Local Government & Public Services,BEXLEY LB,,,,,5000411547,,Grant Payable by Exchequer,DA8 1TL,"-10,492.00",Yes
"Housing, Communities & Local Government",MHCLG,15/11/2018,Current (non AEF) Grants to Local Authorities,Local Government & Public Services,BEXLEY LB (HSG),,,,,5000412424,,Improved Better Care Fund,DA8 1TL,"172,033.00",Yes
"Housing, Communities & Local Government",MHCLG,15/11/2018,Current (non AEF) Grants to Local Authorities,Local Government & Public Services,BEXLEY LB (HSG),,,,,5000412425,,Additional Better Care Fund element,DA8 1TL,"219,019.00",Yes
"Housing, Communities & Local Government",MHCLG,15/11/2018,Current (non AEF) Grants to Local Authorities,Local Government & Public Services,BEXLEY LB (HSG),,,,,5000412426,,Adult Social Care Support Grant,DA8 1TL,"48,351.00",Yes
"Housing, Communities & Local Government",MHCLG,15/11/2018,Current (non AEF) Grants to Local Authorities,Local Government & Public Services,BIRMINGHAM CITY CNCL,,,,213780559,5000411647,,Grant Payable by Exchequer,B3 3AB,"803,480.00",Yes
"Housing, Communities & Local Government",MHCLG,15/11/2018,Current (non AEF) Grants to Local Authorities,Local Government & Public Services,BIRMINGHAM CITY CNCL,,,,213780559,5000411647,,Grant Payable by Exchequer,B3 3AB,"2,120,137.00",Yes
"Housing, Communities & Local Government",MHCLG,15/11/2018,Current (non AEF) Grants to Local Authorities,Local Government & Public Services,BIRMINGHAM CITY CNCL,,,,213780559,5000411647,,Grant Payable by Exchequer,B3 3AB,"107,675.00",Yes
"Housing, Communities & Local Government",MHCLG,15/11/2018,Current (non AEF) Grants to Local Authorities,Local Government & Public Services,BIRMINGHAM CITY CNCL,,,,213780559,5000411647,,Grant Payable by Exchequer,B3 3AB,"44,181.00",Yes
"Housing, Communities & Local Government",MHCLG,15/11/2018,Current (non AEF) Grants to Local Authorities,Local Government & Public Services,BIRMINGHAM CITY CNCL,,,,213780559,5000411647,,Grant Payable by Exchequer,B3 3AB,"16,312.00",Yes
"Housing, Communities & Local Government",MHCLG,15/11/2018,Current (non AEF) Grants to Local Authorities,Local Government & Public Services,BIRMINGHAM CITY CNCL,,,,213780559,5000411647,,Grant Payable by Exchequer,B3 3AB,"2,265.00",Yes
"Housing, Communities & Local Government",MHCLG,15/11/2018,Current (non AEF) Grants to Local Authorities,Local Government & Public Services,BIRMINGHAM CITY CNCL,,,,213780559,5000411647,,Grant Payable by Exchequer,B3 3AB,"-103,230.00",Yes
"Housing, Communities & Local Government",MHCLG,15/11/2018,Current (non AEF) Grants to Local Authorities,Local Government & Public Services,BIRMINGHAM CITY CNCL,,,,213780559,5000412493,,Improved Better Care Fund,B2 2AJ,"2,605,563.00",Yes
"Housing, Communities & Local Government",MHCLG,15/11/2018,Current (non AEF) Grants to Local Authorities,Local Government & Public Services,BIRMINGHAM CITY CNCL,,,,213780559,5000412494,,Additional Better Care Fund element,B2 2AJ,"1,338,255.00",Yes
"Housing, Communities & Local Government",MHCLG,15/11/2018,Current (non AEF) Grants to Local Authorities,Local Government & Public Services,BIRMINGHAM CITY CNCL,,,,213780559,5000412495,,Adult Social Care Support Grant,B2 2AJ,"291,670.00",Yes
"Housing, Communities & Local Government",MHCLG,15/11/2018,Current (non AEF) Grants to Local Authorities,Local Government & Public Services,BLABY DC,,,,,5000411649,,Grant Payable by Exchequer,LE9 5EP,"36,454.00",Yes
"Housing, Communities & Local Government",MHCLG,15/11/2018,Current (non AEF) Grants to Local Authorities,Local Government & Public Services,BLABY DC,,,,,5000411649,,Grant Payable by Exchequer,LE9 5EP,"48,075.00",Yes
"Housing, Communities & Local Government",MHCLG,15/11/2018,Current (non AEF) Grants to Local Authorities,Local Government & Public Services,BLABY DC,,,,,5000411649,,Grant Payable by Exchequer,LE9 5EP,"3,124.00",Yes
"Housing, Communities & Local Government",MHCLG,15/11/2018,Current (non AEF) Grants to Local Authorities,Local Government & Public Services,BLABY DC,,,,,5000411649,,Grant Payable by Exchequer,LE9 5EP,328,Yes
"Housing, Communities & Local Government",MHCLG,15/11/2018,Current (non AEF) Grants to Local Authorities,Local Government & Public Services,BLABY DC,,,,,5000411649,,Grant Payable by Exchequer,LE9 5EP,"1,057.00",Yes
"Housing, Communities & Local Government",MHCLG,15/11/2018,Current (non AEF) Grants to Local Authorities,Local Government & Public Services,BLABY DC,,,,,5000411649,,Grant Payable by Exchequer,LE9 5EP,142,Yes
"Housing, Communities & Local Government",MHCLG,15/11/2018,Current (non AEF) Grants to Local Authorities,Local Government & Public Services,BLABY DC,,,,,5000411649,,Grant Payable by Exchequer,LE9 5EP,"-26,688.00",Yes
"Housing, Communities & Local Government",MHCLG,15/11/2018,Current (non AEF) Grants to Local Authorities,Local Government & Public Services,BLACKBURN WITH DARWEN BC,,,,,5000412496,,Improved Better Care Fund,BB1 7DY,"309,529.00",Yes
"Housing, Communities & Local Government",MHCLG,15/11/2018,Current (non AEF) Grants to Local Authorities,Local Government & Public Services,BLACKBURN WITH DARWEN BC,,,,,5000412497,,Additional Better Care Fund element,BB1 7DY,"182,165.00",Yes
"Housing, Communities & Local Government",MHCLG,15/11/2018,Current (non AEF) Grants to Local Authorities,Local Government & Public Services,BLACKBURN WITH DARWEN BC,,,,,5000412498,,Adult Social Care Support Grant,BB1 7DY,"39,812.00",Yes
"Housing, Communities & Local Government",MHCLG,15/11/2018,Current (non AEF) Grants to Local Authorities,Local Government & Public Services,BLACKBURN WITH DARWEN BC,,,,,5000411651,,Grant Payable by Exchequer,BB1 7DY,"37,579.00",Yes
"Housing, Communities & Local Government",MHCLG,15/11/2018,Current (non AEF) Grants to Local Authorities,Local Government & Public Services,BLACKBURN WITH DARWEN BC,,,,,5000411651,,Grant Payable by Exchequer,BB1 7DY,"191,796.00",Yes
"Housing, Communities & Local Government",MHCLG,15/11/2018,Current (non AEF) Grants to Local Authorities,Local Government & Public Services,BLACKBURN WITH DARWEN BC,,,,,5000411651,,Grant Payable by Exchequer,BB1 7DY,125,Yes
"Housing, Communities & Local Government",MHCLG,15/11/2018,Current (non AEF) Grants to Local Authorities,Local Government & Public Services,BLACKBURN WITH DARWEN BC,,,,,5000411651,,Grant Payable by Exchequer,BB1 7DY,"3,575.00",Yes
"Housing, Communities & Local Government",MHCLG,15/11/2018,Current (non AEF) Grants to Local Authorities,Local Government & Public Services,BLACKBURN WITH DARWEN BC,,,,,5000411651,,Grant Payable by Exchequer,BB1 7DY,835,Yes
"Housing, Communities & Local Government",MHCLG,15/11/2018,Current (non AEF) Grants to Local Authorities,Local Government & Public Services,BLACKBURN WITH DARWEN BC,,,,,5000411651,,Grant Payable by Exchequer,BB1 7DY,"3,342.00",Yes
"Housing, Communities & Local Government",MHCLG,15/11/2018,Current (non AEF) Grants to Local Authorities,Local Government & Public Services,BLACKBURN WITH DARWEN BC,,,,,5000411651,,Grant Payable by Exchequer,BB1 7DY,"1,044.00",Yes
"Housing, Communities & Local Government",MHCLG,15/11/2018,Current (non AEF) Grants to Local Authorities,Local Government & Public Services,BLACKBURN WITH DARWEN BC,,,,,5000411651,,Grant Payable by Exchequer,BB1 7DY,186,Yes
"Housing, Communities & Local Government",MHCLG,15/11/2018,Current (non AEF) Grants to Local Authorities,Local Government & Public Services,BLACKBURN WITH DARWEN BC,,,,,5000411651,,Grant Payable by Exchequer,BB1 7DY,"44,592.00",Yes
"Housing, Communities & Local Government",MHCLG,15/11/2018,Current (non AEF) Grants to Local Authorities,Local Government & Public Services,BLACKPOOL BC,,,,,5000412499,,Improved Better Care Fund,FY1 1NA,"414,415.00",Yes
"Housing, Communities & Local Government",MHCLG,15/11/2018,Current (non AEF) Grants to Local Authorities,Local Government & Public Services,BLACKPOOL BC,,,,,5000412500,,Additional Better Care Fund element,FY1 1NA,"215,881.00",Yes
"Housing, Communities & Local Government",MHCLG,15/11/2018,Current (non AEF) Grants to Local Authorities,Local Government & Public Services,BLACKPOOL BC,,,,,5000412501,,Adult Social Care Support Grant,FY1 1NA,"47,065.00",Yes
"Housing, Communities & Local Government",MHCLG,15/11/2018,Current (non AEF) Grants to Local Authorities,Local Government & Public Services,BLACKPOOL BC,,,,,5000411653,,Grant Payable by Exchequer,FY1 1NA,"38,571.00",Yes
"Housing, Communities & Local Government",MHCLG,15/11/2018,Current (non AEF) Grants to Local Authorities,Local Government & Public Services,BLACKPOOL BC,,,,,5000411653,,Grant Payable by Exchequer,FY1 1NA,"246,350.00",Yes
"Housing, Communities & Local Government",MHCLG,15/11/2018,Current (non AEF) Grants to Local Authorities,Local Government & Public Services,BLACKPOOL BC,,,,,5000411653,,Grant Payable by Exchequer,FY1 1NA,"4,636.00",Yes
"Housing, Communities & Local Government",MHCLG,15/11/2018,Current (non AEF) Grants to Local Authorities,Local Government & Public Services,BLACKPOOL BC,,,,,5000411653,,Grant Payable by Exchequer,FY1 1NA,592,Yes
"Housing, Communities & Local Government",MHCLG,15/11/2018,Current (non AEF) Grants to Local Authorities,Local Government & Public Services,BLACKPOOL BC,,,,,5000411653,,Grant Payable by Exchequer,FY1 1NA,"1,295.00",Yes
"Housing, Communities & Local Government",MHCLG,15/11/2018,Current (non AEF) Grants to Local Authorities,Local Government & Public Services,BLACKPOOL BC,,,,,5000411653,,Grant Payable by Exchequer,FY1 1NA,190,Yes
"Housing, Communities & Local Government",MHCLG,15/11/2018,Current (non AEF) Grants to Local Authorities,Local Government & Public Services,BLACKPOOL BC,,,,,5000411653,,Grant Payable by Exchequer,FY1 1NA,-10,Yes
"Housing, Communities & Local Government",MHCLG,15/11/2018,Current (non AEF) Grants to Local Authorities,Local Government & Public Services,BLACKPOOL BC,,,,,5000411653,,Grant Payable by Exchequer,FY1 1NA,"44,946.00",Yes
"Housing, Communities & Local Government",MHCLG,15/11/2018,Current (non AEF) Grants to Local Authorities,Local Government & Public Services,BOLSOVER DC,,Large,,235516523,5000411656,,Grant Payable by Exchequer,S43 4JY,"24,669.00",Yes
"Housing, Communities & Local Government",MHCLG,15/11/2018,Current (non AEF) Grants to Local Authorities,Local Government & Public Services,BOLSOVER DC,,Large,,235516523,5000411656,,Grant Payable by Exchequer,S43 4JY,"51,426.00",Yes
"Housing, Communities & Local Government",MHCLG,15/11/2018,Current (non AEF) Grants to Local Authorities,Local Government & Public Services,BOLSOVER DC,,Large,,235516523,5000411656,,Grant Payable by Exchequer,S43 4JY,362,Yes
"Housing, Communities & Local Government",MHCLG,15/11/2018,Current (non AEF) Grants to Local Authorities,Local Government & Public Services,BOLSOVER DC,,Large,,235516523,5000411656,,Grant Payable by Exchequer,S43 4JY,"4,600.00",Yes
"Housing, Communities & Local Government",MHCLG,15/11/2018,Current (non AEF) Grants to Local Authorities,Local Government & Public Services,BOLSOVER DC,,Large,,235516523,5000411656,,Grant Payable by Exchequer,S43 4JY,349,Yes
"Housing, Communities & Local Government",MHCLG,15/11/2018,Current (non AEF) Grants to Local Authorities,Local Government & Public Services,BOLSOVER DC,,Large,,235516523,5000411656,,Grant Payable by Exchequer,S43 4JY,669,Yes
"Housing, Communities & Local Government",MHCLG,15/11/2018,Current (non AEF) Grants to Local Authorities,Local Government & Public Services,BOLSOVER DC,,Large,,235516523,5000411656,,Grant Payable by Exchequer,S43 4JY,324,Yes
"Housing, Communities & Local Government",MHCLG,15/11/2018,Current (non AEF) Grants to Local Authorities,Local Government & Public Services,BOLSOVER DC,,Large,,235516523,5000411656,,Grant Payable by Exchequer,S43 4JY,46,Yes
"Housing, Communities & Local Government",MHCLG,15/11/2018,Current (non AEF) Grants to Local Authorities,Local Government & Public Services,BOLSOVER DC,,Large,,235516523,5000411656,,Grant Payable by Exchequer,S43 4JY,"-14,419.00",Yes
"Housing, Communities & Local Government",MHCLG,15/11/2018,Current (non AEF) Grants to Local Authorities,Local Government & Public Services,BOLTON MBC,,,,,5000411662,,Grant Payable by Exchequer,BL1 1RU,"150,052.00",Yes
"Housing, Communities & Local Government",MHCLG,15/11/2018,Current (non AEF) Grants to Local Authorities,Local Government & Public Services,BOLTON MBC,,,,,5000411662,,Grant Payable by Exchequer,BL1 1RU,"632,296.00",Yes
"Housing, Communities & Local Government",MHCLG,15/11/2018,Current (non AEF) Grants to Local Authorities,Local Government & Public Services,BOLTON MBC,,,,,5000411662,,Grant Payable by Exchequer,BL1 1RU,"17,187.00",Yes
"Housing, Communities & Local Government",MHCLG,15/11/2018,Current (non AEF) Grants to Local Authorities,Local Government & Public Services,BOLTON MBC,,,,,5000411662,,Grant Payable by Exchequer,BL1 1RU,"2,531.00",Yes
"Housing, Communities & Local Government",MHCLG,15/11/2018,Current (non AEF) Grants to Local Authorities,Local Government & Public Services,BOLTON MBC,,,,,5000411662,,Grant Payable by Exchequer,BL1 1RU,"6,751.00",Yes
"Housing, Communities & Local Government",MHCLG,15/11/2018,Current (non AEF) Grants to Local Authorities,Local Government & Public Services,BOLTON MBC,,,,,5000411662,,Grant Payable by Exchequer,BL1 1RU,127,Yes
"Housing, Communities & Local Government",MHCLG,15/11/2018,Current (non AEF) Grants to Local Authorities,Local Government & Public Services,BOLTON MBC,,,,,5000411662,,Grant Payable by Exchequer,BL1 1RU,609,Yes
"Housing, Communities & Local Government",MHCLG,15/11/2018,Current (non AEF) Grants to Local Authorities,Local Government & Public Services,BOLTON MBC,,,,,5000411662,,Grant Payable by Exchequer,BL1 1RU,"-28,642.00",Yes
"Housing, Communities & Local Government",MHCLG,15/11/2018,Current (non AEF) Grants to Local Authorities,Local Government & Public Services,BOLTON MBC,,,,,5000412502,,Improved Better Care Fund,BL1 1RU,"530,961.00",Yes
"Housing, Communities & Local Government",MHCLG,15/11/2018,Current (non AEF) Grants to Local Authorities,Local Government & Public Services,BOLTON MBC,,,,,5000412503,,Additional Better Care Fund element,BL1 1RU,"330,922.00",Yes
"Housing, Communities & Local Government",MHCLG,15/11/2018,Current (non AEF) Grants to Local Authorities,Local Government & Public Services,BOLTON MBC,,,,,5000412504,,Adult Social Care Support Grant,BL1 1RU,"72,398.00",Yes
"Housing, Communities & Local Government",MHCLG,15/11/2018,Current (non AEF) Grants to Local Authorities,Local Government & Public Services,BOSTON BC,,,,236417713,5000411670,,Grant Payable by Exchequer,PE21 8QR,"22,762.00",Yes
"Housing, Communities & Local Government",MHCLG,15/11/2018,Current (non AEF) Grants to Local Authorities,Local Government & Public Services,BOSTON BC,,,,236417713,5000411670,,Grant Payable by Exchequer,PE21 8QR,"80,291.00",Yes
"Housing, Communities & Local Government",MHCLG,15/11/2018,Current (non AEF) Grants to Local Authorities,Local Government & Public Services,BOSTON BC,,,,236417713,5000411670,,Grant Payable by Exchequer,PE21 8QR,827,Yes
"Housing, Communities & Local Government",MHCLG,15/11/2018,Current (non AEF) Grants to Local Authorities,Local Government & Public Services,BOSTON BC,,,,236417713,5000411670,,Grant Payable by Exchequer,PE21 8QR,"3,309.00",Yes
"Housing, Communities & Local Government",MHCLG,15/11/2018,Current (non AEF) Grants to Local Authorities,Local Government & Public Services,BOSTON BC,,,,236417713,5000411670,,Grant Payable by Exchequer,PE21 8QR,205,Yes
"Housing, Communities & Local Government",MHCLG,15/11/2018,Current (non AEF) Grants to Local Authorities,Local Government & Public Services,BOSTON BC,,,,236417713,5000411670,,Grant Payable by Exchequer,PE21 8QR,631,Yes
"Housing, Communities & Local Government",MHCLG,15/11/2018,Current (non AEF) Grants to Local Authorities,Local Government & Public Services,BOSTON BC,,,,236417713,5000411670,,Grant Payable by Exchequer,PE21 8QR,153,Yes
"Housing, Communities & Local Government",MHCLG,15/11/2018,Current (non AEF) Grants to Local Authorities,Local Government & Public Services,BOSTON BC,,,,236417713,5000411670,,Grant Payable by Exchequer,PE21 8QR,500,Yes
"Housing, Communities & Local Government",MHCLG,15/11/2018,Current (non AEF) Grants to Local Authorities,Local Government & Public Services,BOSTON BC,,,,236417713,5000411670,,Grant Payable by Exchequer,PE21 8QR,37,Yes
"Housing, Communities & Local Government",MHCLG,15/11/2018,Current (non AEF) Grants to Local Authorities,Local Government & Public Services,BOSTON BC,,,,236417713,5000411670,,Grant Payable by Exchequer,PE21 8QR,"-16,648.00",Yes
"Housing, Communities & Local Government",MHCLG,15/11/2018,Current (non AEF) Grants to Local Authorities,Local Government & Public Services,BOURNEMOUTH DC,,,,,5000411678,,Grant Payable by Exchequer,BH2 6EB,"58,841.00",Yes
"Housing, Communities & Local Government",MHCLG,15/11/2018,Current (non AEF) Grants to Local Authorities,Local Government & Public Services,BOURNEMOUTH DC,,,,,5000411678,,Grant Payable by Exchequer,BH2 6EB,"200,205.00",Yes
"Housing, Communities & Local Government",MHCLG,15/11/2018,Current (non AEF) Grants to Local Authorities,Local Government & Public Services,BOURNEMOUTH DC,,,,,5000411678,,Grant Payable by Exchequer,BH2 6EB,"7,420.00",Yes
"Housing, Communities & Local Government",MHCLG,15/11/2018,Current (non AEF) Grants to Local Authorities,Local Government & Public Services,BOURNEMOUTH DC,,,,,5000411678,,Grant Payable by Exchequer,BH2 6EB,"2,573.00",Yes
"Housing, Communities & Local Government",MHCLG,15/11/2018,Current (non AEF) Grants to Local Authorities,Local Government & Public Services,BOURNEMOUTH DC,,,,,5000411678,,Grant Payable by Exchequer,BH2 6EB,501,Yes
"Housing, Communities & Local Government",MHCLG,15/11/2018,Current (non AEF) Grants to Local Authorities,Local Government & Public Services,BOURNEMOUTH DC,,,,,5000411678,,Grant Payable by Exchequer,BH2 6EB,-91,Yes
"Housing, Communities & Local Government",MHCLG,15/11/2018,Current (non AEF) Grants to Local Authorities,Local Government & Public Services,BOURNEMOUTH DC,,,,,5000411678,,Grant Payable by Exchequer,BH2 6EB,"-1,971.00",Yes
"Housing, Communities & Local Government",MHCLG,15/11/2018,Current (non AEF) Grants to Local Authorities,Local Government & Public Services,BOURNEMOUTH DC,,,,,5000412505,,Improved Better Care Fund,BH2 6EB,"228,661.00",Yes
"Housing, Communities & Local Government",MHCLG,15/11/2018,Current (non AEF) Grants to Local Authorities,Local Government & Public Services,BOURNEMOUTH DC,,,,,5000412506,,Additional Better Care Fund element,BH2 6EB,"209,236.00",Yes
"Housing, Communities & Local Government",MHCLG,15/11/2018,Current (non AEF) Grants to Local Authorities,Local Government & Public Services,BOURNEMOUTH DC,,,,,5000412507,,Adult Social Care Support Grant,BH2 6EB,"46,036.00",Yes
"Housing, Communities & Local Government",MHCLG,15/11/2018,Current (non AEF) Grants to Local Authorities,Local Government & Public Services,BRACKNELL FOREST DC,,,,236184867,5000412508,,Improved Better Care Fund,RG12 1AQ,"5,201.00",Yes
"Housing, Communities & Local Government",MHCLG,15/11/2018,Current (non AEF) Grants to Local Authorities,Local Government & Public Services,BRACKNELL FOREST DC,,,,236184867,5000412509,,Additional Better Care Fund element,RG12 1AQ,"84,691.00",Yes
"Housing, Communities & Local Government",MHCLG,15/11/2018,Current (non AEF) Grants to Local Authorities,Local Government & Public Services,BRACKNELL FOREST DC,,,,236184867,5000412510,,Adult Social Care Support Grant,RG12 1AQ,"18,845.00",Yes
"Housing, Communities & Local Government",MHCLG,15/11/2018,Current (non AEF) Grants to Local Authorities,Local Government & Public Services,BRACKNELL FOREST DC,,,,236184867,5000411686,,Grant Payable by Exchequer,RG12 1AQ,"131,832.00",Yes
"Housing, Communities & Local Government",MHCLG,15/11/2018,Current (non AEF) Grants to Local Authorities,Local Government & Public Services,BRACKNELL FOREST DC,,,,236184867,5000411686,,Grant Payable by Exchequer,RG12 1AQ,"103,607.00",Yes
"Housing, Communities & Local Government",MHCLG,15/11/2018,Current (non AEF) Grants to Local Authorities,Local Government & Public Services,BRACKNELL FOREST DC,,,,236184867,5000411686,,Grant Payable by Exchequer,RG12 1AQ,"7,263.00",Yes
"Housing, Communities & Local Government",MHCLG,15/11/2018,Current (non AEF) Grants to Local Authorities,Local Government & Public Services,BRACKNELL FOREST DC,,,,236184867,5000411686,,Grant Payable by Exchequer,RG12 1AQ,"1,844.00",Yes
"Housing, Communities & Local Government",MHCLG,15/11/2018,Current (non AEF) Grants to Local Authorities,Local Government & Public Services,BRACKNELL FOREST DC,,,,236184867,5000411686,,Grant Payable by Exchequer,RG12 1AQ,"2,066.00",Yes
"Housing, Communities & Local Government",MHCLG,15/11/2018,Current (non AEF) Grants to Local Authorities,Local Government & Public Services,BRACKNELL FOREST DC,,,,236184867,5000411686,,Grant Payable by Exchequer,RG12 1AQ,168,Yes
"Housing, Communities & Local Government",MHCLG,15/11/2018,Current (non AEF) Grants to Local Authorities,Local Government & Public Services,BRACKNELL FOREST DC,,,,236184867,5000411686,,Grant Payable by Exchequer,RG12 1AQ,33,Yes
"Housing, Communities & Local Government",MHCLG,15/11/2018,Current (non AEF) Grants to Local Authorities,Local Government & Public Services,BRACKNELL FOREST DC,,,,236184867,5000411686,,Grant Payable by Exchequer,RG12 1AQ,"-66,815.00",Yes
"Housing, Communities & Local Government",MHCLG,15/11/2018,Current (non AEF) Grants to Local Authorities,Local Government & Public Services,BRADFORD MBC,,,,,5000412511,,Improved Better Care Fund,BD1 1HX,"823,288.00",Yes
"Housing, Communities & Local Government",MHCLG,15/11/2018,Current (non AEF) Grants to Local Authorities,Local Government & Public Services,BRADFORD MBC,,,,,5000412512,,Additional Better Care Fund element,BD1 1HX,"546,275.00",Yes
"Housing, Communities & Local Government",MHCLG,15/11/2018,Current (non AEF) Grants to Local Authorities,Local Government & Public Services,BRADFORD MBC,,,,,5000412513,,Adult Social Care Support Grant,BD1 1HX,"119,641.00",Yes
"Housing, Communities & Local Government",MHCLG,15/11/2018,Current (non AEF) Grants to Local Authorities,Local Government & Public Services,BRADFORD MBC,,,,,5000411695,,Grant Payable by Exchequer,BD1 1HX,"243,234.00",Yes
"Housing, Communities & Local Government",MHCLG,15/11/2018,Current (non AEF) Grants to Local Authorities,Local Government & Public Services,BRADFORD MBC,,,,,5000411695,,Grant Payable by Exchequer,BD1 1HX,"1,344,255.00",Yes
"Housing, Communities & Local Government",MHCLG,15/11/2018,Current (non AEF) Grants to Local Authorities,Local Government & Public Services,BRADFORD MBC,,,,,5000411695,,Grant Payable by Exchequer,BD1 1HX,498,Yes
"Housing, Communities & Local Government",MHCLG,15/11/2018,Current (non AEF) Grants to Local Authorities,Local Government & Public Services,BRADFORD MBC,,,,,5000411695,,Grant Payable by Exchequer,BD1 1HX,"40,895.00",Yes
"Housing, Communities & Local Government",MHCLG,15/11/2018,Current (non AEF) Grants to Local Authorities,Local Government & Public Services,BRADFORD MBC,,,,,5000411695,,Grant Payable by Exchequer,BD1 1HX,"3,913.00",Yes
"Housing, Communities & Local Government",MHCLG,15/11/2018,Current (non AEF) Grants to Local Authorities,Local Government & Public Services,BRADFORD MBC,,,,,5000411695,,Grant Payable by Exchequer,BD1 1HX,"14,488.00",Yes
"Housing, Communities & Local Government",MHCLG,15/11/2018,Current (non AEF) Grants to Local Authorities,Local Government & Public Services,BRADFORD MBC,,,,,5000411695,,Grant Payable by Exchequer,BD1 1HX,209,Yes
"Housing, Communities & Local Government",MHCLG,15/11/2018,Current (non AEF) Grants to Local Authorities,Local Government & Public Services,BRADFORD MBC,,,,,5000411695,,Grant Payable by Exchequer,BD1 1HX,"-3,982.00",Yes
"Housing, Communities & Local Government",MHCLG,15/11/2018,Current (non AEF) Grants to Local Authorities,Local Government & Public Services,BRAINTREE DC,,,,226941730,5000411702,,Grant Payable by Exchequer,CM7 9HB,"32,185.00",Yes
"Housing, Communities & Local Government",MHCLG,15/11/2018,Current (non AEF) Grants to Local Authorities,Local Government & Public Services,BRAINTREE DC,,,,226941730,5000411702,,Grant Payable by Exchequer,CM7 9HB,"112,888.00",Yes
"Housing, Communities & Local Government",MHCLG,15/11/2018,Current (non AEF) Grants to Local Authorities,Local Government & Public Services,BRAINTREE DC,,,,226941730,5000411702,,Grant Payable by Exchequer,CM7 9HB,317,Yes
"Housing, Communities & Local Government",MHCLG,15/11/2018,Current (non AEF) Grants to Local Authorities,Local Government & Public Services,BRAINTREE DC,,,,226941730,5000411702,,Grant Payable by Exchequer,CM7 9HB,"4,753.00",Yes
"Housing, Communities & Local Government",MHCLG,15/11/2018,Current (non AEF) Grants to Local Authorities,Local Government & Public Services,BRAINTREE DC,,,,226941730,5000411702,,Grant Payable by Exchequer,CM7 9HB,754,Yes
"Housing, Communities & Local Government",MHCLG,15/11/2018,Current (non AEF) Grants to Local Authorities,Local Government & Public Services,BRAINTREE DC,,,,226941730,5000411702,,Grant Payable by Exchequer,CM7 9HB,"1,943.00",Yes
"Housing, Communities & Local Government",MHCLG,15/11/2018,Current (non AEF) Grants to Local Authorities,Local Government & Public Services,BRAINTREE DC,,,,226941730,5000411702,,Grant Payable by Exchequer,CM7 9HB,51,Yes
"Housing, Communities & Local Government",MHCLG,15/11/2018,Current (non AEF) Grants to Local Authorities,Local Government & Public Services,BRAINTREE DC,,,,226941730,5000411702,,Grant Payable by Exchequer,CM7 9HB,-121,Yes
"Housing, Communities & Local Government",MHCLG,15/11/2018,Current (non AEF) Grants to Local Authorities,Local Government & Public Services,BRAINTREE DC,,,,226941730,5000411702,,Grant Payable by Exchequer,CM7 9HB,"-24,321.00",Yes
"Housing, Communities & Local Government",MHCLG,15/11/2018,Current (non AEF) Grants to Local Authorities,Local Government & Public Services,BRECKLAND DC,,,,232611384,5000411710,,Grant Payable by Exchequer,NR19 1EE,"27,792.00",Yes
"Housing, Communities & Local Government",MHCLG,15/11/2018,Current (non AEF) Grants to Local Authorities,Local Government & Public Services,BRECKLAND DC,,,,232611384,5000411710,,Grant Payable by Exchequer,NR19 1EE,"107,151.00",Yes
"Housing, Communities & Local Government",MHCLG,15/11/2018,Current (non AEF) Grants to Local Authorities,Local Government & Public Services,BRECKLAND DC,,,,232611384,5000411710,,Grant Payable by Exchequer,NR19 1EE,"2,042.00",Yes
"Housing, Communities & Local Government",MHCLG,15/11/2018,Current (non AEF) Grants to Local Authorities,Local Government & Public Services,BRECKLAND DC,,,,232611384,5000411710,,Grant Payable by Exchequer,NR19 1EE,"5,319.00",Yes
"Housing, Communities & Local Government",MHCLG,15/11/2018,Current (non AEF) Grants to Local Authorities,Local Government & Public Services,BRECKLAND DC,,,,232611384,5000411710,,Grant Payable by Exchequer,NR19 1EE,"1,299.00",Yes
"Housing, Communities & Local Government",MHCLG,15/11/2018,Current (non AEF) Grants to Local Authorities,Local Government & Public Services,BRECKLAND DC,,,,232611384,5000411710,,Grant Payable by Exchequer,NR19 1EE,887,Yes
"Housing, Communities & Local Government",MHCLG,15/11/2018,Current (non AEF) Grants to Local Authorities,Local Government & Public Services,BRECKLAND DC,,,,232611384,5000411710,,Grant Payable by Exchequer,NR19 1EE,93,Yes
"Housing, Communities & Local Government",MHCLG,15/11/2018,Current (non AEF) Grants to Local Authorities,Local Government & Public Services,BRECKLAND DC,,,,232611384,5000411710,,Grant Payable by Exchequer,NR19 1EE,29,Yes
"Housing, Communities & Local Government",MHCLG,15/11/2018,Current (non AEF) Grants to Local Authorities,Local Government & Public Services,BRECKLAND DC,,,,232611384,5000411710,,Grant Payable by Exchequer,NR19 1EE,"-15,642.00",Yes
"Housing, Communities & Local Government",MHCLG,15/11/2018,Current (non AEF) Grants to Local Authorities,Local Government & Public Services,BRENT LB,,,,,5000411718,,Grant Payable by Exchequer,HA9 9EZ,"159,596.00",Yes
"Housing, Communities & Local Government",MHCLG,15/11/2018,Current (non AEF) Grants to Local Authorities,Local Government & Public Services,BRENT LB,,,,,5000411718,,Grant Payable by Exchequer,HA9 9EZ,"356,929.00",Yes
"Housing, Communities & Local Government",MHCLG,15/11/2018,Current (non AEF) Grants to Local Authorities,Local Government & Public Services,BRENT LB,,,,,5000411718,,Grant Payable by Exchequer,HA9 9EZ,"29,022.00",Yes
"Housing, Communities & Local Government",MHCLG,15/11/2018,Current (non AEF) Grants to Local Authorities,Local Government & Public Services,BRENT LB,,,,,5000411718,,Grant Payable by Exchequer,HA9 9EZ,"6,974.00",Yes
"Housing, Communities & Local Government",MHCLG,15/11/2018,Current (non AEF) Grants to Local Authorities,Local Government & Public Services,BRENT LB,,,,,5000411718,,Grant Payable by Exchequer,HA9 9EZ,"2,018.00",Yes
"Housing, Communities & Local Government",MHCLG,15/11/2018,Current (non AEF) Grants to Local Authorities,Local Government & Public Services,BRENT LB,,,,,5000411718,,Grant Payable by Exchequer,HA9 9EZ,220,Yes
"Housing, Communities & Local Government",MHCLG,15/11/2018,Current (non AEF) Grants to Local Authorities,Local Government & Public Services,BRENT LB,,,,,5000411718,,Grant Payable by Exchequer,HA9 9EZ,61,Yes
"Housing, Communities & Local Government",MHCLG,15/11/2018,Current (non AEF) Grants to Local Authorities,Local Government & Public Services,BRENT LB,,,,,5000411718,,Grant Payable by Exchequer,HA9 9EZ,"23,844.00",Yes
"Housing, Communities & Local Government",MHCLG,15/11/2018,Current (non AEF) Grants to Local Authorities,Local Government & Public Services,BRENT LB (HSG),,,,,5000412427,,Improved Better Care Fund,HA9 9HD,"467,469.00",Yes
"Housing, Communities & Local Government",MHCLG,15/11/2018,Current (non AEF) Grants to Local Authorities,Local Government & Public Services,BRENT LB (HSG),,,,,5000412428,,Additional Better Care Fund element,HA9 9HD,"319,223.00",Yes
"Housing, Communities & Local Government",MHCLG,15/11/2018,Current (non AEF) Grants to Local Authorities,Local Government & Public Services,BRENT LB (HSG),,,,,5000412429,,Adult Social Care Support Grant,HA9 9HD,"69,947.00",Yes
"Housing, Communities & Local Government",MHCLG,15/11/2018,Current (non AEF) Grants to Local Authorities,Local Government & Public Services,BRENTWOOD BC,,,,227473188,5000411726,,Grant Payable by Exchequer,CM15 8AY,"21,883.00",Yes
"Housing, Communities & Local Government",MHCLG,15/11/2018,Current (non AEF) Grants to Local Authorities,Local Government & Public Services,BRENTWOOD BC,,,,227473188,5000411726,,Grant Payable by Exchequer,CM15 8AY,"58,160.00",Yes
"Housing, Communities & Local Government",MHCLG,15/11/2018,Current (non AEF) Grants to Local Authorities,Local Government & Public Services,BRENTWOOD BC,,,,227473188,5000411726,,Grant Payable by Exchequer,CM15 8AY,"2,076.00",Yes
"Housing, Communities & Local Government",MHCLG,15/11/2018,Current (non AEF) Grants to Local Authorities,Local Government & Public Services,BRENTWOOD BC,,,,227473188,5000411726,,Grant Payable by Exchequer,CM15 8AY,180,Yes
"Housing, Communities & Local Government",MHCLG,15/11/2018,Current (non AEF) Grants to Local Authorities,Local Government & Public Services,BRENTWOOD BC,,,,227473188,5000411726,,Grant Payable by Exchequer,CM15 8AY,648,Yes
"Housing, Communities & Local Government",MHCLG,15/11/2018,Current (non AEF) Grants to Local Authorities,Local Government & Public Services,BRENTWOOD BC,,,,227473188,5000411726,,Grant Payable by Exchequer,CM15 8AY,53,Yes
"Housing, Communities & Local Government",MHCLG,15/11/2018,Current (non AEF) Grants to Local Authorities,Local Government & Public Services,BRENTWOOD BC,,,,227473188,5000411726,,Grant Payable by Exchequer,CM15 8AY,"-18,618.00",Yes
"Housing, Communities & Local Government",MHCLG,15/11/2018,Current (non AEF) Grants to Local Authorities,Local Government & Public Services,BRIGHTON & HOVE CITY COUNCIL,,Large,,228455218,5000412514,,Improved Better Care Fund,BN1 3JE,"265,696.00",Yes
"Housing, Communities & Local Government",MHCLG,15/11/2018,Current (non AEF) Grants to Local Authorities,Local Government & Public Services,BRIGHTON & HOVE CITY COUNCIL,,Large,,228455218,5000412515,,Additional Better Care Fund element,BN1 3JE,"290,276.00",Yes
"Housing, Communities & Local Government",MHCLG,15/11/2018,Current (non AEF) Grants to Local Authorities,Local Government & Public Services,BRIGHTON & HOVE CITY COUNCIL,,Large,,228455218,5000412516,,Adult Social Care Support Grant,BN1 3JE,"63,991.00",Yes
"Housing, Communities & Local Government",MHCLG,15/11/2018,Current (non AEF) Grants to Local Authorities,Local Government & Public Services,BRIGHTON & HOVE CITY COUNCIL,,Large,,228455218,5000411734,,Grant Payable by Exchequer,BN1 3JE,"109,343.00",Yes
